VENDOR NAME,EXPENSE CATEGORY,PAYMENT AMOUNT,PAYMENT DATE
KB SPINE LLC,I&D Claims (Damage Reserve),$750 ,2/12/2016
KB SPINE LLC,I&D Claims (Damage Reserve),$750 ,2/12/2016
KB SPINE LLC,I&D Claims (Damage Reserve),$750 ,5/5/2016
KB SPINE LLC,I&D Claims (Damage Reserve),$375 ,6/2/2016
KB SPINE LLC,I&D Claims (Damage Reserve),$750 ,7/7/2016
"*ABC HUMANE WILDLIFE CONTROL & PREVENTION, INC.",Maintenance of Equipment,$264 ,2/1/2016
"*ABC HUMANE WILDLIFE CONTROL & PREVENTION, INC.",Revenue Vehicle General Servicing,"$3,052.50 ",2/1/2016
"*ABC HUMANE WILDLIFE CONTROL & PREVENTION, INC.",Revenue Vehicle General Servicing,"$10,675.50 ",3/1/2016
"*ABC HUMANE WILDLIFE CONTROL & PREVENTION, INC.",Revenue Vehicle General Servicing,$33 ,3/2/2016
"*ABC HUMANE WILDLIFE CONTROL & PREVENTION, INC.",Revenue Vehicle General Servicing,$33 ,3/16/2016
"*ABC HUMANE WILDLIFE CONTROL & PREVENTION, INC.",Revenue Vehicle General Servicing,"$1,518 ",7/12/2016
"*ABC HUMANE WILDLIFE CONTROL & PREVENTION, INC.",Revenue Vehicle General Servicing,"$4,158 ",7/14/2016
"*ABC HUMANE WILDLIFE CONTROL & PREVENTION, INC.",Revenue Vehicle General Servicing,$660 ,8/30/2016
"*ABC HUMANE WILDLIFE CONTROL & PREVENTION, INC.",Revenue Vehicle General Servicing,"$3,630 ",8/31/2016
"*ABC HUMANE WILDLIFE CONTROL & PREVENTION, INC.",Revenue Vehicle General Servicing,"$8,299.50 ",9/1/2016
"*ABC HUMANE WILDLIFE CONTROL & PREVENTION, INC.",Revenue Vehicle General Servicing,"$3,267 ",9/21/2016
"*ABC HUMANE WILDLIFE CONTROL & PREVENTION, INC.",Revenue Vehicle General Servicing,$957 ,10/6/2016
"*ABC HUMANE WILDLIFE CONTROL & PREVENTION, INC.",Revenue Vehicle General Servicing,"$6,831 ",11/2/2016
"*ABC HUMANE WILDLIFE CONTROL & PREVENTION, INC.",Revenue Vehicle General Servicing,$693 ,11/7/2016
"*ABC HUMANE WILDLIFE CONTROL & PREVENTION, INC.",Revenue Vehicle General Servicing,"$4,620 ",11/9/2016
"*ABC HUMANE WILDLIFE CONTROL & PREVENTION, INC.",Revenue Vehicle General Servicing,$33 ,11/17/2016
"*ABC HUMANE WILDLIFE CONTROL & PREVENTION, INC.",Revenue Vehicle General Servicing,"$9,405 ",11/30/2016
"*ALL CHICAGO, INC.",Maintenance of Buildings,"$23,760 ",9/20/2016
"*ALLPOINTS SECURITY AND DETECTIVE, INC.",Administrative Support,"$39,345.62 ",1/28/2016
"*ALLPOINTS SECURITY AND DETECTIVE, INC.",Administrative Support,"$28,656.38 ",2/19/2016
"*ALLPOINTS SECURITY AND DETECTIVE, INC.",Administrative Support,"$33,585.12 ",3/25/2016
"*ALLPOINTS SECURITY AND DETECTIVE, INC.",Administrative Support,"$17,152.24 ",5/16/2016
"*ALLPOINTS SECURITY AND DETECTIVE, INC.",Administrative Support,"$54,289.20 ",5/19/2016
"*ALLPOINTS SECURITY AND DETECTIVE, INC.",Administrative Support,"$24,435.76 ",6/8/2016
"*ALLPOINTS SECURITY AND DETECTIVE, INC.",Administrative Support,"$17,399.12 ",6/13/2016
"*ALLPOINTS SECURITY AND DETECTIVE, INC.",Administrative Support,"$11,823.40 ",6/30/2016
"*ALLPOINTS SECURITY AND DETECTIVE, INC.",Administrative Support,"$8,654.60 ",7/6/2016
"*ALLPOINTS SECURITY AND DETECTIVE, INC.",Administrative Support,"$8,255.78 ",7/8/2016
"*ALLPOINTS SECURITY AND DETECTIVE, INC.",Administrative Support,"$13,240.72 ",7/12/2016
"*ALLPOINTS SECURITY AND DETECTIVE, INC.",Administrative Support,"$21,119.96 ",7/22/2016
"*ALLPOINTS SECURITY AND DETECTIVE, INC.",Administrative Support,"$24,193.10 ",8/5/2016
"*ALLPOINTS SECURITY AND DETECTIVE, INC.",Administrative Support,"$21,614.52 ",8/23/2016
"*ALLPOINTS SECURITY AND DETECTIVE, INC.",Administrative Support,"$25,076.44 ",9/2/2016
"*ALLPOINTS SECURITY AND DETECTIVE, INC.",Administrative Support,"$22,277.68 ",9/16/2016
"*ALLPOINTS SECURITY AND DETECTIVE, INC.",Administrative Support,"$22,255.48 ",10/12/2016
"*ALLPOINTS SECURITY AND DETECTIVE, INC.",Administrative Support,"$21,525.09 ",10/14/2016
"*ALLPOINTS SECURITY AND DETECTIVE, INC.",Administrative Support,"$21,891.58 ",10/28/2016
"*ALLPOINTS SECURITY AND DETECTIVE, INC.",Administrative Support,"$25,764.18 ",11/14/2016
"*ALLPOINTS SECURITY AND DETECTIVE, INC.",Administrative Support,"$20,752.58 ",11/25/2016
"*ALLPOINTS SECURITY AND DETECTIVE, INC.",Consulting Services,"$4,123.18 ",12/19/2016
"*ALLPOINTS SECURITY AND DETECTIVE, INC.",Administrative Support,"$44,443.79 ",12/23/2016
"*ALVAREZ, INC.",Maintenance of Buildings,"$10,739 ",5/11/2016
"*ALVAREZ, INC.",Maintenance of Buildings,"$20,262.74 ",6/13/2016
"*ALVAREZ, INC.",Maintenance of Buildings,"$23,076.58 ",7/21/2016
"*ALVAREZ, INC.",Maintenance of Buildings,"$20,133.93 ",8/17/2016
"*ALVAREZ, INC.",Maintenance of Equipment,"$22,526.10 ",9/20/2016
"*ALVAREZ, INC.",Maintenance of Equipment,"$19,236.41 ",11/2/2016
"*ALVAREZ, INC.",Maintenance of Buildings,"$26,536.50 ",12/30/2016
"*AMERICAN SURVEYING & ENGINEERING, PC",Professional / Technical,"$4,983.47 ",5/26/2016
"*AMERICAN SURVEYING & ENGINEERING, PC",Administrative Support,$925.97 ,6/1/2016
"*AMERICAN SURVEYING & ENGINEERING, PC",Administrative Support,"$6,952.55 ",6/30/2016
"*AMERICAN SURVEYING & ENGINEERING, PC",Administrative Support,$925.97 ,7/1/2016
"*AMERICAN SURVEYING & ENGINEERING, PC",Administrative Support,$959.47 ,9/16/2016
"*AMERICAN SURVEYING & ENGINEERING, PC",Administrative Support,"$3,967.06 ",10/25/2016
"*ANDERSON & SHAH ROOFING, INC.",Maintenance of Buildings,"$10,870.40 ",1/12/2016
"*ANDERSON & SHAH ROOFING, INC.",Maintenance of Buildings,"$16,398.20 ",1/14/2016
"*ANDERSON & SHAH ROOFING, INC.",Maintenance of Buildings,"$16,468 ",1/20/2016
"*ANDERSON & SHAH ROOFING, INC.",Maintenance of Buildings,"$6,234.25 ",2/4/2016
"*ANDERSON & SHAH ROOFING, INC.",Contract Construction,"$402,179.65 ",2/12/2016
"*ANDERSON & SHAH ROOFING, INC.",Maintenance of Buildings,"$11,188.68 ",2/12/2016
"*ANDERSON & SHAH ROOFING, INC.",Contract Construction,"$1,870.40 ",2/17/2016
"*ANDERSON & SHAH ROOFING, INC.",Maintenance of Buildings,"$7,800.60 ",2/18/2016
"*ANDERSON & SHAH ROOFING, INC.",Maintenance of Buildings,"$5,944.80 ",2/25/2016
"*ANDERSON & SHAH ROOFING, INC.",Maintenance of Buildings,"$7,747.20 ",3/15/2016
"*ANDERSON & SHAH ROOFING, INC.",Maintenance of Buildings,"$7,561.80 ",5/17/2016
"*ANDERSON & SHAH ROOFING, INC.",Maintenance of Buildings,"$82,000 ",5/20/2016
"*ANDERSON & SHAH ROOFING, INC.",Maintenance of Buildings,"$8,145.50 ",5/26/2016
"*ANDERSON & SHAH ROOFING, INC.",Maintenance of Buildings,"$1,057.35 ",6/30/2016
"*ANDERSON & SHAH ROOFING, INC.",Maintenance of Buildings,"$2,719.60 ",7/1/2016
"*ANDERSON & SHAH ROOFING, INC.",Maintenance of Buildings,"$1,996.40 ",7/5/2016
"*ANDERSON & SHAH ROOFING, INC.",Maintenance of Buildings,"$3,017.90 ",7/7/2016
"*ANDERSON & SHAH ROOFING, INC.",Contract Construction,"$180,204.55 ",7/13/2016
"*ANDERSON & SHAH ROOFING, INC.",Maintenance of Buildings,"$39,500 ",7/20/2016
"*ANDERSON & SHAH ROOFING, INC.",Maintenance of Buildings,"$17,176.98 ",7/27/2016
"*ANDERSON & SHAH ROOFING, INC.",Maintenance of Buildings,"$2,719.60 ",8/11/2016
"*ANDERSON & SHAH ROOFING, INC.",Maintenance of Buildings,"$11,500 ",8/25/2016
"*ANDERSON & SHAH ROOFING, INC.",Maintenance of Buildings,"$12,883.20 ",9/7/2016
"*ANDERSON & SHAH ROOFING, INC.",Maintenance of Buildings,"$10,403.73 ",9/9/2016
"*ANDERSON & SHAH ROOFING, INC.",Maintenance of Buildings,"$22,558.22 ",9/15/2016
"*ANDERSON & SHAH ROOFING, INC.",Maintenance of Buildings,"$2,744.60 ",9/29/2016
"*ANDERSON & SHAH ROOFING, INC.",Maintenance of Buildings,"$4,254.56 ",10/6/2016
"*ANDERSON & SHAH ROOFING, INC.",Maintenance of Buildings,"$10,906.74 ",10/13/2016
"*ANDERSON & SHAH ROOFING, INC.",Maintenance of Buildings,"$49,800 ",10/20/2016
"*ANDERSON & SHAH ROOFING, INC.",Maintenance of Buildings,"$3,012 ",10/27/2016
"*ANDERSON & SHAH ROOFING, INC.",Maintenance of Buildings,"$17,345.98 ",11/17/2016
"*ANDERSON & SHAH ROOFING, INC.",Maintenance of Buildings,"$17,075.25 ",11/22/2016
"*ANDERSON & SHAH ROOFING, INC.",Maintenance of Buildings,$509.32 ,11/30/2016
"*ANDERSON & SHAH ROOFING, INC.",Contract Construction,"$89,466.35 ",12/13/2016
"*ANDERSON & SHAH ROOFING, INC.",Maintenance of Buildings,"$7,748.82 ",12/29/2016
"*APEX CONSULTING ENGINEERS, LLC",Administrative Support,"$4,560 ",6/16/2016
*AZTEC SUPPLY CORPORATION,Equipment Purchases,"$37,130.60 ",11/21/2016
"*B & L DISTRIBUTORS, INC.",Facilities Cleaning,"$13,200 ",2/23/2016
"*BEARINGS & INDUSTRIAL SUPPLY COMPANY, INC.",Equipment Purchases,"$20,332.08 ",7/15/2016
"*BEARINGS & INDUSTRIAL SUPPLY COMPANY, INC.",Equipment Purchases,$518.34 ,7/27/2016
*CHICAGO ADVISORS LLC,Consulting Services,"$21,125 ",10/7/2016
*CHICAGO ADVISORS LLC,Consulting Services,"$20,800 ",10/26/2016
*CHICAGO ADVISORS LLC,Consulting Services,"$21,840 ",11/28/2016
*CHICAGO ADVISORS LLC,Consulting Services,"$19,760 ",12/28/2016
*CONCERNED PEST CONTROL,Maintenance of Equipment,$45.83 ,8/10/2016
*CONCERNED PEST CONTROL,Maintenance of Equipment,$54.99 ,8/31/2016
*CONCERNED PEST CONTROL,Revenue Vehicle General Servicing,"$1,197.61 ",9/13/2016
*CONCERNED PEST CONTROL,Revenue Vehicle General Servicing,$12.39 ,10/6/2016
"*D B STERLIN CONSULTANTS, INC.",Administrative Support,"$2,850 ",7/1/2016
"*DATA MEDIA PRODUCTS, INC.",Administrative Support,$252.93 ,3/31/2016
"*DATA MEDIA PRODUCTS, INC.",Administrative Support,$320.26 ,6/13/2016
"*DIGBY'S DETECTIVE & SECURITY AGENCY, INC.",Security Rail,"$143,654.88 ",1/26/2016
"*DIGBY'S DETECTIVE & SECURITY AGENCY, INC.",Security Rail,"$98,825.65 ",2/5/2016
"*DIGBY'S DETECTIVE & SECURITY AGENCY, INC.",Security Rail,"$95,947.07 ",3/8/2016
"*DIGBY'S DETECTIVE & SECURITY AGENCY, INC.",Security Facilities,"$3,742.10 ",4/6/2016
"*DIGBY'S DETECTIVE & SECURITY AGENCY, INC.",Security Rail,"$144,936.53 ",4/22/2016
"*DIGBY'S DETECTIVE & SECURITY AGENCY, INC.",Security Rail,"$47,898.74 ",5/2/2016
"*DIGBY'S DETECTIVE & SECURITY AGENCY, INC.",Security Rail,"$47,881.11 ",5/12/2016
"*DIGBY'S DETECTIVE & SECURITY AGENCY, INC.",Security Rail,"$144,040.73 ",6/29/2016
"*DIGBY'S DETECTIVE & SECURITY AGENCY, INC.",Security Rail,"$50,330.76 ",7/27/2016
"*DIGBY'S DETECTIVE & SECURITY AGENCY, INC.",Security Rail,"$48,755.81 ",8/11/2016
"*DIGBY'S DETECTIVE & SECURITY AGENCY, INC.",Security Rail,"$147,162.21 ",9/22/2016
"*DIGBY'S DETECTIVE & SECURITY AGENCY, INC.",Security Rail,"$144,305.02 ",10/14/2016
"*DIGBY'S DETECTIVE & SECURITY AGENCY, INC.",Security Rail,"$48,347.48 ",10/31/2016
"*DIGBY'S DETECTIVE & SECURITY AGENCY, INC.",Security Rail,"$96,896.73 ",11/30/2016
"*DIGBY'S DETECTIVE & SECURITY AGENCY, INC.",Security Rail,"$96,251.17 ",12/22/2016
"*DIRECTIONS TRAINING CENTER, INC.",Training - Students,$370 ,3/3/2016
"*ENVIROPLUS, INC.",Maintenance of Buildings,"$3,751 ",5/19/2016
"*ENVIROPLUS, INC.",Contract Construction,"$1,529 ",8/5/2016
"*ENVIROPLUS, INC.",Management,"$10,730.75 ",8/10/2016
"*FLOOD TESTING LABORATORIES, INC.",Equipment Purchases,$295 ,8/31/2016
"*FYI & ASSOCIATES, INC.",Maintenance of Buildings,"$18,988 ",9/8/2016
"*FYI & ASSOCIATES, INC.",Maintenance of Buildings,"$18,988 ",10/6/2016
"*FYI & ASSOCIATES, INC.",Maintenance of Buildings,$681 ,10/25/2016
"*FYI & ASSOCIATES, INC.",Maintenance of Buildings,"$18,988 ",11/3/2016
"*FYI & ASSOCIATES, INC.",Maintenance of Buildings,"$18,988 ",12/7/2016
"*GALAXY ENVIRONMENTAL, INC.",Maintenance of Buildings,"$17,250 ",1/5/2016
*GREAT LAKES METALS CORPORATION,Equipment Purchases,"$13,003.98 ",1/4/2016
*GREAT LAKES METALS CORPORATION,Equipment Purchases,"$42,970.61 ",1/20/2016
*GREAT LAKES METALS CORPORATION,Equipment Purchases,"$4,191.01 ",9/14/2016
*GREAT LAKES METALS CORPORATION,Maintenance of Rail Stations,"$1,224 ",10/18/2016
*HIGHWAY SAFETY CORPORATON,Maintenance of Track & Roadway-Electrical,"$6,897 ",4/13/2016
*HIGHWAY SAFETY CORPORATON,Maintenance of Buildings,"$15,641.50 ",5/2/2016
*HIGHWAY SAFETY CORPORATON,Maintenance of Track & Roadway-Electrical,"$2,359.60 ",5/2/2016
*HIGHWAY SAFETY CORPORATON,Maintenance of Structures,"$6,829 ",5/19/2016
*HIGHWAY SAFETY CORPORATON,Maintenance of Structures,"$15,830 ",6/1/2016
*HIGHWAY SAFETY CORPORATON,Maintenance of Track & Roadway,"$13,205.60 ",6/6/2016
*HIGHWAY SAFETY CORPORATON,Maintenance of Track & Roadway,"$2,239.50 ",7/20/2016
*HIGHWAY SAFETY CORPORATON,Maintenance of Buildings,"$2,953 ",7/22/2016
*HIGHWAY SAFETY CORPORATON,Maintenance of Structures,"$19,670.50 ",7/22/2016
*HIGHWAY SAFETY CORPORATON,Maintenance of Structures,"$7,560 ",8/1/2016
*HIGHWAY SAFETY CORPORATON,Maintenance of Structures,"$2,974 ",9/23/2016
*HIGHWAY SAFETY CORPORATON,Equipment Purchases,"$7,424.25 ",10/3/2016
*HIGHWAY SAFETY CORPORATON,Maintenance of Track & Roadway,"$3,521.08 ",10/11/2016
*HIGHWAY SAFETY CORPORATON,Maintenance of Buildings,"$2,246.40 ",11/3/2016
*HIGHWAY SAFETY CORPORATON,Maintenance of Structures,$368 ,11/3/2016
*HIGHWAY SAFETY CORPORATON,Maintenance of Track & Roadway,"$10,000.75 ",11/3/2016
*HIGHWAY SAFETY CORPORATON,Maintenance of Track & Roadway-Electrical,"$5,817 ",11/3/2016
"*INDUSTRIAL FENCE, INC.",Maintenance of Buildings,"$11,519.01 ",1/7/2016
"*INDUSTRIAL FENCE, INC.",Maintenance of Buildings,"$1,797 ",1/11/2016
"*INDUSTRIAL FENCE, INC.",Maintenance of Buildings,"$4,788.51 ",1/15/2016
"*INDUSTRIAL FENCE, INC.",Contract Construction,"$33,538.44 ",1/20/2016
"*INDUSTRIAL FENCE, INC.",Equipment Purchases,"$9,555.84 ",1/20/2016
"*INDUSTRIAL FENCE, INC.",Maintenance of Buildings,$920.04 ,2/1/2016
"*INDUSTRIAL FENCE, INC.",Maintenance of Buildings,"$11,145.81 ",2/23/2016
"*INDUSTRIAL FENCE, INC.",Maintenance of Buildings,$154 ,2/24/2016
"*INDUSTRIAL FENCE, INC.",Maintenance of Buildings,"$4,704.99 ",2/26/2016
"*INDUSTRIAL FENCE, INC.",Maintenance of Buildings,"$4,290.01 ",3/2/2016
"*INDUSTRIAL FENCE, INC.",Maintenance of Buildings,"$9,646.82 ",3/4/2016
"*INDUSTRIAL FENCE, INC.",Maintenance of Buildings,$730.82 ,3/8/2016
"*INDUSTRIAL FENCE, INC.",Collision/Damage Repairs,"$1,045.94 ",3/11/2016
"*INDUSTRIAL FENCE, INC.",Maintenance of Buildings,"$2,368.43 ",3/11/2016
"*INDUSTRIAL FENCE, INC.",Maintenance of Buildings,$418.41 ,3/18/2016
"*INDUSTRIAL FENCE, INC.",Maintenance of Buildings,"$2,998.93 ",3/21/2016
"*INDUSTRIAL FENCE, INC.",Maintenance of Buildings,$622.95 ,3/22/2016
"*INDUSTRIAL FENCE, INC.",Maintenance of Buildings,"$1,636.28 ",3/24/2016
"*INDUSTRIAL FENCE, INC.",Maintenance of Buildings,$940.50 ,4/4/2016
"*INDUSTRIAL FENCE, INC.",Maintenance of Buildings,$793.76 ,4/19/2016
"*INDUSTRIAL FENCE, INC.",Maintenance of Buildings,$604.86 ,4/21/2016
"*INDUSTRIAL FENCE, INC.",Maintenance of Buildings,"$3,327.80 ",4/25/2016
"*INDUSTRIAL FENCE, INC.",Maintenance of Buildings,"$9,066.69 ",4/26/2016
"*INDUSTRIAL FENCE, INC.",Maintenance of Buildings,"$6,770.39 ",4/28/2016
"*INDUSTRIAL FENCE, INC.",Maintenance of Buildings,"$2,563.92 ",5/3/2016
"*INDUSTRIAL FENCE, INC.",Maintenance of Buildings,"$5,995.84 ",5/10/2016
"*INDUSTRIAL FENCE, INC.",Maintenance of Buildings,"$5,730.05 ",5/18/2016
"*INDUSTRIAL FENCE, INC.",Maintenance of Buildings,"$1,599.65 ",5/20/2016
"*INDUSTRIAL FENCE, INC.",Equipment Purchases,"$34,763.13 ",5/27/2016
"*INDUSTRIAL FENCE, INC.",Maintenance of Buildings,"$2,094 ",6/8/2016
"*INDUSTRIAL FENCE, INC.",Maintenance of Buildings,"$3,705.58 ",6/9/2016
"*INDUSTRIAL FENCE, INC.",Maintenance of Buildings,"$7,252.54 ",6/28/2016
"*INDUSTRIAL FENCE, INC.",Maintenance of Buildings,$250 ,7/1/2016
"*INDUSTRIAL FENCE, INC.",Maintenance of Buildings,"$6,277.25 ",7/5/2016
"*INDUSTRIAL FENCE, INC.",Maintenance of Buildings,"$2,876.34 ",7/6/2016
"*INDUSTRIAL FENCE, INC.",Maintenance of Buildings,"$2,495.61 ",7/12/2016
"*INDUSTRIAL FENCE, INC.",Maintenance of Buildings,"$4,136 ",7/21/2016
"*INDUSTRIAL FENCE, INC.",Maintenance of Buildings,"$5,027.29 ",8/3/2016
"*INDUSTRIAL FENCE, INC.",Maintenance of Buildings,"$5,043.72 ",8/16/2016
"*INDUSTRIAL FENCE, INC.",Maintenance of Buildings,"$3,162.68 ",8/19/2016
"*INDUSTRIAL FENCE, INC.",Maintenance of Buildings,"$6,485.53 ",8/24/2016
"*INDUSTRIAL FENCE, INC.",Maintenance of Buildings,"$6,184.37 ",9/12/2016
"*INDUSTRIAL FENCE, INC.",Maintenance of Buildings,"$18,369.14 ",9/22/2016
"*INDUSTRIAL FENCE, INC.",Maintenance of Buildings,"$4,400.39 ",10/27/2016
"*INFORMITY NETWORK, LTD.",Maintain/Repair Communications  Equip,"$42,161.81 ",1/29/2016
"*INFORMITY NETWORK, LTD.",Maintain/Repair Communications  Equip,"$38,351.96 ",4/21/2016
"*INFORMITY NETWORK, LTD.",Maintain/Repair Communications  Equip,"$24,153.29 ",5/13/2016
"*INFORMITY NETWORK, LTD.",Maintain/Repair Communications  Equip,"$17,630.82 ",5/24/2016
"*INFORMITY NETWORK, LTD.",Maintain/Repair Communications  Equip,"$30,794.77 ",5/27/2016
"*INFORMITY NETWORK, LTD.",Maintain/Repair Communications  Equip,"$48,755.33 ",7/20/2016
"*INFORMITY NETWORK, LTD.",Maintain/Repair Communications  Equip,"$48,605.96 ",10/31/2016
"*J-TEC METAL PRODUCTS, INC",Equipment Purchases,"$21,896 ",1/8/2016
"*J-TEC METAL PRODUCTS, INC",Equipment Purchases,"$51,574.79 ",1/15/2016
"*J-TEC METAL PRODUCTS, INC",Equipment Purchases,"$50,017.80 ",2/3/2016
*J.P. SIMONS & COMPANY,Equipment Purchases,"$20,785.10 ",1/6/2016
*J.P. SIMONS & COMPANY,Ind/Envir Safety & Fire Prevention  (Non-Safety  Areas),$565 ,1/8/2016
*J.P. SIMONS & COMPANY,Maintenance of Buildings,"$1,034.76 ",1/8/2016
*J.P. SIMONS & COMPANY,Maintenance of Equipment,"$5,719.90 ",1/8/2016
*J.P. SIMONS & COMPANY,Maintenance of Track & Roadway-Electrical,$747.96 ,1/8/2016
*J.P. SIMONS & COMPANY,Equipment Purchases,"$24,848 ",1/13/2016
*J.P. SIMONS & COMPANY,Maintenance of Equipment,"$7,941.96 ",1/13/2016
*J.P. SIMONS & COMPANY,Maintenance of Lighting,"$1,049.76 ",1/13/2016
*J.P. SIMONS & COMPANY,Maintenance of Buildings,"$6,628.77 ",1/15/2016
*J.P. SIMONS & COMPANY,Maintenance of Equipment,$390 ,1/15/2016
*J.P. SIMONS & COMPANY,Maintenance of Rail Stations,"$1,423 ",1/15/2016
*J.P. SIMONS & COMPANY,Maintenance of Buildings,$476.28 ,1/19/2016
*J.P. SIMONS & COMPANY,Maintenance of Equipment,$852 ,1/19/2016
*J.P. SIMONS & COMPANY,Maintenance of Lighting,$719.95 ,1/19/2016
*J.P. SIMONS & COMPANY,Maintenance of Buildings,"$1,404.72 ",1/25/2016
*J.P. SIMONS & COMPANY,Maintenance of Buildings,$941.13 ,1/28/2016
*J.P. SIMONS & COMPANY,Maintenance of Equipment,"$3,554.06 ",1/28/2016
*J.P. SIMONS & COMPANY,Maintenance of Rail Stations,"$2,060.97 ",1/28/2016
*J.P. SIMONS & COMPANY,Maintenance of Equipment,"$3,972.50 ",2/4/2016
*J.P. SIMONS & COMPANY,Maintenance of Lighting,"$13,500.80 ",2/4/2016
*J.P. SIMONS & COMPANY,Maintenance of Rail Stations,$620 ,2/4/2016
*J.P. SIMONS & COMPANY,Equipment Purchases,"$16,509.62 ",2/5/2016
*J.P. SIMONS & COMPANY,Maintenance of Buildings,"$4,751 ",2/9/2016
*J.P. SIMONS & COMPANY,Maintenance of Equipment,$703.50 ,2/9/2016
*J.P. SIMONS & COMPANY,Maintenance of Lighting,$900 ,2/9/2016
*J.P. SIMONS & COMPANY,Maintenance of Rail Stations,$669.20 ,2/9/2016
*J.P. SIMONS & COMPANY,Maintenance of Equipment,$734.66 ,2/11/2016
*J.P. SIMONS & COMPANY,Maintenance of Rail Stations,"$2,212 ",2/11/2016
*J.P. SIMONS & COMPANY,Maintenance of Buildings,"$1,209.86 ",2/18/2016
*J.P. SIMONS & COMPANY,Maintenance of Equipment,"$22,991.52 ",2/18/2016
*J.P. SIMONS & COMPANY,Maintenance of Rail Stations,"$1,226.70 ",2/18/2016
*J.P. SIMONS & COMPANY,Equipment Purchases,$695.80 ,2/24/2016
*J.P. SIMONS & COMPANY,Ind/Envir Safety & Fire Prevention  (Non-Safety  Areas),$56 ,2/25/2016
*J.P. SIMONS & COMPANY,Maintenance of Buildings,"$1,414.94 ",2/25/2016
*J.P. SIMONS & COMPANY,Maintenance of Equipment,"$2,483 ",2/25/2016
*J.P. SIMONS & COMPANY,Maintenance of Lighting,$119.70 ,2/25/2016
*J.P. SIMONS & COMPANY,Maintenance of Rail Stations,$557.10 ,2/25/2016
*J.P. SIMONS & COMPANY,Equipment Purchases,"$208,572 ",3/2/2016
*J.P. SIMONS & COMPANY,Maintenance of Buildings,"$1,813.75 ",3/4/2016
*J.P. SIMONS & COMPANY,Maintenance of Equipment,"$1,312 ",3/4/2016
*J.P. SIMONS & COMPANY,Maintenance of Equipment,"$19,581 ",3/10/2016
*J.P. SIMONS & COMPANY,Maintenance of Buildings,"$4,951.84 ",3/17/2016
*J.P. SIMONS & COMPANY,Maintenance of Equipment,"$18,095.38 ",3/17/2016
*J.P. SIMONS & COMPANY,Maintenance of Lighting,"$3,255.52 ",3/17/2016
*J.P. SIMONS & COMPANY,Maintenance of Rail Stations,"$1,248.58 ",3/17/2016
*J.P. SIMONS & COMPANY,Equipment Purchases,$301 ,3/18/2016
*J.P. SIMONS & COMPANY,Maintenance of Buildings,"$6,985.01 ",3/18/2016
*J.P. SIMONS & COMPANY,Maintenance of Equipment,"$5,519.76 ",3/18/2016
*J.P. SIMONS & COMPANY,Maintenance of Lighting,$940.11 ,3/18/2016
*J.P. SIMONS & COMPANY,Maintenance of Rail Stations,$238 ,3/18/2016
*J.P. SIMONS & COMPANY,Maintenance of Buildings,"$1,346.25 ",3/22/2016
*J.P. SIMONS & COMPANY,Maintenance of Equipment,"$8,914.78 ",3/22/2016
*J.P. SIMONS & COMPANY,Maintenance of Buildings,$316 ,3/24/2016
*J.P. SIMONS & COMPANY,Maintenance of Equipment,"$4,581.70 ",3/24/2016
*J.P. SIMONS & COMPANY,Equipment Purchases,"$55,522.04 ",3/25/2016
*J.P. SIMONS & COMPANY,Maintenance of Lighting,"$1,409 ",3/28/2016
*J.P. SIMONS & COMPANY,Equipment Purchases,$53.75 ,3/30/2016
*J.P. SIMONS & COMPANY,Maintenance of Buildings,$729.98 ,4/1/2016
*J.P. SIMONS & COMPANY,Maintenance of Equipment,"$1,920 ",4/1/2016
*J.P. SIMONS & COMPANY,Maintenance of Track & Roadway-Electrical,"$39,900 ",4/1/2016
*J.P. SIMONS & COMPANY,Maintenance of Buildings,$900 ,4/4/2016
*J.P. SIMONS & COMPANY,Equipment Purchases,"$1,997.88 ",4/6/2016
*J.P. SIMONS & COMPANY,Maintenance of Buildings,$251.20 ,4/6/2016
*J.P. SIMONS & COMPANY,Maintenance of Equipment,"$33,787.42 ",4/6/2016
*J.P. SIMONS & COMPANY,Maintenance of Rail Stations,$103.16 ,4/6/2016
*J.P. SIMONS & COMPANY,Maintenance of Buildings,"$2,917.72 ",4/11/2016
*J.P. SIMONS & COMPANY,Maintenance of Equipment,$852 ,4/11/2016
*J.P. SIMONS & COMPANY,Maintenance of Buildings,$303.85 ,4/13/2016
*J.P. SIMONS & COMPANY,Maintenance of Equipment,"$1,232.32 ",4/13/2016
*J.P. SIMONS & COMPANY,Maintenance of Rail Stations,"$1,754 ",4/13/2016
*J.P. SIMONS & COMPANY,Maintenance of Buildings,"$6,029.40 ",4/14/2016
*J.P. SIMONS & COMPANY,Maintenance of Equipment,"$4,290 ",4/14/2016
*J.P. SIMONS & COMPANY,Maintenance of Lighting,$149.40 ,4/14/2016
*J.P. SIMONS & COMPANY,Maintenance of Buildings,$645 ,4/19/2016
*J.P. SIMONS & COMPANY,Maintenance of Equipment,"$1,277.44 ",4/19/2016
*J.P. SIMONS & COMPANY,Maintenance of Track & Roadway-Electrical,"$1,656 ",4/19/2016
*J.P. SIMONS & COMPANY,Maintainance of Signal & Control Equipment,"$3,145 ",4/26/2016
*J.P. SIMONS & COMPANY,Maintenance of Buildings,"$2,403.56 ",4/26/2016
*J.P. SIMONS & COMPANY,Maintenance of Equipment,"$2,397 ",4/26/2016
*J.P. SIMONS & COMPANY,Maintenance of Rail Stations,"$1,929 ",4/26/2016
*J.P. SIMONS & COMPANY,Equipment Purchases,"$27,804.55 ",4/29/2016
*J.P. SIMONS & COMPANY,Maintenance of Buildings,"$4,875 ",5/5/2016
*J.P. SIMONS & COMPANY,Maintenance of Equipment,"$6,829.40 ",5/5/2016
*J.P. SIMONS & COMPANY,Maintenance of Rail Stations,"$1,636 ",5/5/2016
*J.P. SIMONS & COMPANY,Equipment Purchases,"$15,385.62 ",5/6/2016
*J.P. SIMONS & COMPANY,Maintenance of Buildings,"$8,318.73 ",5/10/2016
*J.P. SIMONS & COMPANY,Maintenance of Equipment,"$2,917.52 ",5/10/2016
*J.P. SIMONS & COMPANY,Maintenance of Lighting,$370.47 ,5/10/2016
*J.P. SIMONS & COMPANY,Maintenance of Rail Stations,$395.20 ,5/10/2016
*J.P. SIMONS & COMPANY,Maintenance of Buildings,"$3,038.78 ",5/12/2016
*J.P. SIMONS & COMPANY,Maintenance of Equipment,"$4,463.10 ",5/12/2016
*J.P. SIMONS & COMPANY,Maintenance of Rail Stations,$461.42 ,5/12/2016
*J.P. SIMONS & COMPANY,Maintenance of Buildings,$378 ,5/16/2016
*J.P. SIMONS & COMPANY,Maintenance of Lighting,"$2,172 ",5/16/2016
*J.P. SIMONS & COMPANY,Equipment Purchases,"$4,991.98 ",5/18/2016
*J.P. SIMONS & COMPANY,Maintenance of Buildings,"$3,202.50 ",5/23/2016
*J.P. SIMONS & COMPANY,Maintenance of Equipment,"$2,708.64 ",5/23/2016
*J.P. SIMONS & COMPANY,Maintenance of Track & Roadway-Electrical,$486.70 ,5/23/2016
*J.P. SIMONS & COMPANY,Maintenance of Buildings,"$33,156 ",5/26/2016
*J.P. SIMONS & COMPANY,Maintenance of Equipment,"$3,667.52 ",5/26/2016
*J.P. SIMONS & COMPANY,Maintenance of Lighting,$958.17 ,5/26/2016
*J.P. SIMONS & COMPANY,Maintenance of Track & Roadway-Electrical,"$39,900 ",5/26/2016
*J.P. SIMONS & COMPANY,Maintenance of Buildings,$140.25 ,6/2/2016
*J.P. SIMONS & COMPANY,Maintenance of Equipment,"$5,572.20 ",6/2/2016
*J.P. SIMONS & COMPANY,Maintenance of Buildings,"$1,972.80 ",6/9/2016
*J.P. SIMONS & COMPANY,Maintenance of Equipment,$499.26 ,6/9/2016
*J.P. SIMONS & COMPANY,Maintenance of Lighting,"$24,523 ",6/9/2016
*J.P. SIMONS & COMPANY,Maintenance of Track & Roadway,"$5,354.03 ",6/9/2016
*J.P. SIMONS & COMPANY,Maintenance of Track & Roadway-Electrical,$952.32 ,6/9/2016
*J.P. SIMONS & COMPANY,Equipment Purchases,$194.94 ,6/15/2016
*J.P. SIMONS & COMPANY,Equipment Purchases,"$106,414 ",6/16/2016
*J.P. SIMONS & COMPANY,Maintenance of Buildings,"$11,058.10 ",6/16/2016
*J.P. SIMONS & COMPANY,Maintenance of Equipment,"$1,071 ",6/16/2016
*J.P. SIMONS & COMPANY,Maintenance of Rail Stations,"$1,555.28 ",6/16/2016
*J.P. SIMONS & COMPANY,Equipment Purchases,"$2,447.16 ",6/22/2016
*J.P. SIMONS & COMPANY,Maintenance of Buildings,"$1,523 ",6/29/2016
*J.P. SIMONS & COMPANY,Maintenance of Track & Roadway-Electrical,"$1,464 ",6/29/2016
*J.P. SIMONS & COMPANY,Maintenance of Buildings,"$6,922.93 ",7/6/2016
*J.P. SIMONS & COMPANY,Maintenance of Equipment,"$3,350.60 ",7/6/2016
*J.P. SIMONS & COMPANY,Maintenance of Lighting,"$1,497 ",7/6/2016
*J.P. SIMONS & COMPANY,Maintenance of Rail Stations,$323.93 ,7/6/2016
*J.P. SIMONS & COMPANY,Maintenance of Rail Stations,$899.50 ,7/12/2016
*J.P. SIMONS & COMPANY,Maintenance of Buildings,"$2,041.51 ",7/20/2016
*J.P. SIMONS & COMPANY,Maintenance of Rail Stations,"$2,184 ",7/20/2016
*J.P. SIMONS & COMPANY,Maintenance of Buildings,$887.42 ,7/27/2016
*J.P. SIMONS & COMPANY,Maintenance of Rail Stations,$871.96 ,7/27/2016
*J.P. SIMONS & COMPANY,Maintenance of Substations,"$11,164.40 ",7/27/2016
*J.P. SIMONS & COMPANY,Maintenance of Track & Roadway-Electrical,"$7,009.91 ",7/27/2016
*J.P. SIMONS & COMPANY,Maintenance of Buildings,"$16,500 ",8/4/2016
*J.P. SIMONS & COMPANY,Maintenance of Equipment,"$3,533.50 ",8/4/2016
*J.P. SIMONS & COMPANY,Maintenance of Buildings,"$3,388.25 ",8/9/2016
*J.P. SIMONS & COMPANY,Maintenance of Equipment,"$4,511.28 ",8/9/2016
*J.P. SIMONS & COMPANY,Maintenance of Rail Stations,$655.58 ,8/9/2016
*J.P. SIMONS & COMPANY,Maintenance of Track & Roadway-Electrical,"$7,980 ",8/9/2016
*J.P. SIMONS & COMPANY,Maintenance of Equipment,"$2,983.50 ",8/11/2016
*J.P. SIMONS & COMPANY,Maintenance of Buildings,$206 ,8/16/2016
*J.P. SIMONS & COMPANY,Maintenance of Equipment,"$6,394.20 ",8/16/2016
*J.P. SIMONS & COMPANY,Maintenance of Lighting,$583.92 ,8/16/2016
*J.P. SIMONS & COMPANY,Maintenance of Buildings,"$26,365.04 ",8/23/2016
*J.P. SIMONS & COMPANY,Maintenance of Equipment,"$17,195.84 ",8/23/2016
*J.P. SIMONS & COMPANY,Maintenance of Lighting,"$5,871 ",8/23/2016
*J.P. SIMONS & COMPANY,Maintenance of Rail Stations,$386.12 ,8/23/2016
*J.P. SIMONS & COMPANY,Equipment Purchases,$227.40 ,8/25/2016
*J.P. SIMONS & COMPANY,Maintenance of Buildings,"$2,140.49 ",8/25/2016
*J.P. SIMONS & COMPANY,Maintenance of Equipment,"$3,390.02 ",8/25/2016
*J.P. SIMONS & COMPANY,Maintenance of Substations,$765.86 ,8/25/2016
*J.P. SIMONS & COMPANY,Maintenance of Track & Roadway-Electrical,$277.30 ,8/25/2016
*J.P. SIMONS & COMPANY,Maintenance of Buildings,"$1,732.75 ",9/1/2016
*J.P. SIMONS & COMPANY,Maintenance of Equipment,"$4,898.37 ",9/1/2016
*J.P. SIMONS & COMPANY,Maintenance of Track & Roadway-Electrical,"$6,619.20 ",9/1/2016
*J.P. SIMONS & COMPANY,Equipment Purchases,"$7,358 ",9/7/2016
*J.P. SIMONS & COMPANY,Maintenance of Equipment,"$1,920.55 ",9/7/2016
*J.P. SIMONS & COMPANY,Maintenance of Track & Roadway-Electrical,"$10,514.64 ",9/7/2016
*J.P. SIMONS & COMPANY,Maintenance of Equipment,"$3,969 ",9/13/2016
*J.P. SIMONS & COMPANY,Maintenance of Track & Roadway-Electrical,$157.92 ,9/13/2016
*J.P. SIMONS & COMPANY,Maintenance of Equipment,"$8,190.82 ",9/15/2016
*J.P. SIMONS & COMPANY,Maintenance of Rail Stations,$207.96 ,9/15/2016
*J.P. SIMONS & COMPANY,Maintenance of Buildings,$150 ,9/21/2016
*J.P. SIMONS & COMPANY,Maintenance of Equipment,"$9,202.34 ",9/21/2016
*J.P. SIMONS & COMPANY,Maintenance of Lighting,"$1,271.04 ",9/21/2016
*J.P. SIMONS & COMPANY,Maintenance of Buildings,"$3,942.49 ",9/27/2016
*J.P. SIMONS & COMPANY,Maintenance of Equipment,"$2,034.60 ",9/27/2016
*J.P. SIMONS & COMPANY,Maintenance of Buildings,"$6,448.32 ",9/28/2016
*J.P. SIMONS & COMPANY,Maintenance of Equipment,"$5,535.75 ",9/28/2016
*J.P. SIMONS & COMPANY,Maintenance of Rail Stations,$518.41 ,9/28/2016
*J.P. SIMONS & COMPANY,Equipment Purchases,"$22,330 ",9/29/2016
*J.P. SIMONS & COMPANY,Equipment Purchases,"$17,892.79 ",10/5/2016
*J.P. SIMONS & COMPANY,Maintenance of Buildings,$752.36 ,10/6/2016
*J.P. SIMONS & COMPANY,Maintenance of Equipment,"$179,018.71 ",10/6/2016
*J.P. SIMONS & COMPANY,Maintenance of Lighting,"$1,367.76 ",10/6/2016
*J.P. SIMONS & COMPANY,Maintenance of Rail Stations,"$2,204.60 ",10/6/2016
*J.P. SIMONS & COMPANY,Equipment Purchases,"$139,602.11 ",10/7/2016
*J.P. SIMONS & COMPANY,Maintenance of Equipment,$76.70 ,10/11/2016
*J.P. SIMONS & COMPANY,Maintenance of Buildings,$352.39 ,10/18/2016
*J.P. SIMONS & COMPANY,Maintenance of Equipment,"$17,414.29 ",10/18/2016
*J.P. SIMONS & COMPANY,Maintenance of Rail Stations,"$2,855.82 ",10/18/2016
*J.P. SIMONS & COMPANY,Maintenance of Buildings,"$2,624.67 ",10/20/2016
*J.P. SIMONS & COMPANY,Maintenance of Rail Stations,"$1,137.08 ",10/20/2016
*J.P. SIMONS & COMPANY,Maintenance of Substations,"$1,005 ",10/20/2016
*J.P. SIMONS & COMPANY,Maintenance of Track & Roadway-Electrical,"$2,567.25 ",10/20/2016
*J.P. SIMONS & COMPANY,Maintenance of Buildings,"$2,217.95 ",10/25/2016
*J.P. SIMONS & COMPANY,Maintenance of Equipment,"$14,704.08 ",10/25/2016
*J.P. SIMONS & COMPANY,Maintenance of Rail Stations,$681.99 ,10/25/2016
*J.P. SIMONS & COMPANY,Maintenance of Substations,$133.30 ,10/25/2016
*J.P. SIMONS & COMPANY,Maintenance of Track & Roadway-Electrical,"$1,668.56 ",10/25/2016
*J.P. SIMONS & COMPANY,Maintenance of Buildings,$132.57 ,10/31/2016
*J.P. SIMONS & COMPANY,Maintenance of Equipment,"$1,670.15 ",10/31/2016
*J.P. SIMONS & COMPANY,Maintenance of Escalators,"$6,465 ",10/31/2016
*J.P. SIMONS & COMPANY,Maintenance of Rail Stations,"$1,181 ",11/1/2016
*J.P. SIMONS & COMPANY,Maintenance of Buildings,"$7,233.97 ",11/8/2016
*J.P. SIMONS & COMPANY,Maintenance of Equipment,"$1,368.07 ",11/8/2016
*J.P. SIMONS & COMPANY,Maintenance of Lighting,$458.04 ,11/8/2016
*J.P. SIMONS & COMPANY,Equipment Purchases,$453.98 ,11/9/2016
*J.P. SIMONS & COMPANY,Maintenance of Buildings,"$12,565 ",11/9/2016
*J.P. SIMONS & COMPANY,Maintenance of Equipment,$582.45 ,11/9/2016
*J.P. SIMONS & COMPANY,Maintenance of Rail Stations,$892.05 ,11/11/2016
*J.P. SIMONS & COMPANY,Maintenance of Track & Roadway-Electrical,"$1,159.93 ",11/11/2016
*J.P. SIMONS & COMPANY,Equipment Purchases,$70.30 ,11/14/2016
*J.P. SIMONS & COMPANY,Equipment Purchases,"$5,711.55 ",11/17/2016
*J.P. SIMONS & COMPANY,Maintenance of Buildings,$281.52 ,11/17/2016
*J.P. SIMONS & COMPANY,Maintenance of Equipment,$915 ,11/17/2016
*J.P. SIMONS & COMPANY,Maintenance of Buildings,"$1,579.19 ",11/23/2016
*J.P. SIMONS & COMPANY,Maintenance of Equipment,"$76,632.04 ",11/23/2016
*J.P. SIMONS & COMPANY,Maintenance of Track & Roadway-Electrical,"$5,979.48 ",11/23/2016
*J.P. SIMONS & COMPANY,Maintenance of Buildings,$289.68 ,11/25/2016
*J.P. SIMONS & COMPANY,Maintenance of Equipment,"$8,478.37 ",11/25/2016
*J.P. SIMONS & COMPANY,Maintenance of Lighting,"$39,525.10 ",11/25/2016
*J.P. SIMONS & COMPANY,Equipment Purchases,"$2,428.20 ",11/30/2016
*J.P. SIMONS & COMPANY,Equipment Purchases,"$3,679 ",12/1/2016
*J.P. SIMONS & COMPANY,Maintenance of Buildings,"$2,424.59 ",12/1/2016
*J.P. SIMONS & COMPANY,Maintenance of Equipment,$965.80 ,12/1/2016
*J.P. SIMONS & COMPANY,Maintenance of Lighting,"$2,163.20 ",12/1/2016
*J.P. SIMONS & COMPANY,Maintenance of Equipment,"$10,866.28 ",12/8/2016
*J.P. SIMONS & COMPANY,Maintenance of Track & Roadway-Electrical,$680 ,12/8/2016
*J.P. SIMONS & COMPANY,Maintenance of Buildings,"$30,198.18 ",12/13/2016
*J.P. SIMONS & COMPANY,Maintenance of Equipment,"$7,823.02 ",12/13/2016
*J.P. SIMONS & COMPANY,Maintenance of Lighting,"$36,416.64 ",12/13/2016
*J.P. SIMONS & COMPANY,Maintenance of Rail Stations,$530.12 ,12/13/2016
*J.P. SIMONS & COMPANY,Maintenance of Track & Roadway-Electrical,"$2,068.22 ",12/13/2016
*J.P. SIMONS & COMPANY,Equipment Purchases,"$1,537.05 ",12/14/2016
*J.P. SIMONS & COMPANY,Maintenance of Buildings,"$4,704 ",12/15/2016
*J.P. SIMONS & COMPANY,Maintenance of Equipment,"$4,310.97 ",12/15/2016
*J.P. SIMONS & COMPANY,Maintenance of Rail Stations,"$5,418 ",12/15/2016
*J.P. SIMONS & COMPANY,Maintenance of Equipment,"$2,541.34 ",12/20/2016
*J.P. SIMONS & COMPANY,Maintenance of Escalators,"$8,829.20 ",12/20/2016
*J.P. SIMONS & COMPANY,Maintenance of Buildings,"$10,993.34 ",12/29/2016
*J.P. SIMONS & COMPANY,Maintenance of Equipment,"$10,897.27 ",12/29/2016
*J.P. SIMONS & COMPANY,Maintenance of Lighting,"$1,121.40 ",12/29/2016
*J.P. SIMONS & COMPANY,Maintenance of Rail Stations,$162 ,12/29/2016
"*KOPICO, INC.",Accounting,$92 ,2/4/2016
"*KOPICO, INC.",Payroll,"$2,100 ",2/4/2016
"*KOPICO, INC.",Computer Operations,"$1,236 ",4/5/2016
"*KOPICO, INC.",Administrative Support,$813.70 ,9/7/2016
"*L.A. COURT REPORTERS, LLC.",I&D Claims (Damage Reserve),"$3,760.10 ",1/14/2016
"*L.A. COURT REPORTERS, LLC.",Consulting Services,$415 ,1/20/2016
"*L.A. COURT REPORTERS, LLC.",Administrative Support,$442 ,1/26/2016
"*L.A. COURT REPORTERS, LLC.",I&D Claims (Damage Reserve),$276.50 ,1/28/2016
"*L.A. COURT REPORTERS, LLC.",I&D Claims (Damage Reserve),$882 ,2/4/2016
"*L.A. COURT REPORTERS, LLC.",I&D Claims (Damage Reserve),$220 ,2/12/2016
"*L.A. COURT REPORTERS, LLC.",I&D Claims (Damage Reserve),$70 ,2/17/2016
"*L.A. COURT REPORTERS, LLC.",I&D Claims (Damage Reserve),"$1,076.70 ",2/18/2016
"*L.A. COURT REPORTERS, LLC.",Administrative Support,$777 ,2/25/2016
"*L.A. COURT REPORTERS, LLC.",I&D Claims (Damage Reserve),"$1,218.15 ",3/4/2016
"*L.A. COURT REPORTERS, LLC.",Administrative Support,$501 ,3/17/2016
"*L.A. COURT REPORTERS, LLC.",Administrative Support,$766.20 ,3/24/2016
"*L.A. COURT REPORTERS, LLC.",I&D Claims (Damage Reserve),"$7,103.15 ",3/30/2016
"*L.A. COURT REPORTERS, LLC.",Administrative Support,$216 ,3/31/2016
"*L.A. COURT REPORTERS, LLC.",Administrative Support,$566.50 ,4/14/2016
"*L.A. COURT REPORTERS, LLC.",I&D Claims (Damage Reserve),"$15,945.35 ",4/20/2016
"*L.A. COURT REPORTERS, LLC.",I&D Claims (Damage Reserve),$442.55 ,4/21/2016
"*L.A. COURT REPORTERS, LLC.",Administrative Support,$644.20 ,5/20/2016
"*L.A. COURT REPORTERS, LLC.",Administrative Support,$584 ,5/24/2016
"*L.A. COURT REPORTERS, LLC.",Administrative Support,$612.70 ,6/23/2016
"*L.A. COURT REPORTERS, LLC.",I&D Claims (Damage Reserve),"$3,599.90 ",6/24/2016
"*L.A. COURT REPORTERS, LLC.",Administrative Support,$203.70 ,7/7/2016
"*L.A. COURT REPORTERS, LLC.",I&D Claims (Damage Reserve),"$3,682.15 ",7/13/2016
"*L.A. COURT REPORTERS, LLC.",I&D Claims (Damage Reserve),"$7,167.15 ",7/26/2016
"*L.A. COURT REPORTERS, LLC.",Administrative Support,$687.50 ,7/28/2016
"*L.A. COURT REPORTERS, LLC.",I&D Claims (Damage Reserve),"$3,824.95 ",8/4/2016
"*L.A. COURT REPORTERS, LLC.",Administrative Support,$707 ,8/11/2016
"*L.A. COURT REPORTERS, LLC.",Administrative Support,$507.10 ,8/23/2016
"*L.A. COURT REPORTERS, LLC.",I&D Claims (Damage Reserve),"$5,201.15 ",8/24/2016
"*L.A. COURT REPORTERS, LLC.",Consulting Services,$292 ,8/29/2016
"*L.A. COURT REPORTERS, LLC.",Administrative Support,$463.80 ,9/21/2016
"*L.A. COURT REPORTERS, LLC.",I&D Claims (Damage Reserve),"$1,040.70 ",9/23/2016
"*L.A. COURT REPORTERS, LLC.",I&D Claims (Damage Reserve),"$3,050.65 ",10/3/2016
"*L.A. COURT REPORTERS, LLC.",I&D Claims (Damage Reserve),"$1,797.05 ",10/11/2016
"*L.A. COURT REPORTERS, LLC.",Administrative Support,$285 ,10/19/2016
"*L.A. COURT REPORTERS, LLC.",Administrative Support,$578.60 ,11/2/2016
"*L.A. COURT REPORTERS, LLC.",I&D Claims (Damage Reserve),"$4,397.20 ",11/14/2016
"*L.A. COURT REPORTERS, LLC.",Administrative Support,$831 ,11/23/2016
"*L.A. COURT REPORTERS, LLC.",Consulting Services,$267 ,11/23/2016
"*L.A. COURT REPORTERS, LLC.",I&D Claims (Damage Reserve),"$1,047.80 ",11/28/2016
"*L.A. COURT REPORTERS, LLC.",Administrative Support,$758 ,11/30/2016
"*L.A. COURT REPORTERS, LLC.",Administrative Support,$515.30 ,12/9/2016
"*LADY LIFT, INC.",Maintenance of Structures,"$43,750 ",1/5/2016
"*LADY LIFT, INC.",Maintenance of Track & Roadway,"$1,300 ",1/5/2016
"*LADY LIFT, INC.",Maintenance of Track & Roadway-Electrical,"$5,109.21 ",1/5/2016
"*LADY LIFT, INC.",Maintenance of Track & Roadway,"$2,600 ",1/20/2016
"*LADY LIFT, INC.",Maintenance of Track & Roadway-Electrical,"$1,500 ",1/20/2016
"*LADY LIFT, INC.",Maintenance of Track & Roadway,"$1,300 ",1/21/2016
"*LADY LIFT, INC.",Maintenance of Track & Roadway,$450 ,1/25/2016
"*LADY LIFT, INC.",Maintenance of Equipment,"$1,100 ",1/27/2016
"*LADY LIFT, INC.",Equipment Purchases,"$4,050 ",2/12/2016
"*LADY LIFT, INC.",Maintenance of Equipment,"$1,300 ",2/26/2016
"*LADY LIFT, INC.",Maintenance of Structures,"$15,500 ",3/1/2016
"*LADY LIFT, INC.",Maintenance of Track & Roadway,"$3,800 ",3/1/2016
"*LADY LIFT, INC.",Equipment Purchases,"$8,700 ",3/4/2016
"*LADY LIFT, INC.",Maintenance of Equipment,"$2,400 ",3/9/2016
*M. WELLS PRINTING COMPANY,Marketing,"$37,750 ",1/27/2016
*M. WELLS PRINTING COMPANY,Marketing,$304 ,2/1/2016
*M. WELLS PRINTING COMPANY,Consulting Services,"$4,698 ",2/3/2016
*M. WELLS PRINTING COMPANY,Administrative Support,"$2,650 ",3/10/2016
*M. WELLS PRINTING COMPANY,Administrative Support,"$31,203 ",3/14/2016
*M. WELLS PRINTING COMPANY,Marketing,"$10,367 ",3/17/2016
*M. WELLS PRINTING COMPANY,Administrative Support,"$2,398 ",3/24/2016
*M. WELLS PRINTING COMPANY,Management,$896 ,4/19/2016
*M. WELLS PRINTING COMPANY,Marketing,"$11,337 ",7/6/2016
*M. WELLS PRINTING COMPANY,Marketing,"$23,343 ",8/11/2016
*M. WELLS PRINTING COMPANY,Marketing,$198 ,8/19/2016
*M. WELLS PRINTING COMPANY,Drug & Alcohol Testing,$879 ,9/1/2016
*M. WELLS PRINTING COMPANY,Marketing,$998 ,10/24/2016
*M. WELLS PRINTING COMPANY,Administrative Support,"$37,695 ",11/4/2016
*M. WELLS PRINTING COMPANY,Marketing,"$36,083 ",11/18/2016
*M. WELLS PRINTING COMPANY,Marketing,$198 ,11/21/2016
*M. WELLS PRINTING COMPANY,Marketing,$396 ,12/8/2016
*M. WELLS PRINTING COMPANY,Marketing,"$6,379 ",12/14/2016
*M. WELLS PRINTING COMPANY,Marketing,"$4,798 ",12/20/2016
*M. WELLS PRINTING COMPANY,Marketing,$475 ,12/30/2016
"*MARJ HALPERIN CONSULTING, INC.",Tops Trapeze Timekeeping,"$1,143.75 ",3/9/2016
"*MIDWAY OVERHEAD DOOR, INC.",Maintenance of Buildings,"$14,119.10 ",2/19/2016
"*MIDWAY OVERHEAD DOOR, INC.",Maintenance of Buildings,"$1,399.99 ",2/29/2016
"*MIDWAY OVERHEAD DOOR, INC.",Maintenance of Buildings,"$2,605 ",3/21/2016
"*MIDWAY OVERHEAD DOOR, INC.",Maintenance of Buildings,"$16,392.86 ",3/23/2016
"*MIDWAY OVERHEAD DOOR, INC.",Maintenance of Buildings,"$22,680 ",4/14/2016
"*MIDWAY OVERHEAD DOOR, INC.",Maintenance of Buildings,"$3,778 ",4/26/2016
"*MIDWAY OVERHEAD DOOR, INC.",Maintenance of Buildings,"$3,492 ",5/5/2016
"*MIDWAY OVERHEAD DOOR, INC.",Maintenance of Equipment,"$25,839.20 ",5/19/2016
"*MIDWAY OVERHEAD DOOR, INC.",Maintenance of Buildings,$240 ,6/1/2016
"*MIDWAY OVERHEAD DOOR, INC.",Maintenance of Buildings,"$9,610 ",7/12/2016
"*MIDWAY OVERHEAD DOOR, INC.",Maintenance of Equipment,"$20,301 ",7/15/2016
"*MIDWAY OVERHEAD DOOR, INC.",Maintenance of Buildings,"$13,725 ",10/6/2016
"*MIDWAY OVERHEAD DOOR, INC.",Maintenance of Buildings,"$46,518.52 ",11/2/2016
"*MIDWAY OVERHEAD DOOR, INC.",Maintenance of Buildings,"$19,208.90 ",11/14/2016
"*MIDWAY OVERHEAD DOOR, INC.",Maintenance of Buildings,"$1,316 ",12/16/2016
"*MIDWAY OVERHEAD DOOR, INC.",Maintenance of Buildings,"$23,100.01 ",12/19/2016
"*MIDWAY OVERHEAD DOOR, INC.",Maintenance of Buildings,"$7,998.82 ",12/28/2016
*NAK-MAN CORPORATION,Equipment Purchases,"$24,260.23 ",1/15/2016
*NAK-MAN CORPORATION,Equipment Purchases,"$1,373.90 ",2/24/2016
*NAK-MAN CORPORATION,Equipment Purchases,"$21,307 ",3/9/2016
*NAK-MAN CORPORATION,Repair Non-Revenue Equipment,$365.50 ,3/17/2016
*NAK-MAN CORPORATION,Equipment Purchases,"$5,842.60 ",3/23/2016
*NAK-MAN CORPORATION,Equipment Purchases,"$23,804.68 ",6/27/2016
*NAK-MAN CORPORATION,Maintenance of Rail Stations,"$9,745.25 ",10/19/2016
*NAK-MAN CORPORATION,Equipment Purchases,"$29,881.62 ",10/24/2016
*NAK-MAN CORPORATION,Maintenance of Track & Roadway-Electrical,"$7,836.66 ",12/8/2016
*NAK-MAN CORPORATION,Maintenance of Buildings,"$1,944 ",12/27/2016
"*NSN EMPLOYER SERVICES, INC.",Policy Adminsitration,"$20,875 ",3/3/2016
"*NSN EMPLOYER SERVICES, INC.",Policy Adminsitration,$26.50 ,3/7/2016
"*NSN EMPLOYER SERVICES, INC.",Policy Adminsitration,"$20,875 ",4/28/2016
"*NSN EMPLOYER SERVICES, INC.",Policy Adminsitration,$45.50 ,6/2/2016
"*NSN EMPLOYER SERVICES, INC.",Policy Adminsitration,$6.75 ,7/5/2016
"*NSN EMPLOYER SERVICES, INC.",Policy Adminsitration,"$20,875 ",7/28/2016
"*NSN EMPLOYER SERVICES, INC.",Policy Adminsitration,"$20,875 ",10/28/2016
"*NSN EMPLOYER SERVICES, INC.",Policy Adminsitration,$34.75 ,12/14/2016
"*PEST PRO'S UNLIMITED, LLC",Maintenance of Equipment,$977.50 ,8/23/2016
"*PEST PRO'S UNLIMITED, LLC",Maintenance of Equipment,$85 ,8/26/2016
"*PEST PRO'S UNLIMITED, LLC",Maintenance of Equipment,$85 ,8/30/2016
"*PEST PRO'S UNLIMITED, LLC",Maintenance of Equipment,$170 ,9/2/2016
"*PEST PRO'S UNLIMITED, LLC",Maintenance of Equipment,$85 ,9/9/2016
"*PEST PRO'S UNLIMITED, LLC",Maintenance of Equipment,$85 ,9/28/2016
"*PEST PRO'S UNLIMITED, LLC",Maintenance of Equipment,$85 ,9/29/2016
"*PEST PRO'S UNLIMITED, LLC",Maintenance of Equipment,$85 ,10/19/2016
"*PEST PRO'S UNLIMITED, LLC",Maintenance of Equipment,$85 ,10/25/2016
"*PEST PRO'S UNLIMITED, LLC",Maintenance of Equipment,$510 ,10/27/2016
"*PROGRESSIVE INDUSTRIES, INC.",Training - Students,$293.80 ,1/28/2016
"*PROGRESSIVE INDUSTRIES, INC.","Facilities Operating Expenses (Rent,Utilities,etc)","$5,838.60 ",2/2/2016
"*PROGRESSIVE INDUSTRIES, INC.","Facilities Operating Expenses (Rent,Utilities,etc)","$15,610.52 ",2/23/2016
"*PROGRESSIVE INDUSTRIES, INC.",Maintenance of Buildings,$492.18 ,3/10/2016
"*PROGRESSIVE INDUSTRIES, INC.",General Shop/Gar/Term Repairs & Svcs,"$9,343.75 ",4/7/2016
"*PROGRESSIVE INDUSTRIES, INC.",General Shop/Gar/Term Repairs & Svcs,"$2,917.46 ",6/16/2016
"*PROGRESSIVE INDUSTRIES, INC.",General Shop/Gar/Term Repairs & Svcs,$253.35 ,7/1/2016
"*PW ASSOCIATES, INC.",Drug & Alcohol Testing,"$5,050.50 ",1/21/2016
"*PW ASSOCIATES, INC.",Drug & Alcohol Testing,"$4,384.50 ",1/25/2016
"*PW ASSOCIATES, INC.",Drug & Alcohol Testing,"$3,245.50 ",5/16/2016
"*PW ASSOCIATES, INC.",Drug & Alcohol Testing,"$1,998 ",6/1/2016
"*PW ASSOCIATES, INC.",Drug & Alcohol Testing,"$2,331 ",7/7/2016
"*PW ASSOCIATES, INC.",Drug & Alcohol Testing,"$2,904.50 ",8/9/2016
"*PW ASSOCIATES, INC.",Drug & Alcohol Testing,"$1,017.50 ",9/1/2016
"*PW ASSOCIATES, INC.",Drug & Alcohol Testing,$703 ,10/6/2016
"*PW ASSOCIATES, INC.",Drug & Alcohol Testing,"$1,702 ",11/9/2016
"*PW ASSOCIATES, INC.",Drug & Alcohol Testing,$536.50 ,12/8/2016
"*QUANTUM CROSSINGS, LLC",Contract Construction,"$1,401,497.10 ",1/27/2016
"*QUANTUM CROSSINGS, LLC",Equipment Purchases,"$10,033.89 ",1/27/2016
"*QUANTUM CROSSINGS, LLC",Maintain/Repair Communications  Equip,"$453,560.60 ",4/21/2016
"*QUANTUM CROSSINGS, LLC",Maintain/Repair Communications  Equip,"$261,886 ",4/28/2016
*RAE PRODUCTS AND CHEMICALS CORPORATION,Maintenance of Buildings,$596.89 ,1/8/2016
"*ROSS BARNEY ARCHITECTS, INC.",Professional / Technical,"$60,000 ",11/10/2016
"*SENRYO, INC.",Consulting Services,"$26,190 ",7/27/2016
"*SENRYO, INC.",Consulting Services,"$16,846.25 ",8/1/2016
"*SENRYO, INC.",Consulting Services,"$26,325 ",8/8/2016
"*SENRYO, INC.",Consulting Services,"$21,113.75 ",9/2/2016
"*SENRYO, INC.",Consulting Services,"$34,950.50 ",9/14/2016
"*SENRYO, INC.",Consulting Services,"$23,760 ",10/19/2016
"*SENRYO, INC.",Consulting Services,"$92,224 ",10/26/2016
"*SENRYO, INC.",Consulting Services,"$11,940 ",10/31/2016
"*SENRYO, INC.",Consulting Services,"$5,080 ",11/7/2016
"*SENRYO, INC.",Consulting Services,"$47,040 ",12/13/2016
"*SENRYO, INC.",Consulting Services,"$56,626 ",12/19/2016
"*SENRYO, INC.",Consulting Services,"$23,368 ",12/30/2016
"*SEVILLE STAFFING, LLC",Professional / Technical,"$17,846.64 ",1/11/2016
"*SEVILLE STAFFING, LLC",Tops Trapeze Timekeeping,"$1,245.99 ",1/15/2016
"*SEVILLE STAFFING, LLC",Tops Trapeze Timekeeping,$612.36 ,1/20/2016
"*SEVILLE STAFFING, LLC",Tops Trapeze Timekeeping,$357.21 ,1/27/2016
"*SEVILLE STAFFING, LLC",Administrative Support,"$2,530.11 ",1/28/2016
"*SEVILLE STAFFING, LLC",Tops Trapeze Timekeeping,$510.30 ,2/11/2016
"*SEVILLE STAFFING, LLC",Tops Trapeze Timekeeping,$510.30 ,2/17/2016
"*SEVILLE STAFFING, LLC",Tops Trapeze Timekeeping,$833.50 ,2/24/2016
"*SEVILLE STAFFING, LLC",Professional / Technical,"$30,695.74 ",2/26/2016
"*SEVILLE STAFFING, LLC",Professional / Technical,"$4,316.80 ",3/2/2016
"*SEVILLE STAFFING, LLC",Tops Trapeze Timekeeping,$510.30 ,3/2/2016
"*SEVILLE STAFFING, LLC",Administrative Support,"$2,854.83 ",3/4/2016
"*SEVILLE STAFFING, LLC",Tops Trapeze Timekeeping,"$1,122.67 ",3/28/2016
"*SEVILLE STAFFING, LLC",Tops Trapeze Timekeeping,$510.30 ,3/30/2016
"*SEVILLE STAFFING, LLC",Professional / Technical,"$15,738.64 ",4/13/2016
"*SEVILLE STAFFING, LLC",Professional / Technical,"$13,176.42 ",4/21/2016
"*SEVILLE STAFFING, LLC",Professional / Technical,"$4,523.80 ",4/27/2016
"*SEVILLE STAFFING, LLC",Administrative Support,"$1,651.10 ",5/13/2016
"*SEVILLE STAFFING, LLC",Professional / Technical,"$7,404.50 ",5/16/2016
"*SEVILLE STAFFING, LLC",Professional / Technical,"$4,466.30 ",5/18/2016
"*SEVILLE STAFFING, LLC",Professional / Technical,"$4,311.50 ",5/25/2016
"*SEVILLE STAFFING, LLC",Professional / Technical,"$22,101.50 ",7/7/2016
"*SEVILLE STAFFING, LLC",Professional / Technical,"$4,397.74 ",7/21/2016
"*SEVILLE STAFFING, LLC",Professional / Technical,"$8,105.50 ",7/22/2016
"*SEVILLE STAFFING, LLC",Professional / Technical,"$4,529.10 ",7/28/2016
"*SEVILLE STAFFING, LLC",Administrative Support,"$2,022.60 ",8/3/2016
"*SEVILLE STAFFING, LLC",Professional / Technical,"$19,468.52 ",9/12/2016
"*SEVILLE STAFFING, LLC",Professional / Technical,"$16,154.42 ",10/20/2016
"*SEVILLE STAFFING, LLC",Professional / Technical,"$17,269.84 ",10/31/2016
"*SEVILLE STAFFING, LLC",Professional / Technical,"$12,075.52 ",11/28/2016
"*SEVILLE STAFFING, LLC",Professional / Technical,"$4,309.72 ",11/29/2016
"*SEVILLE STAFFING, LLC",Professional / Technical,"$4,259.30 ",12/1/2016
"*SEVILLE STAFFING, LLC",Professional / Technical,"$3,326.08 ",12/8/2016
"*SEVILLE STAFFING, LLC",Professional / Technical,"$4,316.80 ",12/15/2016
*SOUTH SUBURBAN PEST CONTROL,Maintenance of Equipment,"$4,711.50 ",1/18/2016
*SOUTH SUBURBAN PEST CONTROL,Maintenance of Equipment,"$4,687.20 ",2/5/2016
*SOUTH SUBURBAN PEST CONTROL,Maintenance of Equipment,"$4,630.50 ",3/15/2016
*SOUTH SUBURBAN PEST CONTROL,Maintenance of Equipment,"$4,581.90 ",4/6/2016
*SOUTH SUBURBAN PEST CONTROL,Maintenance of Equipment,"$2,085.20 ",6/2/2016
*SOUTH SUBURBAN PEST CONTROL,Maintenance of Equipment,"$2,334.80 ",6/9/2016
*SOUTH SUBURBAN PEST CONTROL,Maintenance of Equipment,"$2,300.40 ",6/16/2016
*SOUTH SUBURBAN PEST CONTROL,Maintenance of Equipment,"$4,609.80 ",7/7/2016
*SOUTH SUBURBAN PEST CONTROL,Maintenance of Equipment,"$4,552.60 ",8/10/2016
*SOUTH SUBURBAN PEST CONTROL,Maintenance of Equipment,"$2,443.50 ",8/11/2016
*SOUTH SUBURBAN PEST CONTROL,Maintenance of Equipment,"$4,474.60 ",9/8/2016
*SOUTH SUBURBAN PEST CONTROL,Maintenance of Equipment,"$4,482.40 ",10/17/2016
*SOUTH SUBURBAN PEST CONTROL,Maintenance of Equipment,"$4,500.60 ",11/9/2016
*SOUTH SUBURBAN PEST CONTROL,Maintenance of Equipment,"$4,365.40 ",12/14/2016
"*STAR & CREST DECORATING, INC.",Vehicle Rehab,"$27,724 ",9/21/2016
"*STELLAR COATING RESTORATION, LTD",Contract Construction,"$29,320 ",2/17/2016
*SULLIVAN REPORTING COMPANY,I&D Claims (Damage Reserve),$392.75 ,1/14/2016
*SULLIVAN REPORTING COMPANY,I&D Claims (Damage Reserve),$92.40 ,3/10/2016
*SULLIVAN REPORTING COMPANY,I&D Claims (Damage Reserve),$395.05 ,4/11/2016
*SULLIVAN REPORTING COMPANY,I&D Claims (Damage Reserve),$96.20 ,4/11/2016
*SULLIVAN REPORTING COMPANY,I&D Claims (Damage Reserve),"$2,007.40 ",6/9/2016
*SULLIVAN REPORTING COMPANY,I&D Claims (Damage Reserve),$336.40 ,6/20/2016
*SULLIVAN REPORTING COMPANY,I&D Claims (Damage Reserve),$18 ,7/19/2016
*SULLIVAN REPORTING COMPANY,I&D Claims (Damage Reserve),$314.85 ,8/16/2016
*SULLIVAN REPORTING COMPANY,I&D Claims (Damage Reserve),"$1,566.90 ",8/23/2016
*SULLIVAN REPORTING COMPANY,I&D Claims (Damage Reserve),$180.70 ,8/25/2016
*SULLIVAN REPORTING COMPANY,Administrative Support,"$1,621.85 ",8/30/2016
*SULLIVAN REPORTING COMPANY,Administrative Support,"$1,206.20 ",8/31/2016
*SULLIVAN REPORTING COMPANY,I&D Claims (Damage Reserve),$596.60 ,9/12/2016
*SULLIVAN REPORTING COMPANY,I&D Claims (Damage Reserve),$230.55 ,9/15/2016
*SULLIVAN REPORTING COMPANY,I&D Claims (Damage Reserve),$471.90 ,9/22/2016
*SULLIVAN REPORTING COMPANY,I&D Claims (Damage Reserve),$632.50 ,10/11/2016
*SULLIVAN REPORTING COMPANY,I&D Claims (Damage Reserve),$212.55 ,10/20/2016
*SULLIVAN REPORTING COMPANY,I&D Claims (Damage Reserve),$349.80 ,10/31/2016
*SULLIVAN REPORTING COMPANY,I&D Claims (Damage Reserve),$466.40 ,11/8/2016
*THE BLUEPRINT SHOPPE,Administrative Support,$738.36 ,1/26/2016
*THE BLUEPRINT SHOPPE,Administrative Support,$413.28 ,4/15/2016
*THE BLUEPRINT SHOPPE,Administrative Support,$887.32 ,4/18/2016
*THE BLUEPRINT SHOPPE,Administrative Support,"$1,673.42 ",7/6/2016
*THE BLUEPRINT SHOPPE,Administrative Support,"$1,133.02 ",9/7/2016
*THE BLUEPRINT SHOPPE,Administrative Support,"$1,232 ",10/4/2016
*THE BLUEPRINT SHOPPE,Administrative Support,"$1,737.26 ",10/31/2016
*THE BLUEPRINT SHOPPE,Administrative Support,"$1,510.46 ",11/16/2016
*THE BLUEPRINT SHOPPE,Administrative Support,"$2,132.20 ",11/25/2016
*THE BLUEPRINT SHOPPE,Administrative Support,$85.54 ,11/29/2016
*THE BLUEPRINT SHOPPE,Administrative Support,$406.42 ,12/5/2016
*THE BLUEPRINT SHOPPE,Administrative Support,$560.56 ,12/30/2016
"*UBICA, INC.",Professional / Technical,"$65,000 ",1/14/2016
"*UBICA, INC.",Professional / Technical,"$15,000 ",3/16/2016
"*UBICA, INC.",Professional / Technical,"$15,000 ",3/25/2016
"*UBICA, INC.",Professional / Technical,"$25,000 ",4/4/2016
"*UBICA, INC.",Professional / Technical,"$25,000 ",5/5/2016
"*UBICA, INC.",Professional / Technical,"$15,000 ",6/7/2016
"*UBICA, INC.",Professional / Technical,"$15,000 ",9/9/2016
"*UBICA, INC.",Professional / Technical,"$15,000 ",11/29/2016
"*UBICA, INC.",Professional / Technical,"$30,000 ",12/1/2016
*VIVA USA INC,Tops Trapeze Timekeeping,"$3,561.60 ",1/28/2016
*VIVA USA INC,Tops Trapeze Timekeeping,"$3,595.20 ",2/11/2016
*VIVA USA INC,Tops Trapeze Timekeeping,"$6,708.80 ",2/26/2016
*VIVA USA INC,Tops Trapeze Timekeeping,"$5,258.40 ",3/28/2016
*VIVA USA INC,Consulting Services,"$11,826 ",10/7/2016
*VIVA USA INC,Consulting Services,"$12,960 ",11/7/2016
"*WE'RE CLEANING, INC.",Maintenance of Buildings,"$17,035.31 ",6/28/2016
"*WE'RE CLEANING, INC.",Maintenance of Buildings,"$22,964 ",10/24/2016
"108 NORTH STATE ST. (CHICAGO) OWNER,LLC","Facilities Operating Expenses (Rent,Utilities,etc)","$27,600 ",1/26/2016
"108 NORTH STATE ST. (CHICAGO) OWNER,LLC","Facilities Operating Expenses (Rent,Utilities,etc)","$27,600 ",2/11/2016
"108 NORTH STATE ST. (CHICAGO) OWNER,LLC","Facilities Operating Expenses (Rent,Utilities,etc)","$30,600 ",3/4/2016
"108 NORTH STATE ST. (CHICAGO) OWNER,LLC","Facilities Operating Expenses (Rent,Utilities,etc)","$27,600 ",4/14/2016
"108 NORTH STATE ST. (CHICAGO) OWNER,LLC","Facilities Operating Expenses (Rent,Utilities,etc)","$27,600 ",5/26/2016
"108 NORTH STATE ST. (CHICAGO) OWNER,LLC","Facilities Operating Expenses (Rent,Utilities,etc)","$12,658 ",6/6/2016
"108 NORTH STATE ST. (CHICAGO) OWNER,LLC","Facilities Operating Expenses (Rent,Utilities,etc)","$27,600 ",7/15/2016
"108 NORTH STATE ST. (CHICAGO) OWNER,LLC","Facilities Operating Expenses (Rent,Utilities,etc)","$27,600 ",8/19/2016
"108 NORTH STATE ST. (CHICAGO) OWNER,LLC","Facilities Operating Expenses (Rent,Utilities,etc)","$27,600 ",9/23/2016
"108 NORTH STATE ST. (CHICAGO) OWNER,LLC","Facilities Operating Expenses (Rent,Utilities,etc)","$27,600 ",11/4/2016
"108 NORTH STATE ST. (CHICAGO) OWNER,LLC","Facilities Operating Expenses (Rent,Utilities,etc)","$27,600 ",12/1/2016
"108 NORTH STATE ST. (CHICAGO) OWNER,LLC","Facilities Operating Expenses (Rent,Utilities,etc)","$27,600 ",12/30/2016
"1ST METROPOLITAN TRANSLATION SERVICES, INC.",Marketing,$842 ,1/27/2016
"1ST METROPOLITAN TRANSLATION SERVICES, INC.",Administrative Support,"$1,000 ",3/28/2016
"1ST METROPOLITAN TRANSLATION SERVICES, INC.",Marketing,$336 ,6/3/2016
"1ST METROPOLITAN TRANSLATION SERVICES, INC.",Marketing,$155.75 ,8/12/2016
"1ST METROPOLITAN TRANSLATION SERVICES, INC.",Marketing,$688.50 ,11/11/2016
"22ND CENTURY TECHNOLOGIES, INC.",Consulting Services,"$2,677.50 ",8/3/2016
3252 N WILTON CONDOMINIUM ASS. INC,Real Estate,$281.28 ,1/15/2016
3252 N WILTON CONDOMINIUM ASS. INC,Real Estate,$281.28 ,2/10/2016
3252 N WILTON CONDOMINIUM ASS. INC,Real Estate,$281.28 ,3/7/2016
3252 N WILTON CONDOMINIUM ASS. INC,Real Estate,$281.28 ,4/13/2016
3252 N WILTON CONDOMINIUM ASS. INC,Real Estate,$281.28 ,5/4/2016
3252 N WILTON CONDOMINIUM ASS. INC,Real Estate,$281.28 ,6/13/2016
3252 N WILTON CONDOMINIUM ASS. INC,Real Estate,$281.28 ,7/27/2016
3252 N WILTON CONDOMINIUM ASS. INC,Real Estate,$281.28 ,8/24/2016
3252 N WILTON CONDOMINIUM ASS. INC,Real Estate,$281.28 ,9/28/2016
3252 N WILTON CONDOMINIUM ASS. INC,Real Estate,$281.28 ,11/21/2016
3252 N WILTON CONDOMINIUM ASS. INC,Real Estate,$281.28 ,12/13/2016
89TH STREET PARTNERS LLC,"Facilities Operating Expenses (Rent,Utilities,etc)","$27,968.92 ",2/1/2016
89TH STREET PARTNERS LLC,"Facilities Operating Expenses (Rent,Utilities,etc)","$27,968.92 ",3/4/2016
89TH STREET PARTNERS LLC,"Facilities Operating Expenses (Rent,Utilities,etc)","$27,968.92 ",4/4/2016
89TH STREET PARTNERS LLC,"Facilities Operating Expenses (Rent,Utilities,etc)","$27,968.92 ",5/3/2016
89TH STREET PARTNERS LLC,"Facilities Operating Expenses (Rent,Utilities,etc)","$27,968.92 ",6/9/2016
89TH STREET PARTNERS LLC,"Facilities Operating Expenses (Rent,Utilities,etc)","$27,968.92 ",7/15/2016
89TH STREET PARTNERS LLC,"Facilities Operating Expenses (Rent,Utilities,etc)","$27,968.92 ",7/26/2016
89TH STREET PARTNERS LLC,"Facilities Operating Expenses (Rent,Utilities,etc)","$27,968.92 ",8/19/2016
89TH STREET PARTNERS LLC,"Facilities Operating Expenses (Rent,Utilities,etc)","$27,968.92 ",9/23/2016
89TH STREET PARTNERS LLC,"Facilities Operating Expenses (Rent,Utilities,etc)","$27,968.92 ",11/4/2016
89TH STREET PARTNERS LLC,"Facilities Operating Expenses (Rent,Utilities,etc)","$27,968.92 ",12/1/2016
89TH STREET PARTNERS LLC,"Facilities Operating Expenses (Rent,Utilities,etc)","$27,968.92 ",12/30/2016
"A.C. ADVISORY, INC.",Professional / Technical,"$30,000 ",5/11/2016
A.R.D.C.,Administrative Support,"$21,032 ",12/1/2016
A.R.D.C.,Administrative Support,$121 ,12/23/2016
A1 TELETRONICS INC,Maintain/Repair Communications  Equip,"$2,997 ",2/11/2016
AARON S WOLF,Administrative Support,$550 ,4/26/2016
AARON S. WOLFF,Administrative Support,"$2,200 ",2/23/2016
AARON S. WOLFF,Administrative Support,"$2,200 ",10/4/2016
ABBOTT COURT REPORTING CSR,I&D Claims (Damage Reserve),"$1,022.70 ",3/10/2016
ABUSE CONTROL ASSOCIATES,Drug & Alcohol Testing,$249.60 ,3/2/2016
ABUSE CONTROL ASSOCIATES,Drug & Alcohol Testing,$249.60 ,3/22/2016
ABUSE CONTROL ASSOCIATES,Drug & Alcohol Testing,$249.60 ,4/19/2016
ABUSE CONTROL ASSOCIATES,Drug & Alcohol Testing,$249.60 ,5/26/2016
ABUSE CONTROL ASSOCIATES,Drug & Alcohol Testing,$249.60 ,6/22/2016
ABUSE CONTROL ASSOCIATES,Drug & Alcohol Testing,$499.20 ,8/23/2016
AC MEDTRAN INC,I&D Claims (Damage Reserve),$206 ,3/9/2016
AC MEDTRAN INC,I&D Claims (Damage Reserve),$170 ,3/10/2016
ACADEMIC LEGAL CONSULTING LLC,I&D Claims (Damage Reserve),"$11,050 ",4/14/2016
ACCOUNTEMPS/DIV. ROBERT HALF,Professional / Technical,"$1,303.50 ",1/11/2016
ACCOUNTEMPS/DIV. ROBERT HALF,Professional / Technical,"$3,534.30 ",1/12/2016
ACCOUNTEMPS/DIV. ROBERT HALF,Professional / Technical,"$7,090.20 ",1/18/2016
ACCOUNTEMPS/DIV. ROBERT HALF,Professional / Technical,"$1,298.05 ",1/19/2016
ACCOUNTEMPS/DIV. ROBERT HALF,Professional / Technical,"$2,140.65 ",1/25/2016
ACCOUNTEMPS/DIV. ROBERT HALF,Professional / Technical,"$2,276.76 ",2/1/2016
ACCOUNTEMPS/DIV. ROBERT HALF,Professional / Technical,"$1,276.86 ",2/2/2016
ACCOUNTEMPS/DIV. ROBERT HALF,Professional / Technical,"$1,418.79 ",2/4/2016
ACCOUNTEMPS/DIV. ROBERT HALF,Professional / Technical,"$16,189.85 ",3/3/2016
ACCOUNTEMPS/DIV. ROBERT HALF,Professional / Technical,"$1,454.80 ",3/7/2016
ACCOUNTEMPS/DIV. ROBERT HALF,Professional / Technical,"$3,541.32 ",3/8/2016
ACCOUNTEMPS/DIV. ROBERT HALF,Professional / Technical,"$22,826.59 ",3/28/2016
ACCOUNTEMPS/DIV. ROBERT HALF,Professional / Technical,"$2,400 ",3/29/2016
ACCOUNTEMPS/DIV. ROBERT HALF,Professional / Technical,"$4,946.80 ",4/4/2016
ACCOUNTEMPS/DIV. ROBERT HALF,Professional / Technical,"$2,400 ",4/6/2016
ACCOUNTEMPS/DIV. ROBERT HALF,Professional / Technical,"$9,261.72 ",4/12/2016
ACCOUNTEMPS/DIV. ROBERT HALF,Professional / Technical,"$7,482.97 ",4/18/2016
ACCOUNTEMPS/DIV. ROBERT HALF,Professional / Technical,"$2,400 ",4/19/2016
ACCOUNTEMPS/DIV. ROBERT HALF,Professional / Technical,"$7,576.80 ",4/25/2016
ACCOUNTEMPS/DIV. ROBERT HALF,Professional / Technical,"$2,400 ",4/26/2016
ACCOUNTEMPS/DIV. ROBERT HALF,Professional / Technical,"$7,121.02 ",5/2/2016
ACCOUNTEMPS/DIV. ROBERT HALF,Professional / Technical,"$2,040 ",5/5/2016
ACCOUNTEMPS/DIV. ROBERT HALF,Professional / Technical,"$4,144.56 ",5/9/2016
ACCOUNTEMPS/DIV. ROBERT HALF,Professional / Technical,"$4,708.62 ",5/16/2016
ACCOUNTEMPS/DIV. ROBERT HALF,Professional / Technical,"$4,824.03 ",5/17/2016
ACCOUNTEMPS/DIV. ROBERT HALF,Professional / Technical,"$2,400 ",5/18/2016
ACCOUNTEMPS/DIV. ROBERT HALF,Professional / Technical,"$2,077.26 ",5/19/2016
ACCOUNTEMPS/DIV. ROBERT HALF,Professional / Technical,"$2,686.97 ",5/24/2016
ACCOUNTEMPS/DIV. ROBERT HALF,Professional / Technical,"$2,040 ",5/25/2016
ACCOUNTEMPS/DIV. ROBERT HALF,Professional / Technical,"$9,478.19 ",6/1/2016
ACCOUNTEMPS/DIV. ROBERT HALF,Professional / Technical,"$2,400 ",6/2/2016
ACCOUNTEMPS/DIV. ROBERT HALF,Professional / Technical,"$6,067.44 ",6/7/2016
ACCOUNTEMPS/DIV. ROBERT HALF,Professional / Technical,"$2,040 ",6/9/2016
ACCOUNTEMPS/DIV. ROBERT HALF,Professional / Technical,"$5,574.39 ",6/14/2016
ACCOUNTEMPS/DIV. ROBERT HALF,Professional / Technical,"$2,400 ",6/15/2016
ACCOUNTEMPS/DIV. ROBERT HALF,Professional / Technical,"$9,895 ",6/30/2016
ACCOUNTEMPS/DIV. ROBERT HALF,Professional / Technical,"$7,561.25 ",7/26/2016
ACCOUNTEMPS/DIV. ROBERT HALF,Professional / Technical,"$2,630 ",8/2/2016
ACCOUNTEMPS/DIV. ROBERT HALF,Professional / Technical,"$5,453.10 ",8/10/2016
ACCOUNTEMPS/DIV. ROBERT HALF,Professional / Technical,"$2,630 ",8/11/2016
ACCOUNTEMPS/DIV. ROBERT HALF,Professional / Technical,"$1,495.81 ",8/23/2016
ACCURATE REPORTING CO.,I&D Claims (Damage Reserve),"$8,387.12 ",1/12/2016
ACCURATE REPORTING CO.,I&D Claims (Damage Reserve),"$18,630.41 ",2/5/2016
ACCURATE REPORTING CO.,I&D Claims (Damage Reserve),"$2,891.88 ",2/15/2016
ACCURATE REPORTING CO.,I&D Claims (Damage Reserve),"$3,608.94 ",2/24/2016
ACCURATE REPORTING CO.,I&D Claims (Damage Reserve),"$3,608.30 ",3/9/2016
ACCURATE REPORTING CO.,I&D Claims (Damage Reserve),"$8,089.92 ",4/4/2016
ACCURATE REPORTING CO.,I&D Claims (Damage Reserve),"$9,019.50 ",4/22/2016
ACCURATE REPORTING CO.,I&D Claims (Damage Reserve),"$3,943.60 ",6/24/2016
ACCURATE REPORTING CO.,I&D Claims (Damage Reserve),"$7,549.95 ",7/13/2016
ACCURATE REPORTING CO.,I&D Claims (Damage Reserve),"$17,326.20 ",7/27/2016
ACCURATE REPORTING CO.,I&D Claims (Damage Reserve),"$2,886.71 ",8/3/2016
ACCURATE REPORTING CO.,I&D Claims (Damage Reserve),"$9,303 ",8/25/2016
ACCURATE REPORTING CO.,I&D Claims (Damage Reserve),$626.08 ,9/23/2016
ACCURATE REPORTING CO.,I&D Claims (Damage Reserve),"$7,491.58 ",10/3/2016
ACCURATE REPORTING CO.,I&D Claims (Damage Reserve),$674.08 ,10/10/2016
ACCURATE REPORTING CO.,I&D Claims (Damage Reserve),"$4,203.98 ",11/11/2016
ACCURATE REPORTING CO.,I&D Claims (Damage Reserve),"$9,429.82 ",11/28/2016
"ACTION K-9 SECURITY, INC.",Security Rail,"$117,947.08 ",1/15/2016
"ACTION K-9 SECURITY, INC.",Security Rail,"$69,583.68 ",1/26/2016
"ACTION K-9 SECURITY, INC.",Security Rail,"$293,308.99 ",2/5/2016
"ACTION K-9 SECURITY, INC.",Security Rail,$864 ,2/9/2016
"ACTION K-9 SECURITY, INC.",Consulting Services,"$5,038.73 ",2/12/2016
"ACTION K-9 SECURITY, INC.",Security Rail,"$48,174.22 ",2/16/2016
"ACTION K-9 SECURITY, INC.",Security Rail,"$337,889.09 ",3/8/2016
"ACTION K-9 SECURITY, INC.",Security Rail,"$47,853.41 ",3/16/2016
"ACTION K-9 SECURITY, INC.",Security Rail,"$76,907.58 ",4/6/2016
"ACTION K-9 SECURITY, INC.",Security Rail,"$117,192.21 ",4/22/2016
"ACTION K-9 SECURITY, INC.",Security Rail,$864 ,4/26/2016
"ACTION K-9 SECURITY, INC.",Security Rail,"$44,904 ",5/2/2016
"ACTION K-9 SECURITY, INC.",Security Rail,"$119,242.69 ",5/3/2016
"ACTION K-9 SECURITY, INC.",Security Rail,"$118,524.20 ",5/10/2016
"ACTION K-9 SECURITY, INC.",Security Rail,"$73,843.06 ",5/23/2016
"ACTION K-9 SECURITY, INC.",Security Rail,"$119,593.90 ",5/25/2016
"ACTION K-9 SECURITY, INC.",Security Rail,"$237,073.23 ",6/29/2016
"ACTION K-9 SECURITY, INC.",Consulting Services,"$12,215.52 ",7/27/2016
"ACTION K-9 SECURITY, INC.",Fare Media Sales,"$23,346.82 ",7/27/2016
"ACTION K-9 SECURITY, INC.",Security Rail,"$188,764.47 ",7/27/2016
"ACTION K-9 SECURITY, INC.",Security Rail,"$236,434.94 ",8/11/2016
"ACTION K-9 SECURITY, INC.",Consulting Services,"$2,035.92 ",8/17/2016
"ACTION K-9 SECURITY, INC.",Security Rail,"$25,066.06 ",9/2/2016
"ACTION K-9 SECURITY, INC.",Security Rail,"$117,483.70 ",9/22/2016
"ACTION K-9 SECURITY, INC.",Security Rail,$864 ,9/27/2016
"ACTION K-9 SECURITY, INC.",Security Rail,"$236,758.34 ",10/14/2016
"ACTION K-9 SECURITY, INC.",Security Rail,"$120,883.88 ",10/31/2016
"ACTION K-9 SECURITY, INC.",Security Rail,"$213,886.57 ",12/22/2016
"ADR SYSTEMS OF AMERICA, LLC",I&D Claims (Damage Reserve),"$2,365 ",8/3/2016
ADR SYSYEMS,I&D Claims (Damage Reserve),$905 ,10/18/2016
ADRIAN JEFFERSON,I&D Claims (Damage Reserve),$20.68 ,11/10/2016
ADVANCED DISPOSAL,Management,$565.63 ,6/20/2016
ADVANCED SPINE AND PAIN SPECIALISTS,I&D Claims (Damage Reserve),$750 ,11/14/2016
"ADVANTAGE SIGN SUPPLY, INC.",Marketing,"$1,200 ",1/12/2016
"ADVANTAGE SIGN SUPPLY, INC.",Administrative Support,"$4,744.90 ",2/29/2016
"ADVANTAGE SIGN SUPPLY, INC.",Administrative Support,"$5,300 ",3/9/2016
"ADVANTAGE SIGN SUPPLY, INC.",Administrative Support,"$2,840 ",3/25/2016
"ADVANTAGE SIGN SUPPLY, INC.",Administrative Support,"$8,340.58 ",5/26/2016
"ADVANTAGE SIGN SUPPLY, INC.",Administrative Support,"$1,592.50 ",6/10/2016
"ADVANTAGE SIGN SUPPLY, INC.",Administrative Support,"$21,319 ",6/16/2016
"ADVANTAGE SIGN SUPPLY, INC.",Administrative Support,"$3,239.45 ",8/31/2016
"ADVANTAGE SIGN SUPPLY, INC.",Administrative Support,$119.70 ,9/9/2016
"ADVANTAGE SIGN SUPPLY, INC.",Administrative Support,$700 ,9/23/2016
"ADVANTAGE SIGN SUPPLY, INC.",Equipment Purchases,"$3,280 ",10/28/2016
"ADVANTAGE SIGN SUPPLY, INC.",Administrative Support,"$15,246.20 ",11/18/2016
"ADVANTAGE SIGN SUPPLY, INC.",Administrative Support,"$2,291.56 ",12/7/2016
ADVOCATE HEALTH & HOSPITAL,I&D Claims (Damage Reserve),$800 ,12/29/2016
ADVOCATE MEDICAL GROUP,I&D Claims (Damage Reserve),$187.50 ,3/14/2016
ADVOCATE MEDICAL GROUP,I&D Claims (Damage Reserve),$187.50 ,3/14/2016
ADVOCATE MEDICAL GROUP,I&D Claims (Damage Reserve),$750 ,3/25/2016
"AGAE CONTRACTORS, INC.",Maintenance of Buildings,"$14,120.25 ",10/11/2016
"AGAE CONTRACTORS, INC.",Maintenance of Buildings,"$17,232 ",10/28/2016
"AGAE CONTRACTORS, INC.",Maintenance of Buildings,"$5,403 ",10/31/2016
AHMER FAROOQ DO,I&D Claims (Damage Reserve),$750 ,10/27/2016
AHMER FAROOQ DO,I&D Claims (Damage Reserve),$750 ,11/18/2016
AICPA,Professional / Technical,$189 ,3/25/2016
AICPA,Dues & Memberships,$255 ,7/15/2016
AICPA,Professional / Technical,$255 ,7/21/2016
AIR ONE EQUIPMENT INC,Equipment Purchases,"$2,851.20 ",7/20/2016
AISC(AMERICAN INST OF STEEL CONS,Engineering,$225 ,4/25/2016
ALAN J COOK,Administrative Support,$300 ,12/16/2016
ALBANY STEEL & BRASS CORP.,Maintenance of Track & Roadway-Electrical,$85.44 ,3/3/2016
"ALDRIDGE ELECTRIC, INC.",Contract Construction,"$534,838.62 ",2/2/2016
"ALDRIDGE ELECTRIC, INC.",Contract Construction,"$5,169,129 ",4/14/2016
"ALDRIDGE ELECTRIC, INC.",Contract Construction,"$87,750 ",5/17/2016
"ALDRIDGE ELECTRIC, INC.",Equipment Purchases,"$1,936,882.40 ",6/15/2016
"ALDRIDGE ELECTRIC, INC.",Equipment Purchases,"$17,403 ",6/22/2016
"ALDRIDGE ELECTRIC, INC.",Contract Construction,"$2,539,177.41 ",8/11/2016
ALEX KESSLER,Administrative Support,$112.50 ,10/31/2016
ALFRED BENESCH & COMPANY,Consulting Services,"$5,697.67 ",1/27/2016
ALFRED BENESCH & COMPANY,Yellow Line Incident 18-MAY-2015,"$28,510.95 ",6/3/2016
ALFRED BENESCH & COMPANY,Consulting Services,"$2,602.94 ",6/22/2016
ALFRED BENESCH & COMPANY,Consulting Services,"$2,244.97 ",7/13/2016
ALFRED BENESCH & COMPANY,Consulting Services,"$3,529.74 ",8/11/2016
ALFRED EVANS,Reimb for lost tools/badges,$20 ,7/12/2016
ALICIA BASSUK,Administrative Support,$400 ,6/6/2016
"ALLIANCE PRINTERS & PUBLISHERS, INC. d/b/a POLISH DAILY NEWS",Administrative Support,$80 ,11/30/2016
"ALLIED ELECTRONICS, INC.",Equipment Purchases,"$2,028 ",3/4/2016
"ALLIED ELECTRONICS, INC.",Equipment Purchases,$625 ,3/18/2016
"ALLIED ELECTRONICS, INC.",Equipment Purchases,$225 ,6/29/2016
"ALLIED WASTE TRANSPORTATION, INC. d/b/a REPUBLIC SERVICES OF CHICAGO",Facilities Cleaning,"$153,777.23 ",2/26/2016
"ALLIED WASTE TRANSPORTATION, INC. d/b/a REPUBLIC SERVICES OF CHICAGO",Facilities Cleaning,"$71,503.03 ",2/29/2016
"ALLIED WASTE TRANSPORTATION, INC. d/b/a REPUBLIC SERVICES OF CHICAGO",Facilities Cleaning,"$68,918.22 ",3/3/2016
"ALLIED WASTE TRANSPORTATION, INC. d/b/a REPUBLIC SERVICES OF CHICAGO",Facilities Cleaning,"$65,615.01 ",3/29/2016
"ALLIED WASTE TRANSPORTATION, INC. d/b/a REPUBLIC SERVICES OF CHICAGO",Facilities Cleaning,"$68,461.56 ",4/28/2016
"ALLIED WASTE TRANSPORTATION, INC. d/b/a REPUBLIC SERVICES OF CHICAGO",Facilities Cleaning,"$62,473.76 ",5/27/2016
"ALLIED WASTE TRANSPORTATION, INC. d/b/a REPUBLIC SERVICES OF CHICAGO",Facilities Cleaning,"$64,081.49 ",6/16/2016
"ALLIED WASTE TRANSPORTATION, INC. d/b/a REPUBLIC SERVICES OF CHICAGO",Facilities Cleaning,"$61,461.84 ",8/29/2016
"ALLIED WASTE TRANSPORTATION, INC. d/b/a REPUBLIC SERVICES OF CHICAGO",Facilities Cleaning,"$68,166.71 ",9/23/2016
"ALLIED WASTE TRANSPORTATION, INC. d/b/a REPUBLIC SERVICES OF CHICAGO",Facilities Cleaning,$100 ,10/27/2016
"ALLIED WASTE TRANSPORTATION, INC. d/b/a REPUBLIC SERVICES OF CHICAGO",Facilities Cleaning,"$72,002.58 ",11/21/2016
"ALLIED WASTE TRANSPORTATION, INC. d/b/a REPUBLIC SERVICES OF CHICAGO",Facilities Cleaning,"$72,362.43 ",11/23/2016
"ALLIED WASTE TRANSPORTATION, INC. d/b/a REPUBLIC SERVICES OF CHICAGO",Facilities Cleaning,"$80,953.16 ",11/29/2016
ALLISON J JOHNSON,I&D Claims (Damage Reserve),$75 ,2/19/2016
ALLISON J JOHNSON,I&D Claims (Damage Reserve),$75 ,3/10/2016
ALLISON J JOHNSON,I&D Claims (Damage Reserve),$75 ,3/10/2016
ALLISON J JOHNSON,I&D Claims (Damage Reserve),$75 ,3/10/2016
ALLISON J JOHNSON,I&D Claims (Damage Reserve),$75 ,3/11/2016
ALLISON J JOHNSON,I&D Claims (Damage Reserve),$75 ,3/11/2016
ALLISON J JOHNSON,I&D Claims (Damage Reserve),$75 ,3/11/2016
ALLISON J JOHNSON,I&D Claims (Damage Reserve),$75 ,3/11/2016
ALLSTATE SAWS & MACHINING LLC,Steel Fabrication,$434 ,3/3/2016
ALLSTATE SAWS & MACHINING LLC,Steel Fabrication,"$1,133 ",3/22/2016
ALLSTATE SAWS & MACHINING LLC,Maintenance of Equipment,"$3,350 ",3/31/2016
ALLSTATE SAWS & MACHINING LLC,Maintenance of Buildings,$95 ,5/4/2016
ALLSTATE SAWS & MACHINING LLC,Steel Fabrication,"$1,488 ",5/4/2016
ALLSTATE SAWS & MACHINING LLC,Maintenance of Buildings,$241 ,5/19/2016
ALLSTATE SAWS & MACHINING LLC,Maintenance of Buildings,$878.30 ,6/21/2016
ALLSTATE SAWS & MACHINING LLC,Maintenance of Track & Roadway-Electrical,$638.50 ,6/21/2016
ALLSTATE SAWS & MACHINING LLC,Maintenance of Buildings,$87.50 ,6/30/2016
ALLSTATE SAWS & MACHINING LLC,Maintenance of Rail Stations,$485 ,6/30/2016
ALLSTATE SAWS & MACHINING LLC,General Shop/Gar/Term Repairs & Svcs,$270 ,8/9/2016
ALLSTATE SAWS & MACHINING LLC,General Shop/Gar/Term Repairs & Svcs,$832 ,8/29/2016
ALLSTATE SAWS & MACHINING LLC,Maintenance of Equipment,"$3,030 ",9/1/2016
ALLSTATE SAWS & MACHINING LLC,General Shop/Gar/Term Repairs & Svcs,$147 ,9/7/2016
ALLSTATE SAWS & MACHINING LLC,Steel Fabrication,$191 ,9/7/2016
ALLSTATE SAWS & MACHINING LLC,General Shop/Gar/Term Repairs & Svcs,$546.60 ,9/21/2016
ALLSTATE SAWS & MACHINING LLC,Steel Fabrication,"$1,679.50 ",10/6/2016
ALLSTATE SAWS & MACHINING LLC,Maintenance of Buildings,$924.50 ,12/1/2016
ALLSTATE SAWS & MACHINING LLC,Steel Fabrication,$305 ,12/29/2016
ALOFT CLEVELAND DOWNTOWN,Administrative Support,"$1,751.25 ",12/16/2016
ALOHA PRINT GROUP,Administrative Support,$11.90 ,2/5/2016
"ALPINA MANUFACTURING, LLC",Administrative Support,"$1,467.40 ",8/16/2016
"ALSTOM SIGNALING, INC.",Maintainance of Signal & Control Equipment,"$1,431 ",2/18/2016
"ALSTOM SIGNALING, INC.",Maintainance of Signal & Control Equipment,"$4,318.18 ",3/22/2016
"ALSTOM SIGNALING, INC.",Contract Construction,"$104,756 ",3/29/2016
"ALSTOM SIGNALING, INC.",Contract Construction,"$139,280.76 ",3/30/2016
"ALSTOM SIGNALING, INC.",Maintainance of Signal & Control Equipment,"$4,671 ",3/30/2016
"ALSTOM SIGNALING, INC.",Maintainance of Signal & Control Equipment,$654.36 ,4/20/2016
"ALSTOM SIGNALING, INC.",Maintainance of Signal & Control Equipment,"$9,484.08 ",6/2/2016
"ALSTOM SIGNALING, INC.",Maintainance of Signal & Control Equipment,"$1,682 ",6/7/2016
"ALSTOM SIGNALING, INC.",Maintainance of Signal & Control Equipment,"$14,956.80 ",6/17/2016
"ALSTOM SIGNALING, INC.",Maintainance of Signal & Control Equipment,"$13,456 ",6/23/2016
"ALSTOM SIGNALING, INC.",Maintainance of Signal & Control Equipment,"$2,121.60 ",8/11/2016
"ALSTOM SIGNALING, INC.",Maintainance of Signal & Control Equipment,"$7,169.55 ",9/20/2016
"ALSTOM SIGNALING, INC.",Maintainance of Signal & Control Equipment,"$28,600 ",11/22/2016
"ALTERNATIVE REPAIR SYSTEMS, INC.",Maintenance of Buildings,"$4,300 ",6/9/2016
AMALGAMATED BANK OF CHICAGO,Cash Management,$542.15 ,1/14/2016
AMALGAMATED BANK OF CHICAGO,Cash Management,"$12,134.77 ",2/15/2016
AMALGAMATED BANK OF CHICAGO,Cash Management,$578.92 ,3/4/2016
AMALGAMATED BANK OF CHICAGO,Cash Management,$571.39 ,3/11/2016
AMALGAMATED BANK OF CHICAGO,Cash Management,$686.17 ,4/15/2016
AMALGAMATED BANK OF CHICAGO,Cash Management,"$10,787.10 ",7/7/2016
AMALGAMATED BANK OF CHICAGO,Cash Management,$651.86 ,7/8/2016
AMALGAMATED BANK OF CHICAGO,Cash Management,"$11,500.73 ",9/7/2016
AMALGAMATED BANK OF CHICAGO,Cash Management,$456.16 ,9/16/2016
AMALGAMATED BANK OF CHICAGO,Cash Management,$678.89 ,10/25/2016
AMALGAMATED BANK OF CHICAGO,Cash Management,"$10,665.33 ",11/22/2016
AMALGAMATED BANK OF CHICAGO,Cash Management,$646.68 ,12/1/2016
AMALGAMATED BANK OF CHICAGO,Cash Management,$704.65 ,12/21/2016
AMALGAMATED BANK OF CHICAGO.,Cash Management,"$10,120 ",4/18/2016
AMALGAMATED BANK OF CHICAGO.,Cash Management,"$5,000 ",7/7/2016
AMALGAMATED BANK OF CHICAGO.,Cash Management,"$5,000 ",8/18/2016
AMALGAMATED BANK OF CHICAGO.,Cash Management,"$10,000 ",9/28/2016
AMALGAMATED BANK OF CHICAGO.,Cash Management,"$2,500 ",11/16/2016
AMALGAMATED BANK OF CHICAGO.,Cash Management,"$12,916.69 ",11/22/2016
AMANDA SCHWARTZ,Administrative Support,$35 ,11/14/2016
"AMAZON WEB SERVICES, INC.",Professional / Technical,"$1,367.29 ",1/19/2016
"AMAZON WEB SERVICES, INC.",Professional / Technical,"$1,411.78 ",1/29/2016
"AMAZON WEB SERVICES, INC.",Professional / Technical,"$1,458.88 ",3/2/2016
"AMAZON WEB SERVICES, INC.",Professional / Technical,"$1,569.32 ",4/29/2016
"AMAZON WEB SERVICES, INC.",Professional / Technical,"$2,949.24 ",7/13/2016
"AMAZON WEB SERVICES, INC.",Professional / Technical,"$1,491.83 ",8/16/2016
"AMAZON WEB SERVICES, INC.",Professional / Technical,"$1,478.54 ",8/26/2016
"AMAZON WEB SERVICES, INC.",Professional / Technical,"$1,553.01 ",8/31/2016
"AMAZON WEB SERVICES, INC.",Professional / Technical,"$4,254.31 ",9/12/2016
"AMAZON WEB SERVICES, INC.",Professional / Technical,"$1,550.03 ",10/11/2016
"AMAZON WEB SERVICES, INC.",Professional / Technical,"$1,073.01 ",10/31/2016
"AMAZON WEB SERVICES, INC.",Professional / Technical,"$1,587.54 ",12/1/2016
"AMERESCO, INC.",Professional / Technical,"$15,145 ",1/13/2016
"AMERESCO, INC.",Professional / Technical,"$15,145 ",2/3/2016
"AMERESCO, INC.",Professional / Technical,"$15,145 ",3/2/2016
"AMERESCO, INC.",Professional / Technical,"$15,145 ",3/31/2016
"AMERESCO, INC.",Professional / Technical,"$15,145 ",5/2/2016
"AMERESCO, INC.",Professional / Technical,"$15,145 ",5/31/2016
"AMERESCO, INC.",Professional / Technical,"$15,145 ",7/20/2016
"AMERESCO, INC.",Professional / Technical,"$15,145 ",8/3/2016
"AMERESCO, INC.",Professional / Technical,"$15,145 ",9/1/2016
"AMERESCO, INC.",Contract Construction,"$85,714 ",9/21/2016
"AMERESCO, INC.",Professional / Technical,"$15,145 ",9/29/2016
"AMERESCO, INC.",Professional / Technical,"$15,145 ",11/9/2016
"AMERESCO, INC.",Professional / Technical,"$15,145 ",12/1/2016
AMERICAN BAR ASSOCIATION   (1),Administrative Support,"$1,764.40 ",12/19/2016
"AMERICAN BUILDING SERVICES, LLC (M-D BUILDING MATERIALS)",Maintenance of Buildings,"$3,636.42 ",2/9/2016
"AMERICAN BUILDING SERVICES, LLC (M-D BUILDING MATERIALS)",Maintenance of Buildings,"$1,542.26 ",3/24/2016
"AMERICAN BUILDING SERVICES, LLC (M-D BUILDING MATERIALS)",Maintenance of Buildings,"$7,548 ",4/18/2016
"AMERICAN BUILDING SERVICES, LLC (M-D BUILDING MATERIALS)",Maintenance of Buildings,"$3,781 ",6/7/2016
"AMERICAN BUILDING SERVICES, LLC (M-D BUILDING MATERIALS)",Maintenance of Buildings,"$1,098.24 ",6/27/2016
"AMERICAN BUILDING SERVICES, LLC (M-D BUILDING MATERIALS)",Maintenance of Substations,"$2,135.87 ",6/28/2016
"AMERICAN BUILDING SERVICES, LLC (M-D BUILDING MATERIALS)",Maintenance of Buildings,$688.16 ,7/1/2016
"AMERICAN BUILDING SERVICES, LLC (M-D BUILDING MATERIALS)",Maintenance of Buildings,$756.72 ,7/15/2016
"AMERICAN BUILDING SERVICES, LLC (M-D BUILDING MATERIALS)",Maintenance of Buildings,$587.87 ,10/6/2016
"AMERICAN BUILDING SERVICES, LLC (M-D BUILDING MATERIALS)",Maintenance of Buildings,"$4,186.46 ",10/11/2016
"AMERICAN BUILDING SERVICES, LLC (M-D BUILDING MATERIALS)",Maintenance of Buildings,"$3,900.80 ",10/19/2016
"AMERICAN BUILDING SERVICES, LLC (M-D BUILDING MATERIALS)",Maintenance of Buildings,"$7,772.88 ",10/24/2016
"AMERICAN BUILDING SERVICES, LLC (M-D BUILDING MATERIALS)",Maintenance of Buildings,"$18,109.52 ",11/10/2016
"AMERICAN BUILDING SERVICES, LLC (M-D BUILDING MATERIALS)",Maintenance of Buildings,"$2,947.02 ",11/14/2016
"AMERICAN BUILDING SERVICES, LLC (M-D BUILDING MATERIALS)",Maintenance of Rail Stations,"$1,425.20 ",12/8/2016
"AMERICAN BUILDING SERVICES, LLC (M-D BUILDING MATERIALS)",Maintenance of Buildings,"$8,736 ",12/14/2016
"AMERICAN BUILDING SERVICES, LLC (M-D BUILDING MATERIALS)",Maintenance of Buildings,"$2,575.92 ",12/29/2016
AMERICAN CENTER FOR SPINE &,I&D Claims (Damage Reserve),$750 ,12/19/2016
AMERICAN CONCRETE INSTITUTE,Engineering,$232 ,8/30/2016
AMERICAN CONCRETE INSTITUTE,Engineering,$395 ,10/11/2016
AMERICAN CONTRACT COMPLIANCE ASSOC.,Training,$625 ,8/16/2016
AMERICAN CONTRACT COMPLIANCE ASSOC.,Training,$625 ,8/16/2016
AMERICAN CONTRACT COMPLIANCE ASSOC.,Training,$625 ,8/16/2016
AMERICAN CONTRACT COMPLIANCE ASSOC.,Training,$625 ,8/16/2016
AMERICAN INSURANCE SERVICES GROUP,Administrative Support,"$1,952.30 ",3/3/2016
AMERICAN INSURANCE SERVICES GROUP,I&D Claims (Damage Reserve),$331.20 ,3/30/2016
AMERICAN INSURANCE SERVICES GROUP,I&D Claims (Damage Reserve),$506 ,5/13/2016
AMERICAN INSURANCE SERVICES GROUP,Administrative Support,$294.40 ,7/13/2016
AMERICAN INSURANCE SERVICES GROUP,I&D Claims (Damage Reserve),$266.80 ,7/26/2016
AMERICAN INSURANCE SERVICES GROUP,I&D Claims (Damage Reserve),$340.40 ,8/3/2016
AMERICAN INSURANCE SERVICES GROUP,I&D Claims (Damage Reserve),$322 ,8/26/2016
AMERICAN INSURANCE SERVICES GROUP,I&D Claims (Damage Reserve),$285.20 ,10/11/2016
AMERICAN INSURANCE SERVICES GROUP,I&D Claims (Damage Reserve),$708.40 ,11/29/2016
AMERICAN MEDICAL ASSOCIATION,Administrative Support,$103.91 ,11/25/2016
AMERICAN PAYROLL ASSOC.,Administrative Support,$479.26 ,6/15/2016
AMERICAN PAYROLL ASSOC.,Administrative Support,$508 ,6/15/2016
AMERICAN PUBLIC TRANSPORTATION ASSOCIATION,Administrative Support,"$1,143.87 ",1/21/2016
AMERICAN PUBLIC TRANSPORTATION ASSOCIATION,Administrative Support,$850 ,1/21/2016
AMERICAN PUBLIC TRANSPORTATION ASSOCIATION,Open Fare,$550 ,3/9/2016
AMERICAN PUBLIC TRANSPORTATION ASSOCIATION,Administrative Support,"$2,331.30 ",4/21/2016
AMERICAN PUBLIC TRANSPORTATION ASSOCIATION,Administrative Support,"$1,705 ",4/21/2016
AMERICAN PUBLIC TRANSPORTATION ASSOCIATION,Administrative Support,"$3,140 ",4/22/2016
AMERICAN PUBLIC TRANSPORTATION ASSOCIATION,Administrative Support,"$9,720 ",4/22/2016
AMERICAN PUBLIC TRANSPORTATION ASSOCIATION,Administrative Support,$613.50 ,5/23/2016
AMERICAN PUBLIC TRANSPORTATION ASSOCIATION,Administrative Support,$260 ,5/23/2016
AMERICAN PUBLIC TRANSPORTATION ASSOCIATION,Administrative Support,"$2,500 ",6/1/2016
AMERICAN PUBLIC TRANSPORTATION ASSOCIATION,Management,$875 ,6/9/2016
AMERICAN PUBLIC TRANSPORTATION ASSOCIATION,Administrative Support,"$1,472.40 ",6/16/2016
AMERICAN PUBLIC TRANSPORTATION ASSOCIATION,Budget & Analysis,$550 ,6/16/2016
AMERICAN PUBLIC TRANSPORTATION ASSOCIATION,Budget & Analysis,$550 ,6/20/2016
AMERICAN PUBLIC TRANSPORTATION ASSOCIATION,Scheduling,"$5,000 ",8/3/2016
AMERICAN PUBLIC TRANSPORTATION ASSOCIATION,Administrative Support,$850 ,8/5/2016
AMERICAN PUBLIC TRANSPORTATION ASSOCIATION,Administrative Support,"$1,152.28 ",8/5/2016
AMERICAN PUBLIC TRANSPORTATION ASSOCIATION,Recruiting / Hiring,$156 ,8/5/2016
AMERICAN PUBLIC TRANSPORTATION ASSOCIATION,Open Fare,$900 ,8/26/2016
AMERICAN PUBLIC TRANSPORTATION ASSOCIATION,Open Fare,$900 ,8/26/2016
AMERICAN PUBLIC TRANSPORTATION ASSOCIATION,Marketing,$525 ,11/10/2016
AMERICAN PUBLIC TRANSPORTATION ASSOCIATION,Recruiting / Hiring,$297 ,11/14/2016
AMERICAN PUBLIC TRANSPORTATION ASSOCIATION,Administrative Support,$550 ,12/28/2016
AMERICAN SOCIETY FOR QUALITY,Applications Support,$159 ,9/16/2016
AMERICAN SOCIETY MECHANICAL ENG,Professional / Technical,$151 ,9/14/2016
AMERICAN SOCIETY OF CIVIL ENG.,Engineering,$165.75 ,6/2/2016
AMERICAN SOCIETY OF CIVIL ENG.,Engineering,"$1,545 ",11/22/2016
AMERICAN SOCIETY OF CIVIL ENG.,Engineering,"$1,265 ",11/22/2016
AMERICAN SOCIETY OF CIVIL ENG.,Engineering,"$1,545 ",11/22/2016
AMERICAN SOCIETY OF CIVIL ENG.,Engineering,"$1,545 ",11/22/2016
AMERICAN SOCIETY OF CIVIL ENG.,Engineering,"$1,265 ",11/22/2016
AMERICAN SOCIETY OF CIVIL ENG.,Engineering,"$2,041 ",12/13/2016
AMERICAN TOWERS LLC,"Facilities Operating Expenses (Rent,Utilities,etc)","$3,992.13 ",2/4/2016
AMERICAN TOWERS LLC,"Facilities Operating Expenses (Rent,Utilities,etc)","$3,992.13 ",3/4/2016
AMERICAN TOWERS LLC,"Facilities Operating Expenses (Rent,Utilities,etc)","$3,992.13 ",4/4/2016
AMERICAN TOWERS LLC,"Facilities Operating Expenses (Rent,Utilities,etc)","$3,992.13 ",5/3/2016
AMERICAN TOWERS LLC,"Facilities Operating Expenses (Rent,Utilities,etc)","$3,992.13 ",5/26/2016
AMERICAN TOWERS LLC,"Facilities Operating Expenses (Rent,Utilities,etc)","$3,992.13 ",7/15/2016
AMERICAN TOWERS LLC,"Facilities Operating Expenses (Rent,Utilities,etc)","$3,992.13 ",8/10/2016
AMERICAN TOWERS LLC,"Facilities Operating Expenses (Rent,Utilities,etc)","$3,992.13 ",9/21/2016
AMERICAN TOWERS LLC,"Facilities Operating Expenses (Rent,Utilities,etc)","$3,992.13 ",10/4/2016
AMERICAN TOWERS LLC,"Facilities Operating Expenses (Rent,Utilities,etc)","$3,992.13 ",11/4/2016
AMERICAN TOWERS LLC,"Facilities Operating Expenses (Rent,Utilities,etc)","$3,992.13 ",12/15/2016
AMERICAN TOWERS LLC,"Facilities Operating Expenses (Rent,Utilities,etc)","$4,111.89 ",12/30/2016
AMERICAN TRAINCO LLC,Management,"$8,490 ",3/29/2016
AMERIMEX SALES & SERVICE,Maintenance of Equipment,$280 ,1/21/2016
AMERIMEX SALES & SERVICE,Maintenance of Equipment,$320 ,3/28/2016
AMERIMEX SALES & SERVICE,Maintenance of Equipment,$944.04 ,3/31/2016
AMERIMEX SALES & SERVICE,Maintenance of Equipment,"$1,153.24 ",4/14/2016
AMERIMEX SALES & SERVICE,Maintenance of Equipment,"$1,167.60 ",4/15/2016
AMERIMEX SALES & SERVICE,Maintenance of Equipment,$702 ,6/17/2016
AMERIMEX SALES & SERVICE,Maintenance of Equipment,$235.45 ,6/29/2016
AMERIMEX SALES & SERVICE,Maintenance of Equipment,"$1,143.62 ",7/25/2016
AMERIMEX SALES & SERVICE,Maintenance of Equipment,"$1,124.43 ",9/9/2016
AMERIMEX SALES & SERVICE,Maintenance of Equipment,$493.43 ,10/25/2016
AMERIMEX SALES & SERVICE,Maintenance of Equipment,$668.93 ,11/29/2016
"AMI RISK CONSULTANTS, INC.",Accounting,"$7,600 ",4/9/2016
"AMICUS COURT REPORTERS, INC.",I&D Claims (Damage Reserve),$353.66 ,10/11/2016
AMY KISNER,Administrative Support,$125 ,1/21/2016
AMY KISNER,Administrative Support,$90 ,7/7/2016
AMY KISNER,Administrative Support,$125 ,8/30/2016
AMY KISNER,Administrative Support,$112.50 ,10/13/2016
AN EXECUTIVE DECISION,Merchandising,$673.10 ,3/28/2016
AN EXECUTIVE DECISION,BUS/RAIL ROADEO,$884 ,9/22/2016
"ANCHOR MECHANICAL, INC.",Maintenance of Buildings,"$5,675 ",10/18/2016
"ANCHOR STAFFING, INC.",Professional / Technical,"$3,986.23 ",1/8/2016
"ANCHOR STAFFING, INC.",Professional / Technical,"$1,053.15 ",1/18/2016
"ANCHOR STAFFING, INC.",Professional / Technical,"$1,033.71 ",1/21/2016
"ANCHOR STAFFING, INC.",Professional / Technical,$842.52 ,1/28/2016
"ANCHOR STAFFING, INC.",Professional / Technical,$735.57 ,2/4/2016
"ANCHOR STAFFING, INC.",Administrative Support,"$2,199.63 ",2/16/2016
"ANCHOR STAFFING, INC.",Administrative Support,$420 ,2/18/2016
"ANCHOR STAFFING, INC.",Professional / Technical,"$2,945.61 ",3/3/2016
"ANCHOR STAFFING, INC.",Administrative Support,$756 ,3/4/2016
"ANCHOR STAFFING, INC.",Professional / Technical,$994.83 ,3/4/2016
"ANCHOR STAFFING, INC.",Administrative Support,$336 ,3/10/2016
"ANCHOR STAFFING, INC.",Administrative Support,$420 ,3/17/2016
"ANCHOR STAFFING, INC.",Professional / Technical,"$1,369.82 ",3/25/2016
"ANCHOR STAFFING, INC.",Professional / Technical,"$1,049.91 ",3/31/2016
"ANCHOR STAFFING, INC.",Professional / Technical,$946.20 ,4/8/2016
"ANCHOR STAFFING, INC.",Administrative Support,$684.48 ,4/12/2016
"ANCHOR STAFFING, INC.",Administrative Support,$806.96 ,4/14/2016
"ANCHOR STAFFING, INC.",Professional / Technical,"$1,027.23 ",4/14/2016
"ANCHOR STAFFING, INC.",Professional / Technical,"$1,053.15 ",4/21/2016
"ANCHOR STAFFING, INC.",Administrative Support,$576.40 ,4/28/2016
"ANCHOR STAFFING, INC.",Professional / Technical,"$1,053.15 ",4/28/2016
"ANCHOR STAFFING, INC.",Administrative Support,$432.30 ,5/5/2016
"ANCHOR STAFFING, INC.",Professional / Technical,"$1,053.15 ",5/5/2016
"ANCHOR STAFFING, INC.",Administrative Support,$345.84 ,5/17/2016
"ANCHOR STAFFING, INC.",Professional / Technical,"$1,034.36 ",5/17/2016
"ANCHOR STAFFING, INC.",Administrative Support,$432.30 ,5/20/2016
"ANCHOR STAFFING, INC.",Professional / Technical,"$1,049.91 ",5/20/2016
"ANCHOR STAFFING, INC.",Professional / Technical,$904.76 ,6/1/2016
"ANCHOR STAFFING, INC.",Professional / Technical,$953.33 ,6/2/2016
"ANCHOR STAFFING, INC.",Professional / Technical,"$1,032.10 ",6/9/2016
"ANCHOR STAFFING, INC.",Administrative Support,"$1,945.35 ",6/17/2016
"ANCHOR STAFFING, INC.",Professional / Technical,"$1,047.32 ",6/17/2016
"ANCHOR STAFFING, INC.",Administrative Support,$457.52 ,6/23/2016
"ANCHOR STAFFING, INC.",Professional / Technical,"$1,057.04 ",6/30/2016
"ANCHOR STAFFING, INC.",Administrative Support,$259.38 ,7/1/2016
"ANCHOR STAFFING, INC.",Professional / Technical,$953.33 ,7/1/2016
"ANCHOR STAFFING, INC.",Administrative Support,$345.84 ,7/7/2016
"ANCHOR STAFFING, INC.",Professional / Technical,$720.05 ,7/7/2016
"ANCHOR STAFFING, INC.",Professional / Technical,"$1,056.72 ",7/14/2016
"ANCHOR STAFFING, INC.",Administrative Support,$403.48 ,7/15/2016
"ANCHOR STAFFING, INC.",Professional / Technical,"$1,014.26 ",7/26/2016
"ANCHOR STAFFING, INC.",Administrative Support,$259.38 ,7/28/2016
"ANCHOR STAFFING, INC.",Professional / Technical,"$1,023.99 ",7/28/2016
"ANCHOR STAFFING, INC.",Professional / Technical,$958.86 ,8/5/2016
"ANCHOR STAFFING, INC.",Professional / Technical,"$1,883.50 ",8/23/2016
"ANCHOR STAFFING, INC.",Professional / Technical,$946.20 ,8/31/2016
"ANCHOR STAFFING, INC.",Professional / Technical,$980.80 ,9/1/2016
"ANCHOR STAFFING, INC.",Administrative Support,$572.80 ,9/9/2016
"ANCHOR STAFFING, INC.",Professional / Technical,"$1,082.88 ",9/9/2016
"ANCHOR STAFFING, INC.",Professional / Technical,"$1,086.28 ",9/19/2016
"ANCHOR STAFFING, INC.",Administrative Support,$576.40 ,9/20/2016
"ANCHOR STAFFING, INC.",Administrative Support,$576.40 ,9/22/2016
"ANCHOR STAFFING, INC.",Professional / Technical,$945.15 ,9/22/2016
"ANCHOR STAFFING, INC.",Administrative Support,$576.40 ,9/29/2016
"ANCHOR STAFFING, INC.",Professional / Technical,$538.32 ,9/29/2016
"ANCHOR STAFFING, INC.",Administrative Support,$576.40 ,10/6/2016
"ANCHOR STAFFING, INC.",Professional / Technical,"$1,008.02 ",10/6/2016
"ANCHOR STAFFING, INC.",Administrative Support,$461.12 ,10/13/2016
"ANCHOR STAFFING, INC.",Administrative Support,$576.40 ,10/20/2016
"ANCHOR STAFFING, INC.",Professional / Technical,"$1,065.54 ",10/20/2016
"ANCHOR STAFFING, INC.",Administrative Support,$918.64 ,10/27/2016
"ANCHOR STAFFING, INC.",Administrative Support,"$1,152.80 ",11/3/2016
"ANCHOR STAFFING, INC.",Professional / Technical,"$1,910.55 ",11/3/2016
"ANCHOR STAFFING, INC.",Administrative Support,"$1,304.14 ",11/10/2016
"ANCHOR STAFFING, INC.",Professional / Technical,"$1,075.59 ",11/10/2016
"ANCHOR STAFFING, INC.",Administrative Support,"$1,152.80 ",11/17/2016
"ANCHOR STAFFING, INC.",Professional / Technical,"$1,079.15 ",11/17/2016
"ANCHOR STAFFING, INC.",Professional / Technical,"$1,794.86 ",11/18/2016
"ANCHOR STAFFING, INC.",Administrative Support,"$1,152.80 ",11/25/2016
"ANCHOR STAFFING, INC.",Professional / Technical,"$1,075.75 ",11/25/2016
"ANCHOR STAFFING, INC.",Administrative Support,"$1,141.99 ",12/1/2016
"ANCHOR STAFFING, INC.",Administrative Support,"$1,152.80 ",12/8/2016
"ANCHOR STAFFING, INC.",Administrative Support,"$1,152.80 ",12/15/2016
"ANCHOR STAFFING, INC.",Professional / Technical,"$2,049.42 ",12/15/2016
"ANCHOR STAFFING, INC.",Administrative Support,$576.40 ,12/22/2016
"ANCHOR STAFFING, INC.",Professional / Technical,"$1,075.75 ",12/22/2016
"ANCHOR STAFFING, INC.",Administrative Support,$576.40 ,12/23/2016
"ANCHOR STAFFING, INC.",Administrative Support,$922.24 ,12/29/2016
"ANCHOR STAFFING, INC.",Professional / Technical,$853.11 ,12/29/2016
ANDERSON ELEVATOR CO.,Maintenance of Elevators,"$123,692.14 ",1/8/2016
ANDERSON ELEVATOR CO.,Equipment Purchases,"$102,914.36 ",1/13/2016
ANDERSON ELEVATOR CO.,Equipment Purchases,"$17,589.28 ",1/15/2016
ANDERSON ELEVATOR CO.,Maintenance of Buildings,"$245,100.96 ",1/28/2016
ANDERSON ELEVATOR CO.,Maintenance of Elevators,"$194,916.17 ",2/23/2016
ANDERSON ELEVATOR CO.,Maintenance of Buildings,"$335,215.56 ",2/25/2016
ANDERSON ELEVATOR CO.,Maintenance of Equipment,"$307,069.82 ",3/15/2016
ANDERSON ELEVATOR CO.,Maintenance of Buildings,"$321,206.15 ",4/7/2016
ANDERSON ELEVATOR CO.,Maintenance of Buildings,"$313,011.59 ",5/12/2016
ANDERSON ELEVATOR CO.,Maintenance of Buildings,"$314,521.23 ",6/9/2016
ANDERSON ELEVATOR CO.,Maintenance of Equipment,"$315,938.46 ",7/7/2016
ANDERSON ELEVATOR CO.,Contract Construction,"$82,334.88 ",7/13/2016
ANDERSON ELEVATOR CO.,Contract Construction,"$119,314.17 ",8/10/2016
ANDERSON ELEVATOR CO.,Maintenance of Buildings,"$315,580.02 ",8/11/2016
ANDERSON ELEVATOR CO.,Maintenance of Equipment,"$319,595.09 ",9/7/2016
ANDERSON ELEVATOR CO.,Contract Construction,"$24,811.08 ",10/5/2016
ANDERSON ELEVATOR CO.,Maintenance of Buildings,"$342,226.71 ",10/12/2016
ANDERSON ELEVATOR CO.,Maintenance of Buildings,"$329,258.57 ",11/14/2016
ANDERSON ELEVATOR CO.,Contract Construction,"$49,269.84 ",11/16/2016
ANDERSON ELEVATOR CO.,Maintenance of Buildings,"$43,250 ",12/1/2016
ANDERSON ELEVATOR CO.,Maintenance of Equipment,"$330,871.33 ",12/8/2016
ANDERSON ELEVATOR CO.,Maintenance of Equipment,$150 ,12/14/2016
ANDREAKIA JUNEARICK,I&D Claims (Damage Reserve),$20.68 ,11/10/2016
ANGELINE STEWART,I&D Claims (Damage Reserve),$75 ,7/28/2016
ANISH KADAKIA M.D.,I&D Claims (Damage Reserve),$187.50 ,11/4/2016
ANISH KADAKIA M.D.,I&D Claims (Damage Reserve),$187.50 ,11/4/2016
ANISH KADAKIA M.D.,I&D Claims (Damage Reserve),$750 ,11/14/2016
ANITA M. ROWE,Administrative Support,$750 ,1/29/2016
ANITA M. ROWE,Administrative Support,$500 ,2/9/2016
ANITA M. ROWE,Administrative Support,$500 ,6/9/2016
ANN S. KENIS,Administrative Support,$675 ,2/5/2016
ANN S. KENIS,Administrative Support,$700 ,2/11/2016
ANN S. KENIS,Administrative Support,$675 ,5/6/2016
ANN S. KENIS,Administrative Support,"$2,450 ",5/25/2016
ANN S. KENIS,Administrative Support,"$1,050 ",6/13/2016
ANN S. KENIS,Administrative Support,$700 ,6/23/2016
ANN S. KENIS,Administrative Support,$700 ,7/28/2016
ANN S. KENIS,Administrative Support,"$3,500 ",8/2/2016
ANN S. KENIS,Administrative Support,"$3,150 ",8/5/2016
ANN S. KENIS,Administrative Support,"$1,750 ",12/15/2016
ANN SATHERS RESTAURANT,Administrative Support,"$1,283.55 ",10/25/2016
"ANSALDO STS USA, INC.",Vehicle Rehab,"$50,289.58 ",4/18/2016
"ANSALDO STS USA, INC.",Maintainance of Signal & Control Equipment,"$4,416.85 ",5/5/2016
"ANSALDO STS USA, INC.",Maintainance of Signal & Control Equipment,"$4,223.10 ",8/5/2016
"ANSALDO STS USA, INC.",Vehicle Rehab,"$565,962 ",9/7/2016
"ANSALDO STS USA, INC.",Maintainance of Signal & Control Equipment,"$39,528 ",10/20/2016
"ANSALDO STS USA, INC.",Maintainance of Signal & Control Equipment,"$9,882 ",12/1/2016
ANTHONY BURNS,I&D Claims (Damage Reserve),$75 ,6/8/2016
ANTHONY R THARIAN M.D.,I&D Claims (Damage Reserve),"$1,000 ",7/7/2016
ANTOINE BROWN,Reimb for lost tools/badges,$20 ,7/7/2016
ANTUANN KENT,I&D Claims (Damage Reserve),$25 ,8/2/2016
"AON CONSULTING, INC.",Management,"$13,000 ",12/15/2016
AP BOOKS,Administrative Support,$153.70 ,9/23/2016
APARNA PRIYANATH GUPTA M.D.,I&D Claims (Damage Reserve),$500 ,1/14/2016
APOLLO VIDEO TECHNOLOGY,Maintenance of Equipment,"$8,330.15 ",4/11/2016
APOLLO VIDEO TECHNOLOGY,Maintenance of Equipment,"$4,004.15 ",4/13/2016
APOLLO VIDEO TECHNOLOGY,Maintenance of Equipment,"$1,670.10 ",4/19/2016
APOLLO VIDEO TECHNOLOGY,Maintenance of Equipment,"$15,592 ",5/11/2016
APOLLO VIDEO TECHNOLOGY,Maintenance of Equipment,$982.19 ,5/13/2016
APOLLO VIDEO TECHNOLOGY,Maintenance of Equipment,"$12,006.15 ",5/19/2016
APOLLO VIDEO TECHNOLOGY,Maintenance of Equipment,"$24,993.25 ",7/7/2016
APOLLO VIDEO TECHNOLOGY,Equipment Purchases,"$89,265 ",7/27/2016
APOLLO VIDEO TECHNOLOGY,Equipment Purchases,"$191,178 ",8/12/2016
APOLLO VIDEO TECHNOLOGY,Equipment Purchases,"$235,908 ",8/31/2016
APOLLO VIDEO TECHNOLOGY,Equipment Purchases,"$281,250 ",10/28/2016
APOLLO VIDEO TECHNOLOGY,Equipment Purchases,"$211,071 ",11/14/2016
APPLICATIONS SOFTWARE TECH.,Consulting Services,"$322,400 ",7/1/2016
APPLICATIONS SOFTWARE TECH.,Consulting Services,"$324,800 ",7/14/2016
APPLICATIONS SOFTWARE TECH.,Consulting Services,"$39,200 ",8/2/2016
APPLICATIONS SOFTWARE TECH.,Consulting Services,"$161,200 ",8/8/2016
APPLICATIONS SOFTWARE TECH.,Consulting Services,"$386,100 ",9/6/2016
APPLICATIONS SOFTWARE TECH.,Consulting Services,"$483,600 ",10/6/2016
APPLICATIONS SOFTWARE TECH.,Consulting Services,"$562,400 ",11/14/2016
APPLICATIONS SOFTWARE TECH.,Consulting Services,"$225,700 ",12/14/2016
APPLICATIONS SOFTWARE TECHNOLOGY CORPORATION,Consulting Services,"$210,800 ",6/8/2016
APPLIED INDUSTRIAL TECHNOLOGIES,Repair Non-Revenue Equipment,"$3,776.38 ",8/3/2016
APPLIED INDUSTRIAL TECHNOLOGIES,Repair Non-Revenue Equipment,"$2,834.51 ",8/10/2016
APPRISS-GOVERNMENT,Administrative Support,$68 ,12/9/2016
"ARAMARK UNIFORM SERVICES, INC.",Engineering,$65.25 ,1/8/2016
"ARAMARK UNIFORM SERVICES, INC.",Money Counting,$67.66 ,1/8/2016
"ARAMARK UNIFORM SERVICES, INC.",Engineering,$21.75 ,1/14/2016
"ARAMARK UNIFORM SERVICES, INC.",Money Counting,$67.66 ,1/14/2016
"ARAMARK UNIFORM SERVICES, INC.",Engineering,$21.75 ,1/21/2016
"ARAMARK UNIFORM SERVICES, INC.",Money Counting,$62.56 ,1/21/2016
"ARAMARK UNIFORM SERVICES, INC.",Money Counting,$125.12 ,2/17/2016
"ARAMARK UNIFORM SERVICES, INC.",Money Counting,$62.56 ,2/18/2016
"ARAMARK UNIFORM SERVICES, INC.",Money Counting,$40.66 ,2/25/2016
"ARAMARK UNIFORM SERVICES, INC.",Engineering,$87 ,2/26/2016
"ARAMARK UNIFORM SERVICES, INC.",Engineering,$21.75 ,3/3/2016
"ARAMARK UNIFORM SERVICES, INC.",Money Counting,$81.32 ,3/10/2016
"ARAMARK UNIFORM SERVICES, INC.",Money Counting,$40.66 ,3/16/2016
"ARAMARK UNIFORM SERVICES, INC.",Engineering,$21 ,3/17/2016
"ARAMARK UNIFORM SERVICES, INC.",Engineering,$21 ,3/23/2016
"ARAMARK UNIFORM SERVICES, INC.",Engineering,$21 ,3/24/2016
"ARAMARK UNIFORM SERVICES, INC.",Money Counting,$40.66 ,3/25/2016
"ARAMARK UNIFORM SERVICES, INC.",Money Counting,$51.91 ,3/30/2016
"ARAMARK UNIFORM SERVICES, INC.",Professional / Technical,$224.95 ,4/1/2016
"ARAMARK UNIFORM SERVICES, INC.",Money Counting,$40.66 ,4/6/2016
"ARAMARK UNIFORM SERVICES, INC.",Money Counting,$40.66 ,4/13/2016
"ARAMARK UNIFORM SERVICES, INC.",Professional / Technical,$291.91 ,4/18/2016
"ARAMARK UNIFORM SERVICES, INC.",Engineering,$21.75 ,4/20/2016
"ARAMARK UNIFORM SERVICES, INC.",Money Counting,$40.66 ,4/27/2016
"ARAMARK UNIFORM SERVICES, INC.",Engineering,$63 ,4/28/2016
"ARAMARK UNIFORM SERVICES, INC.",Engineering,$42 ,5/19/2016
"ARAMARK UNIFORM SERVICES, INC.",Money Counting,$162.64 ,5/19/2016
"ARAMARK UNIFORM SERVICES, INC.",Engineering,$63 ,5/23/2016
"ARAMARK UNIFORM SERVICES, INC.",Money Counting,$40.66 ,5/25/2016
"ARAMARK UNIFORM SERVICES, INC.",Engineering,$21 ,5/26/2016
"ARAMARK UNIFORM SERVICES, INC.",Money Counting,$40.66 ,6/1/2016
"ARAMARK UNIFORM SERVICES, INC.",Money Counting,$40.66 ,6/8/2016
"ARAMARK UNIFORM SERVICES, INC.",Engineering,$84 ,7/20/2016
"ARAMARK UNIFORM SERVICES, INC.",Engineering,$21 ,7/22/2016
"ARAMARK UNIFORM SERVICES, INC.",Money Counting,$162.64 ,7/26/2016
"ARAMARK UNIFORM SERVICES, INC.",Money Counting,$40.66 ,7/27/2016
"ARAMARK UNIFORM SERVICES, INC.",Money Counting,$40.66 ,8/3/2016
"ARAMARK UNIFORM SERVICES, INC.",Engineering,$21 ,8/4/2016
"ARAMARK UNIFORM SERVICES, INC.",Engineering,$21 ,8/5/2016
"ARAMARK UNIFORM SERVICES, INC.",Money Counting,$40.66 ,8/10/2016
"ARAMARK UNIFORM SERVICES, INC.",Engineering,$42 ,8/11/2016
"ARAMARK UNIFORM SERVICES, INC.",Money Counting,$81.32 ,9/1/2016
"ARAMARK UNIFORM SERVICES, INC.",Engineering,$62.25 ,9/16/2016
"ARAMARK UNIFORM SERVICES, INC.",Money Counting,$142.32 ,9/20/2016
"ARAMARK UNIFORM SERVICES, INC.",Money Counting,$47.44 ,9/21/2016
"ARAMARK UNIFORM SERVICES, INC.",Engineering,$21 ,9/27/2016
"ARAMARK UNIFORM SERVICES, INC.",Money Counting,$47.44 ,9/28/2016
"ARAMARK UNIFORM SERVICES, INC.",Engineering,$19.50 ,10/4/2016
"ARAMARK UNIFORM SERVICES, INC.",Engineering,$63 ,10/14/2016
"ARAMARK UNIFORM SERVICES, INC.",Money Counting,$40.66 ,10/26/2016
"ARAMARK UNIFORM SERVICES, INC.",Engineering,$39 ,10/31/2016
"ARAMARK UNIFORM SERVICES, INC.",Engineering,$87.36 ,11/2/2016
"ARAMARK UNIFORM SERVICES, INC.",Engineering,$58.50 ,11/9/2016
"ARAMARK UNIFORM SERVICES, INC.",Money Counting,$229.94 ,11/9/2016
"ARAMARK UNIFORM SERVICES, INC.",Money Counting,$47.44 ,11/16/2016
"ARAMARK UNIFORM SERVICES, INC.",Money Counting,$47.44 ,11/23/2016
ARC IMAGING RESOURCES,Management,"$15,831.44 ",2/12/2016
ARC IMAGING RESOURCES,Management,$307.06 ,5/12/2016
ARC IMAGING RESOURCES,Management,"$7,915.72 ",7/1/2016
ARC IMAGING RESOURCES,Management,"$7,915.72 ",7/26/2016
ARC IMAGING RESOURCES,Management,$108 ,9/15/2016
ARC IMAGING RESOURCES,Management,$277.50 ,9/20/2016
ARC IMAGING RESOURCES,Management,"$7,915.72 ",10/26/2016
ARC IMAGING RESOURCES,Management,$54.28 ,11/17/2016
"ARCADIS  U.S., INC.",Consulting Services,"$1,938.43 ",1/25/2016
"ARCADIS  U.S., INC.",Consulting Services,"$132,717.88 ",2/2/2016
"ARCADIS  U.S., INC.",Consulting Services,"$13,334.98 ",2/8/2016
"ARCADIS  U.S., INC.",Consulting Services,"$61,511.46 ",2/16/2016
"ARCADIS  U.S., INC.",Consulting Services,"$418,460.13 ",2/19/2016
"ARCADIS  U.S., INC.",Consulting Services,"$287,629.47 ",2/22/2016
"ARCADIS  U.S., INC.",Consulting Services,"$105,303.83 ",2/26/2016
"ARCADIS  U.S., INC.",Consulting Services,"$143,902.72 ",3/8/2016
"ARCADIS  U.S., INC.",Consulting Services,"$276,466.71 ",3/21/2016
"ARCADIS  U.S., INC.",Consulting Services,"$111,316.89 ",3/28/2016
"ARCADIS  U.S., INC.",Consulting Services,"$296,441.65 ",4/6/2016
"ARCADIS  U.S., INC.",Consulting Services,"$7,163.52 ",4/11/2016
"ARCADIS  U.S., INC.",Consulting Services,"$302,883.42 ",4/22/2016
"ARCADIS  U.S., INC.",Consulting Services,"$56,904.73 ",4/27/2016
"ARCADIS  U.S., INC.",Consulting Services,"$73,078.29 ",5/10/2016
"ARCADIS  U.S., INC.",Consulting Services,"$66,385.99 ",6/14/2016
"ARCADIS  U.S., INC.",Consulting Services,"$61,819.50 ",6/15/2016
"ARCADIS  U.S., INC.",Consulting Services,"$401,038.69 ",6/16/2016
"ARCADIS  U.S., INC.",Consulting Services,"$46,325.08 ",6/23/2016
"ARCADIS  U.S., INC.",Consulting Services,"$58,802.87 ",6/28/2016
"ARCADIS  U.S., INC.",Consulting Services,"$276,804.26 ",7/5/2016
"ARCADIS  U.S., INC.",Consulting Services,"$54,032.64 ",8/2/2016
"ARCADIS  U.S., INC.",Consulting Services,"$359,951.38 ",8/3/2016
"ARCADIS  U.S., INC.",Consulting Services,"$34,363.14 ",8/8/2016
"ARCADIS  U.S., INC.",Consulting Services,"$9,524.54 ",8/24/2016
"ARCADIS  U.S., INC.",Consulting Services,"$443,768.40 ",9/15/2016
"ARCADIS  U.S., INC.",Consulting Services,"$307,480.20 ",9/26/2016
"ARCADIS  U.S., INC.",Consulting Services,"$1,205 ",10/3/2016
"ARCADIS  U.S., INC.",Consulting Services,"$297,907.53 ",10/25/2016
"ARCADIS  U.S., INC.",Consulting Services,"$392,501.34 ",11/29/2016
"ARCADIS  U.S., INC.",Consulting Services,"$342,385.65 ",12/23/2016
ARCOM,Professional / Technical,"$1,833.88 ",6/1/2016
"ARCON WELDING, LLC",Maintenance of Track & Roadway,"$1,342.85 ",7/22/2016
"ARCON WELDING, LLC",Maintenance of Track & Roadway-Electrical,$332.52 ,11/23/2016
AREMA,Professional / Technical,$174 ,1/14/2016
AREMA,Engineering,$174 ,3/28/2016
ARMA INTERNATIONAL,Quality Assurance,$225 ,7/7/2016
ARTELIO WATSON M.D.,I&D Claims (Damage Reserve),$750 ,1/14/2016
ARTHUR JONES,I&D Claims (Damage Reserve),$25 ,7/1/2016
ASCE STRUCTURAL GROUP,Engineering,"$1,200 ",3/22/2016
ASHRAE LEARNING INSTITUTE,Professional / Technical,$204 ,8/3/2016
ASIA YOUNG,Reimb for lost tools/badges,$20 ,9/1/2016
ASL COMMUNICATION SERVICES INC,Administrative Support,$125 ,11/11/2016
ASQ,Quality Assurance,$159 ,7/6/2016
"ASSOCIATED INDUSTRIAL BRUSH CO, LTD",Maintenance of Equipment,"$11,966.40 ",1/6/2016
ASSOCIATION CAREER NETWORK,Recruiting / Hiring,"$1,195 ",9/7/2016
ASSOCIATION FOR FINANCIAL PROF.,Cash Management,$495 ,7/27/2016
ASSOCIATION FOR FINANCIAL PROF.,Professional / Technical,$495 ,12/1/2016
"ASYNERLYTICS, LLC",Equipment Purchases,"$90,776.40 ",10/12/2016
AT&T,Computer Operations,$865.44 ,1/15/2016
AT&T,Maintain/Repair Communications  Equip,"$402,554.97 ",1/15/2016
AT&T,Equipment Purchases,"$258,735.18 ",1/27/2016
AT&T,Computer Operations,"$9,040.86 ",1/29/2016
AT&T,Maintain/Repair Communications  Equip,"$28,975.90 ",2/5/2016
AT&T,Equipment Purchases,"$11,760.69 ",2/10/2016
AT&T,Maintain/Repair Communications  Equip,"$44,763 ",2/19/2016
AT&T,Equipment Purchases,"$976,137.27 ",3/2/2016
AT&T,Maintain/Repair Communications  Equip,"$15,555.79 ",3/3/2016
AT&T,Maintain/Repair Communications  Equip,"$200,532.45 ",3/16/2016
AT&T,Maintain/Repair Communications  Equip,"$1,068.04 ",3/16/2016
AT&T,Equipment Purchases,"$35,282.07 ",3/25/2016
AT&T,Computer Operations,"$32,671 ",4/12/2016
AT&T,Maintain/Repair Communications  Equip,"$224,231.86 ",4/12/2016
AT&T,Maintain/Repair Communications  Equip,$622.31 ,4/12/2016
AT&T,Maintain/Repair Communications  Equip,"$361,236.60 ",5/11/2016
AT&T,Computer Operations,"$234,989.89 ",5/16/2016
AT&T,Maintain/Repair Communications  Equip,$11.97 ,5/16/2016
AT&T,Computer Operations,"$47,354.53 ",5/24/2016
AT&T,Computer Operations,"$5,112.80 ",5/24/2016
AT&T,Maintain/Repair Communications  Equip,$11.97 ,5/24/2016
AT&T,Maintain/Repair Communications  Equip,"$26,923.33 ",5/24/2016
AT&T,Maintain/Repair Communications  Equip,"$15,214.77 ",5/27/2016
AT&T,Computer Operations,"$22,802.08 ",6/2/2016
AT&T,Maintain/Repair Communications  Equip,"$36,232.44 ",6/8/2016
AT&T,Equipment Purchases,"$933,246.34 ",6/15/2016
AT&T,Maintain/Repair Communications  Equip,"$7,941.09 ",6/17/2016
AT&T,Computer Operations,$327.80 ,6/21/2016
AT&T,Maintain/Repair Communications  Equip,"$19,738.21 ",7/19/2016
AT&T,Computer Operations,"$16,247.04 ",7/20/2016
AT&T,Maintain/Repair Communications  Equip,"$197,397.09 ",7/20/2016
AT&T,Computer Operations,$577.80 ,7/21/2016
AT&T,Computer Operations,"$31,460.49 ",8/9/2016
AT&T,Maintain/Repair Communications  Equip,"$157,203.75 ",8/9/2016
AT&T,Computer Operations,"$19,731.80 ",9/15/2016
AT&T,Computer Operations,"$73,299.78 ",9/16/2016
AT&T,Maintain/Repair Communications  Equip,"$173,259.89 ",9/16/2016
AT&T,Computer Operations,"$33,342 ",9/20/2016
AT&T,Equipment Purchases,"$87,678.18 ",11/17/2016
ATD,Training - Students,"$1,047 ",7/20/2016
"ATKINSON-BAKER, INC.",I&D Claims (Damage Reserve),$333.30 ,10/21/2016
"ATKINSON-BAKER, INC.",I&D Claims (Damage Reserve),$440 ,11/8/2016
ATLANTIC TRACK & TURNOUT CO.,Equipment Purchases,"$177,520 ",4/20/2016
"ATLAS FIRST ACCESS MATERIAL HANDLING, INC.",Equipment Purchases,"$163,644 ",1/4/2016
"ATLAS FIRST ACCESS MATERIAL HANDLING, INC.",Maintenance of Buildings,"$1,279.22 ",1/4/2016
"ATLAS FIRST ACCESS MATERIAL HANDLING, INC.",Maintenance of Buildings,"$1,003.81 ",1/8/2016
"ATLAS FIRST ACCESS MATERIAL HANDLING, INC.",Maintenance of Equipment,$230.83 ,1/8/2016
"ATLAS FIRST ACCESS MATERIAL HANDLING, INC.",Maintenance of Buildings,$260.50 ,1/12/2016
"ATLAS FIRST ACCESS MATERIAL HANDLING, INC.",Maintenance of Buildings,"$4,965.22 ",1/13/2016
"ATLAS FIRST ACCESS MATERIAL HANDLING, INC.",Maintenance of Equipment,$714.66 ,1/13/2016
"ATLAS FIRST ACCESS MATERIAL HANDLING, INC.",Maintenance of Buildings,"$1,181.93 ",1/14/2016
"ATLAS FIRST ACCESS MATERIAL HANDLING, INC.",Maintenance of Buildings,"$6,486.19 ",1/15/2016
"ATLAS FIRST ACCESS MATERIAL HANDLING, INC.",Maintenance of Equipment,"$1,492.34 ",1/15/2016
"ATLAS FIRST ACCESS MATERIAL HANDLING, INC.",Maintenance of Buildings,$212.50 ,1/19/2016
"ATLAS FIRST ACCESS MATERIAL HANDLING, INC.",Maintenance of Buildings,"$1,776.70 ",1/20/2016
"ATLAS FIRST ACCESS MATERIAL HANDLING, INC.",Maintenance of Equipment,$187.77 ,1/20/2016
"ATLAS FIRST ACCESS MATERIAL HANDLING, INC.",Maintenance of Buildings,$831.17 ,1/21/2016
"ATLAS FIRST ACCESS MATERIAL HANDLING, INC.",Maintenance of Equipment,$644.69 ,1/21/2016
"ATLAS FIRST ACCESS MATERIAL HANDLING, INC.",Maintenance of Buildings,"$9,268.62 ",1/22/2016
"ATLAS FIRST ACCESS MATERIAL HANDLING, INC.",Maintenance of Equipment,$261.79 ,1/22/2016
"ATLAS FIRST ACCESS MATERIAL HANDLING, INC.",Maintenance of Equipment,$751.08 ,1/26/2016
"ATLAS FIRST ACCESS MATERIAL HANDLING, INC.",Maintenance of Buildings,"$8,043.13 ",1/27/2016
"ATLAS FIRST ACCESS MATERIAL HANDLING, INC.",Maintenance of Equipment,"$2,176.23 ",1/27/2016
"ATLAS FIRST ACCESS MATERIAL HANDLING, INC.",Maintenance of Buildings,"$17,150.36 ",1/28/2016
"ATLAS FIRST ACCESS MATERIAL HANDLING, INC.",Maintenance of Buildings,"$1,281.05 ",1/29/2016
"ATLAS FIRST ACCESS MATERIAL HANDLING, INC.",Maintenance of Equipment,$375.54 ,1/29/2016
"ATLAS FIRST ACCESS MATERIAL HANDLING, INC.",Maintenance of Buildings,"$1,481.02 ",2/3/2016
"ATLAS FIRST ACCESS MATERIAL HANDLING, INC.",Maintenance of Equipment,$387.14 ,2/4/2016
"ATLAS FIRST ACCESS MATERIAL HANDLING, INC.",Maintenance of Buildings,"$2,092.25 ",2/5/2016
"ATLAS FIRST ACCESS MATERIAL HANDLING, INC.",Maintenance of Equipment,"$1,035.84 ",2/5/2016
"ATLAS FIRST ACCESS MATERIAL HANDLING, INC.",Maintenance of Buildings,$212.50 ,2/9/2016
"ATLAS FIRST ACCESS MATERIAL HANDLING, INC.",Maintenance of Buildings,"$2,420.50 ",2/11/2016
"ATLAS FIRST ACCESS MATERIAL HANDLING, INC.",Maintenance of Buildings,$765 ,2/16/2016
"ATLAS FIRST ACCESS MATERIAL HANDLING, INC.",Maintenance of Buildings,$318.75 ,2/17/2016
"ATLAS FIRST ACCESS MATERIAL HANDLING, INC.",Maintenance of Buildings,"$1,405.80 ",2/18/2016
"ATLAS FIRST ACCESS MATERIAL HANDLING, INC.",Maintenance of Equipment,$450.77 ,2/18/2016
"ATLAS FIRST ACCESS MATERIAL HANDLING, INC.",Maintenance of Buildings,"$5,724.57 ",2/19/2016
"ATLAS FIRST ACCESS MATERIAL HANDLING, INC.",Maintenance of Buildings,$457.63 ,2/22/2016
"ATLAS FIRST ACCESS MATERIAL HANDLING, INC.",Maintenance of Buildings,"$2,625.31 ",2/23/2016
"ATLAS FIRST ACCESS MATERIAL HANDLING, INC.",Maintenance of Buildings,"$2,279.15 ",2/24/2016
"ATLAS FIRST ACCESS MATERIAL HANDLING, INC.",Maintenance of Buildings,"$4,791.56 ",2/25/2016
"ATLAS FIRST ACCESS MATERIAL HANDLING, INC.",Maintenance of Buildings,"$18,062.22 ",2/29/2016
"ATLAS FIRST ACCESS MATERIAL HANDLING, INC.",Maintenance of Buildings,"$3,544.94 ",3/3/2016
"ATLAS FIRST ACCESS MATERIAL HANDLING, INC.",Maintenance of Buildings,$788.01 ,3/4/2016
"ATLAS FIRST ACCESS MATERIAL HANDLING, INC.",Maintenance of Buildings,"$1,569.14 ",3/8/2016
"ATLAS FIRST ACCESS MATERIAL HANDLING, INC.",Maintenance of Buildings,"$7,878.71 ",3/9/2016
"ATLAS FIRST ACCESS MATERIAL HANDLING, INC.",Maintenance of Buildings,"$4,459.25 ",3/10/2016
"ATLAS FIRST ACCESS MATERIAL HANDLING, INC.",Maintenance of Buildings,"$1,485.44 ",3/11/2016
"ATLAS FIRST ACCESS MATERIAL HANDLING, INC.",Maintenance of Equipment,$279.19 ,3/11/2016
"ATLAS FIRST ACCESS MATERIAL HANDLING, INC.",Maintenance of Buildings,$768.93 ,3/15/2016
"ATLAS FIRST ACCESS MATERIAL HANDLING, INC.",Maintenance of Buildings,"$2,595.81 ",3/16/2016
"ATLAS FIRST ACCESS MATERIAL HANDLING, INC.",Maintenance of Buildings,"$10,674.62 ",3/17/2016
"ATLAS FIRST ACCESS MATERIAL HANDLING, INC.",Maintenance of Buildings,$273.90 ,3/18/2016
"ATLAS FIRST ACCESS MATERIAL HANDLING, INC.",Maintenance of Buildings,"$8,121.44 ",3/22/2016
"ATLAS FIRST ACCESS MATERIAL HANDLING, INC.",Maintenance of Buildings,"$2,872.21 ",3/23/2016
"ATLAS FIRST ACCESS MATERIAL HANDLING, INC.",Maintenance of Buildings,"$8,268.64 ",3/24/2016
"ATLAS FIRST ACCESS MATERIAL HANDLING, INC.",Maintenance of Equipment,$699.38 ,3/24/2016
"ATLAS FIRST ACCESS MATERIAL HANDLING, INC.",Maintenance of Buildings,"$4,409.62 ",3/25/2016
"ATLAS FIRST ACCESS MATERIAL HANDLING, INC.",Maintenance of Equipment,$558.38 ,3/25/2016
"ATLAS FIRST ACCESS MATERIAL HANDLING, INC.",Maintenance of Equipment,$162.76 ,3/28/2016
"ATLAS FIRST ACCESS MATERIAL HANDLING, INC.",Maintenance of Buildings,"$8,715.33 ",3/29/2016
"ATLAS FIRST ACCESS MATERIAL HANDLING, INC.",Maintenance of Equipment,"$2,457.29 ",3/29/2016
"ATLAS FIRST ACCESS MATERIAL HANDLING, INC.",Maintenance of Buildings,"$10,036.12 ",3/31/2016
"ATLAS FIRST ACCESS MATERIAL HANDLING, INC.",Maintenance of Equipment,$279.19 ,3/31/2016
"ATLAS FIRST ACCESS MATERIAL HANDLING, INC.",Maintenance of Equipment,$160.39 ,4/1/2016
"ATLAS FIRST ACCESS MATERIAL HANDLING, INC.",Maintenance of Equipment,$187.77 ,4/4/2016
"ATLAS FIRST ACCESS MATERIAL HANDLING, INC.",Maintenance of Buildings,"$2,893.63 ",4/6/2016
"ATLAS FIRST ACCESS MATERIAL HANDLING, INC.",Maintenance of Equipment,"$3,052.08 ",4/6/2016
"ATLAS FIRST ACCESS MATERIAL HANDLING, INC.",Maintenance of Buildings,"$4,432.67 ",4/7/2016
"ATLAS FIRST ACCESS MATERIAL HANDLING, INC.",Maintenance of Equipment,$746.17 ,4/7/2016
"ATLAS FIRST ACCESS MATERIAL HANDLING, INC.",Maintenance of Buildings,$180.26 ,4/11/2016
"ATLAS FIRST ACCESS MATERIAL HANDLING, INC.",Maintenance of Buildings,$729.23 ,4/12/2016
"ATLAS FIRST ACCESS MATERIAL HANDLING, INC.",Maintenance of Buildings,$131.96 ,4/13/2016
"ATLAS FIRST ACCESS MATERIAL HANDLING, INC.",Maintenance of Buildings,"$1,520.98 ",4/14/2016
"ATLAS FIRST ACCESS MATERIAL HANDLING, INC.",Maintenance of Equipment,$212.50 ,4/14/2016
"ATLAS FIRST ACCESS MATERIAL HANDLING, INC.",Maintenance of Buildings,"$33,355.66 ",4/15/2016
"ATLAS FIRST ACCESS MATERIAL HANDLING, INC.",Maintenance of Equipment,$746.17 ,4/15/2016
"ATLAS FIRST ACCESS MATERIAL HANDLING, INC.",Maintenance of Buildings,"$1,550.95 ",4/19/2016
"ATLAS FIRST ACCESS MATERIAL HANDLING, INC.",Maintenance of Equipment,$279.19 ,4/19/2016
"ATLAS FIRST ACCESS MATERIAL HANDLING, INC.",Maintenance of Buildings,"$12,818.55 ",4/20/2016
"ATLAS FIRST ACCESS MATERIAL HANDLING, INC.",Maintenance of Equipment,$563.31 ,4/20/2016
"ATLAS FIRST ACCESS MATERIAL HANDLING, INC.",Maintenance of Buildings,"$3,993.66 ",4/21/2016
"ATLAS FIRST ACCESS MATERIAL HANDLING, INC.",Maintenance of Equipment,$187.77 ,4/21/2016
"ATLAS FIRST ACCESS MATERIAL HANDLING, INC.",Maintenance of Buildings,"$6,239.58 ",4/22/2016
"ATLAS FIRST ACCESS MATERIAL HANDLING, INC.",Maintenance of Equipment,$187.77 ,4/22/2016
"ATLAS FIRST ACCESS MATERIAL HANDLING, INC.",Maintenance of Buildings,$416.39 ,4/26/2016
"ATLAS FIRST ACCESS MATERIAL HANDLING, INC.",Maintenance of Buildings,$219.94 ,4/27/2016
"ATLAS FIRST ACCESS MATERIAL HANDLING, INC.",Maintenance of Equipment,$187.77 ,4/27/2016
"ATLAS FIRST ACCESS MATERIAL HANDLING, INC.",Maintenance of Buildings,"$12,141.66 ",4/28/2016
"ATLAS FIRST ACCESS MATERIAL HANDLING, INC.",Maintenance of Buildings,"$4,229.46 ",5/4/2016
"ATLAS FIRST ACCESS MATERIAL HANDLING, INC.",Maintenance of Buildings,$175.95 ,5/5/2016
"ATLAS FIRST ACCESS MATERIAL HANDLING, INC.",Maintenance of Buildings,"$1,093.67 ",5/6/2016
"ATLAS FIRST ACCESS MATERIAL HANDLING, INC.",Maintenance of Buildings,"$2,460.63 ",5/12/2016
"ATLAS FIRST ACCESS MATERIAL HANDLING, INC.",Maintenance of Buildings,$760.87 ,5/13/2016
"ATLAS FIRST ACCESS MATERIAL HANDLING, INC.",Maintenance of Buildings,"$1,199.72 ",5/17/2016
"ATLAS FIRST ACCESS MATERIAL HANDLING, INC.",Maintenance of Buildings,$197.96 ,5/19/2016
"ATLAS FIRST ACCESS MATERIAL HANDLING, INC.",Maintenance of Buildings,"$12,437.05 ",5/20/2016
"ATLAS FIRST ACCESS MATERIAL HANDLING, INC.",Maintenance of Buildings,"$1,956.41 ",5/25/2016
"ATLAS FIRST ACCESS MATERIAL HANDLING, INC.",Maintenance of Buildings,"$5,705.10 ",5/26/2016
"ATLAS FIRST ACCESS MATERIAL HANDLING, INC.",Maintenance of Buildings,"$17,046.39 ",5/27/2016
"ATLAS FIRST ACCESS MATERIAL HANDLING, INC.",Maintenance of Buildings,"$1,129.53 ",6/2/2016
"ATLAS FIRST ACCESS MATERIAL HANDLING, INC.",Maintenance of Buildings,"$8,815.65 ",6/3/2016
"ATLAS FIRST ACCESS MATERIAL HANDLING, INC.",Maintenance of Buildings,$926.53 ,6/6/2016
"ATLAS FIRST ACCESS MATERIAL HANDLING, INC.",Maintenance of Buildings,"$3,685 ",6/7/2016
"ATLAS FIRST ACCESS MATERIAL HANDLING, INC.",Maintenance of Buildings,"$1,811.85 ",6/8/2016
"ATLAS FIRST ACCESS MATERIAL HANDLING, INC.",Maintenance of Buildings,$713.09 ,6/9/2016
"ATLAS FIRST ACCESS MATERIAL HANDLING, INC.",Maintenance of Equipment,$219.95 ,6/9/2016
"ATLAS FIRST ACCESS MATERIAL HANDLING, INC.",Maintenance of Buildings,$87.98 ,6/10/2016
"ATLAS FIRST ACCESS MATERIAL HANDLING, INC.",Maintenance of Buildings,$839.67 ,6/14/2016
"ATLAS FIRST ACCESS MATERIAL HANDLING, INC.",Maintenance of Buildings,"$6,131.88 ",6/15/2016
"ATLAS FIRST ACCESS MATERIAL HANDLING, INC.",Maintenance of Equipment,$263.52 ,6/15/2016
"ATLAS FIRST ACCESS MATERIAL HANDLING, INC.",Maintenance of Buildings,"$2,441.15 ",6/16/2016
"ATLAS FIRST ACCESS MATERIAL HANDLING, INC.",Maintenance of Buildings,"$3,006.55 ",6/17/2016
"ATLAS FIRST ACCESS MATERIAL HANDLING, INC.",Maintenance of Buildings,"$1,350.82 ",6/21/2016
"ATLAS FIRST ACCESS MATERIAL HANDLING, INC.",Maintenance of Buildings,"$1,450.53 ",6/22/2016
"ATLAS FIRST ACCESS MATERIAL HANDLING, INC.",Maintenance of Buildings,"$1,078.63 ",6/23/2016
"ATLAS FIRST ACCESS MATERIAL HANDLING, INC.",Maintenance of Buildings,"$1,769.51 ",6/24/2016
"ATLAS FIRST ACCESS MATERIAL HANDLING, INC.",Maintenance of Buildings,"$11,371.73 ",6/29/2016
"ATLAS FIRST ACCESS MATERIAL HANDLING, INC.",Maintenance of Buildings,"$4,679.11 ",7/1/2016
"ATLAS FIRST ACCESS MATERIAL HANDLING, INC.",Maintenance of Buildings,"$1,264.37 ",7/7/2016
"ATLAS FIRST ACCESS MATERIAL HANDLING, INC.",Maintenance of Buildings,$219.95 ,7/12/2016
"ATLAS FIRST ACCESS MATERIAL HANDLING, INC.",Maintenance of Buildings,$128.22 ,7/13/2016
"ATLAS FIRST ACCESS MATERIAL HANDLING, INC.",Maintenance of Buildings,"$2,805.39 ",7/14/2016
"ATLAS FIRST ACCESS MATERIAL HANDLING, INC.",Maintenance of Buildings,$749.68 ,7/15/2016
"ATLAS FIRST ACCESS MATERIAL HANDLING, INC.",Maintenance of Buildings,$835.81 ,7/19/2016
"ATLAS FIRST ACCESS MATERIAL HANDLING, INC.",Maintenance of Buildings,$219.95 ,7/20/2016
"ATLAS FIRST ACCESS MATERIAL HANDLING, INC.",Maintenance of Equipment,$175.96 ,7/20/2016
"ATLAS FIRST ACCESS MATERIAL HANDLING, INC.",Maintenance of Equipment,$219.95 ,7/21/2016
"ATLAS FIRST ACCESS MATERIAL HANDLING, INC.",Maintenance of Buildings,"$2,523.88 ",7/26/2016
"ATLAS FIRST ACCESS MATERIAL HANDLING, INC.",Maintenance of Buildings,"$2,087.73 ",7/27/2016
"ATLAS FIRST ACCESS MATERIAL HANDLING, INC.",Maintenance of Buildings,"$5,410.88 ",7/28/2016
"ATLAS FIRST ACCESS MATERIAL HANDLING, INC.",Maintenance of Buildings,"$17,398.94 ",7/29/2016
"ATLAS FIRST ACCESS MATERIAL HANDLING, INC.",Maintenance of Buildings,"$2,431.72 ",8/4/2016
"ATLAS FIRST ACCESS MATERIAL HANDLING, INC.",Maintenance of Buildings,$436.29 ,8/9/2016
"ATLAS FIRST ACCESS MATERIAL HANDLING, INC.",Maintenance of Buildings,$219.95 ,8/10/2016
"ATLAS FIRST ACCESS MATERIAL HANDLING, INC.",Maintenance of Buildings,"$18,979.88 ",8/11/2016
"ATLAS FIRST ACCESS MATERIAL HANDLING, INC.",Maintenance of Equipment,$410 ,8/11/2016
"ATLAS FIRST ACCESS MATERIAL HANDLING, INC.",Maintenance of Buildings,"$1,561.50 ",8/19/2016
"ATLAS FIRST ACCESS MATERIAL HANDLING, INC.",Maintenance of Buildings,"$1,642.18 ",8/23/2016
"ATLAS FIRST ACCESS MATERIAL HANDLING, INC.",Maintenance of Equipment,"$3,686 ",8/23/2016
"ATLAS FIRST ACCESS MATERIAL HANDLING, INC.",Maintenance of Buildings,"$15,832 ",8/29/2016
"ATLAS FIRST ACCESS MATERIAL HANDLING, INC.",Maintenance of Equipment,$175.96 ,8/29/2016
"ATLAS FIRST ACCESS MATERIAL HANDLING, INC.",Maintenance of Buildings,"$2,298.52 ",9/1/2016
"ATLAS FIRST ACCESS MATERIAL HANDLING, INC.",Maintenance of Equipment,$131.97 ,9/1/2016
"ATLAS FIRST ACCESS MATERIAL HANDLING, INC.",Maintenance of Buildings,"$1,441.16 ",9/2/2016
"ATLAS FIRST ACCESS MATERIAL HANDLING, INC.",Maintenance of Equipment,"$1,097.65 ",9/2/2016
"ATLAS FIRST ACCESS MATERIAL HANDLING, INC.",Maintenance of Buildings,"$3,686 ",9/6/2016
"ATLAS FIRST ACCESS MATERIAL HANDLING, INC.",Maintenance of Buildings,$219.95 ,9/7/2016
"ATLAS FIRST ACCESS MATERIAL HANDLING, INC.",Maintenance of Buildings,$307.93 ,9/9/2016
"ATLAS FIRST ACCESS MATERIAL HANDLING, INC.",Maintenance of Buildings,"$1,077.76 ",9/13/2016
"ATLAS FIRST ACCESS MATERIAL HANDLING, INC.",Maintenance of Equipment,$652.32 ,9/13/2016
"ATLAS FIRST ACCESS MATERIAL HANDLING, INC.",Maintenance of Buildings,"$1,809.10 ",9/14/2016
"ATLAS FIRST ACCESS MATERIAL HANDLING, INC.",Maintenance of Equipment,"$1,222.17 ",9/14/2016
"ATLAS FIRST ACCESS MATERIAL HANDLING, INC.",Maintenance of Equipment,$241.95 ,9/16/2016
"ATLAS FIRST ACCESS MATERIAL HANDLING, INC.",Maintenance of Buildings,"$1,626.53 ",9/20/2016
"ATLAS FIRST ACCESS MATERIAL HANDLING, INC.",Maintenance of Buildings,"$3,343.88 ",9/21/2016
"ATLAS FIRST ACCESS MATERIAL HANDLING, INC.",Maintenance of Buildings,"$2,369.19 ",9/22/2016
"ATLAS FIRST ACCESS MATERIAL HANDLING, INC.",Maintenance of Equipment,$456.79 ,9/22/2016
"ATLAS FIRST ACCESS MATERIAL HANDLING, INC.",Maintenance of Buildings,$471.40 ,9/23/2016
"ATLAS FIRST ACCESS MATERIAL HANDLING, INC.",Maintenance of Buildings,"$6,906.49 ",9/27/2016
"ATLAS FIRST ACCESS MATERIAL HANDLING, INC.",Maintenance of Buildings,"$3,638.68 ",9/28/2016
"ATLAS FIRST ACCESS MATERIAL HANDLING, INC.",Maintenance of Buildings,"$11,397.67 ",9/29/2016
"ATLAS FIRST ACCESS MATERIAL HANDLING, INC.",Maintenance of Equipment,"$2,068.76 ",9/29/2016
"ATLAS FIRST ACCESS MATERIAL HANDLING, INC.",Maintenance of Buildings,"$2,457.61 ",9/30/2016
"ATLAS FIRST ACCESS MATERIAL HANDLING, INC.",Maintenance of Buildings,$77.76 ,10/3/2016
"ATLAS FIRST ACCESS MATERIAL HANDLING, INC.",Maintenance of Buildings,$666.07 ,10/5/2016
"ATLAS FIRST ACCESS MATERIAL HANDLING, INC.",Maintenance of Buildings,"$5,032.03 ",10/6/2016
"ATLAS FIRST ACCESS MATERIAL HANDLING, INC.",Maintenance of Buildings,$513.49 ,10/7/2016
"ATLAS FIRST ACCESS MATERIAL HANDLING, INC.",Maintenance of Equipment,$187.77 ,10/7/2016
"ATLAS FIRST ACCESS MATERIAL HANDLING, INC.",Maintenance of Buildings,$873.85 ,10/11/2016
"ATLAS FIRST ACCESS MATERIAL HANDLING, INC.",Maintenance of Buildings,"$1,202.52 ",10/12/2016
"ATLAS FIRST ACCESS MATERIAL HANDLING, INC.",Maintenance of Equipment,"$1,789.44 ",10/12/2016
"ATLAS FIRST ACCESS MATERIAL HANDLING, INC.",Maintenance of Buildings,"$8,091.97 ",10/13/2016
"ATLAS FIRST ACCESS MATERIAL HANDLING, INC.",Maintenance of Equipment,"$2,394.84 ",10/13/2016
"ATLAS FIRST ACCESS MATERIAL HANDLING, INC.",Maintenance of Equipment,$746.17 ,10/14/2016
"ATLAS FIRST ACCESS MATERIAL HANDLING, INC.",Maintenance of Buildings,"$2,213.55 ",10/18/2016
"ATLAS FIRST ACCESS MATERIAL HANDLING, INC.",Maintenance of Equipment,$289.48 ,10/18/2016
"ATLAS FIRST ACCESS MATERIAL HANDLING, INC.",Maintenance of Buildings,"$2,881.28 ",10/19/2016
"ATLAS FIRST ACCESS MATERIAL HANDLING, INC.",Maintenance of Buildings,"$4,847.08 ",10/20/2016
"ATLAS FIRST ACCESS MATERIAL HANDLING, INC.",Maintenance of Buildings,$185.99 ,10/21/2016
"ATLAS FIRST ACCESS MATERIAL HANDLING, INC.",Maintenance of Buildings,"$6,989.37 ",10/25/2016
"ATLAS FIRST ACCESS MATERIAL HANDLING, INC.",Maintenance of Equipment,$434.13 ,10/25/2016
"ATLAS FIRST ACCESS MATERIAL HANDLING, INC.",Maintenance of Buildings,$805.91 ,10/26/2016
"ATLAS FIRST ACCESS MATERIAL HANDLING, INC.",Maintenance of Equipment,$260.03 ,10/26/2016
"ATLAS FIRST ACCESS MATERIAL HANDLING, INC.",Maintenance of Buildings,"$28,866.70 ",10/27/2016
"ATLAS FIRST ACCESS MATERIAL HANDLING, INC.",Maintenance of Equipment,"$5,987.88 ",10/27/2016
"ATLAS FIRST ACCESS MATERIAL HANDLING, INC.",Maintenance of Buildings,"$1,717.83 ",10/28/2016
"ATLAS FIRST ACCESS MATERIAL HANDLING, INC.",Maintenance of Buildings,"$2,348.32 ",10/31/2016
"ATLAS FIRST ACCESS MATERIAL HANDLING, INC.",Maintenance of Equipment,$75.73 ,11/2/2016
"ATLAS FIRST ACCESS MATERIAL HANDLING, INC.",Maintenance of Buildings,"$16,036.36 ",11/3/2016
"ATLAS FIRST ACCESS MATERIAL HANDLING, INC.",Maintenance of Buildings,"$5,887.24 ",11/10/2016
"ATLAS FIRST ACCESS MATERIAL HANDLING, INC.",Maintenance of Buildings,"$8,215 ",11/16/2016
"ATLAS FIRST ACCESS MATERIAL HANDLING, INC.",Maintenance of Buildings,"$6,977.25 ",11/17/2016
"ATLAS FIRST ACCESS MATERIAL HANDLING, INC.",Maintenance of Buildings,"$7,334.14 ",11/22/2016
"ATLAS FIRST ACCESS MATERIAL HANDLING, INC.",Maintenance of Buildings,"$1,903.63 ",11/23/2016
"ATLAS FIRST ACCESS MATERIAL HANDLING, INC.",Maintenance of Buildings,"$8,398.86 ",11/25/2016
"ATLAS FIRST ACCESS MATERIAL HANDLING, INC.",Maintenance of Buildings,"$16,973.55 ",11/29/2016
"ATLAS FIRST ACCESS MATERIAL HANDLING, INC.",Maintenance of Buildings,"$1,258.18 ",12/1/2016
"ATLAS FIRST ACCESS MATERIAL HANDLING, INC.",Maintenance of Buildings,$659.85 ,12/7/2016
"ATLAS FIRST ACCESS MATERIAL HANDLING, INC.",Maintenance of Buildings,"$23,741.58 ",12/8/2016
"ATLAS FIRST ACCESS MATERIAL HANDLING, INC.",Maintenance of Buildings,$791.05 ,12/9/2016
"ATLAS FIRST ACCESS MATERIAL HANDLING, INC.",Maintenance of Buildings,$566.65 ,12/14/2016
"ATLAS FIRST ACCESS MATERIAL HANDLING, INC.",Maintenance of Buildings,"$10,967.60 ",12/27/2016
"ATLAS FIRST ACCESS MATERIAL HANDLING, INC.",Maintenance of Buildings,"$2,089.87 ",12/27/2016
"ATLAS FIRST ACCESS MATERIAL HANDLING, INC.",Maintenance of Buildings,"$10,852.81 ",12/29/2016
"ATLAS FIRST ACCESS MATERIAL HANDLING, INC.",Maintenance of Buildings,"$6,173.95 ",12/30/2016
ATU LOCAL 241,Legal Defense (Non-Damage Reserve),"$29,371.93 ",10/20/2016
"AUTOMATIC FIRE CONTROLS, INC.",Maintenance of Equipment,$380 ,3/15/2016
"AUTOMATIC FIRE CONTROLS, INC.",Maintenance of Buildings,"$1,520 ",4/1/2016
"AUTOMATIC FIRE CONTROLS, INC.",Maintainance of Signal & Control Equipment,"$3,000 ",5/27/2016
"AUTOMATIC FIRE CONTROLS, INC.",Maintainance of Signal & Control Equipment,"$21,000 ",5/31/2016
"AUTOMATIC FIRE CONTROLS, INC.",Maintainance of Signal & Control Equipment,"$41,000 ",9/1/2016
"AUTOMATIC FIRE CONTROLS, INC.",Maintainance of Signal & Control Equipment,"$4,000 ",9/15/2016
"AUTOMATIC FIRE CONTROLS, INC.",Maintenance of Buildings,"$22,982 ",11/10/2016
"AUTOMATIC FIRE CONTROLS, INC.",Maintainance of Signal & Control Equipment,$456.40 ,11/29/2016
"AVAYA, INCORPORATED",Maintain/Repair Communications  Equip,"$72,607.94 ",3/3/2016
"AVAYA, INCORPORATED",Maintain/Repair Communications  Equip,$228 ,3/8/2016
"AVAYA, INCORPORATED",Maintain/Repair Communications  Equip,"$49,320.25 ",3/16/2016
"AVAYA, INCORPORATED",Maintain/Repair Communications  Equip,"$49,514.31 ",4/12/2016
"AVAYA, INCORPORATED",Maintain/Repair Communications  Equip,"$70,110.53 ",5/25/2016
"AVAYA, INCORPORATED",Maintain/Repair Communications  Equip,"$66,590.86 ",6/3/2016
"AVAYA, INCORPORATED",Maintain/Repair Communications  Equip,"$7,716.10 ",6/6/2016
"AVAYA, INCORPORATED",Maintain/Repair Communications  Equip,"$357,179.18 ",6/17/2016
"AVAYA, INCORPORATED",Maintain/Repair Communications  Equip,"$9,631.86 ",7/13/2016
"AVAYA, INCORPORATED",Maintain/Repair Communications  Equip,$450 ,8/9/2016
"AVAYA, INCORPORATED",Maintain/Repair Communications  Equip,"$20,403.60 ",12/22/2016
"AVIS RENT A CAR SYSTEM, INC.",Travel & Seminar,$347.23 ,5/12/2016
"AVIS RENT A CAR SYSTEM, INC.",Travel & Seminar,$384.74 ,6/15/2016
"AVIS RENT A CAR SYSTEM, INC.",Travel & Seminar,$546.22 ,12/14/2016
AXEL VARGAS MD,I&D Claims (Damage Reserve),$800 ,8/5/2016
AXIL L3C,Consulting Services,"$6,200 ",8/29/2016
AXIL L3C,Consulting Services,"$3,100 ",12/13/2016
AXION TECHNOLOGIES LTD.,Vehicle Rehab,"$15,011.52 ",1/13/2016
AXION TECHNOLOGIES LTD.,Vehicle Rehab,"$250,192 ",2/23/2016
AXION TECHNOLOGIES LTD.,Vehicle Rehab,"$125,096 ",4/11/2016
AXION TECHNOLOGIES LTD.,Vehicle Rehab,"$271,968 ",5/19/2016
AXION TECHNOLOGIES LTD.,Vehicle Rehab,"$146,872 ",9/14/2016
AXION TECHNOLOGIES LTD.,Vehicle Rehab,"$125,096 ",9/26/2016
AXION TECHNOLOGIES LTD.,Vehicle Rehab,"$125,096 ",10/25/2016
AXION TECHNOLOGIES LTD.,Vehicle Rehab,"$271,968 ",10/31/2016
AXION TECHNOLOGIES LTD.,Vehicle Rehab,"$135,984 ",11/16/2016
AXION TECHNOLOGIES LTD.,Vehicle Rehab,"$10,888 ",11/21/2016
AXION TECHNOLOGIES LTD.,Vehicle Rehab,"$125,096 ",12/15/2016
"BALFOUR BEATTY RAIL, INC.",Maintenance of Substations,"$2,956.59 ",4/12/2016
"BALL-NOGUES DESIGN STUDIO, LLC",Consulting Services,"$15,000 ",7/1/2016
BALMOND STUDIO,Consulting Services,"$67,932 ",8/31/2016
BALMOND STUDIO,Consulting Services,"$18,360 ",12/28/2016
BALOUGH LAW OFFICES LLC,Administrative Support,"$2,736 ",4/25/2016
BALOUGH LAW OFFICES LLC,Administrative Support,"$2,220 ",12/15/2016
BANK OF AMERICA,Management,$27 ,1/15/2016
BANK OF AMERICA,Open Fare,$472.20 ,1/15/2016
BANK OF AMERICA,Strategic Planning,$289.20 ,1/15/2016
BANK OF AMERICA,Travel & Seminar,"$1,936.80 ",1/15/2016
BANK OF AMERICA,Administrative Support,$938.40 ,2/18/2016
BANK OF AMERICA,Management,$876.50 ,2/18/2016
BANK OF AMERICA,Open Fare,$446.20 ,2/18/2016
BANK OF AMERICA,Strategic Planning,$99 ,2/18/2016
BANK OF AMERICA,Travel & Seminar,"$1,506.60 ",2/18/2016
BANK OF AMERICA,Accounting,$296.96 ,3/21/2016
BANK OF AMERICA,Administrative Support,"$1,622.28 ",3/21/2016
BANK OF AMERICA,BUS/RAIL ROADEO,$419.88 ,3/21/2016
BANK OF AMERICA,Management,$436.20 ,3/21/2016
BANK OF AMERICA,Network Support,$149.96 ,3/21/2016
BANK OF AMERICA,Travel & Seminar,"$3,342.71 ",3/21/2016
BANK OF AMERICA,Administrative Support,"$1,211.32 ",4/22/2016
BANK OF AMERICA,Drug & Alcohol Testing,$477.96 ,4/22/2016
BANK OF AMERICA,Engineering,$365.20 ,4/22/2016
BANK OF AMERICA,Management,$346 ,4/22/2016
BANK OF AMERICA,Open Fare,$915.40 ,4/22/2016
BANK OF AMERICA,Travel & Seminar,"$3,074.86 ",4/22/2016
BANK OF AMERICA,Administrative Support,$64 ,5/20/2016
BANK OF AMERICA,Administrative Support,"$1,324.60 ",5/20/2016
BANK OF AMERICA,BUS/RAIL ROADEO,$403.96 ,5/20/2016
BANK OF AMERICA,Management,"$1,608.56 ",5/20/2016
BANK OF AMERICA,Professional / Technical,$401.08 ,5/20/2016
BANK OF AMERICA,Tops Trapeze Timekeeping,$829.96 ,5/20/2016
BANK OF AMERICA,Travel & Seminar,"$5,069.70 ",5/20/2016
BANK OF AMERICA,Administrative Support,"$1,492.84 ",6/17/2016
BANK OF AMERICA,BUS/RAIL ROADEO,$936.88 ,6/17/2016
BANK OF AMERICA,Budget & Analysis,$278.20 ,6/17/2016
BANK OF AMERICA,Management,$367 ,6/17/2016
BANK OF AMERICA,Network Support,$224 ,6/17/2016
BANK OF AMERICA,Travel & Seminar,"$2,717.80 ",6/17/2016
BANK OF AMERICA,Administrative Support,"$7,252.80 ",6/20/2016
BANK OF AMERICA,Open Fare,$105.19 ,6/20/2016
BANK OF AMERICA,Administrative Support,$163.25 ,7/19/2016
BANK OF AMERICA,Administrative Support,"$3,386.70 ",7/19/2016
BANK OF AMERICA,Engineering,$189.20 ,7/19/2016
BANK OF AMERICA,Management,"$4,120.53 ",7/19/2016
BANK OF AMERICA,Recruiting / Hiring,$331.20 ,7/19/2016
BANK OF AMERICA,Strategic Planning,$509.96 ,7/19/2016
BANK OF AMERICA,Travel & Seminar,"$3,224 ",7/19/2016
BANK OF AMERICA,Administrative Support,"$2,633.92 ",8/19/2016
BANK OF AMERICA,Budget & Analysis,$365.96 ,8/19/2016
BANK OF AMERICA,Management,"$2,008.76 ",8/19/2016
BANK OF AMERICA,Travel & Seminar,"$3,583.20 ",8/19/2016
BANK OF AMERICA,Administrative Support,"$2,980.26 ",8/24/2016
BANK OF AMERICA,Administrative Support,"$6,179.43 ",9/19/2016
BANK OF AMERICA,Administrative Support,"$1,074.36 ",9/19/2016
BANK OF AMERICA,Budget & Analysis,$478.40 ,9/19/2016
BANK OF AMERICA,Management,"$1,097.60 ",9/19/2016
BANK OF AMERICA,Travel & Seminar,"$1,458.80 ",9/19/2016
BANK OF AMERICA,Administrative Support,"$1,470.80 ",10/18/2016
BANK OF AMERICA,Administrative Support,"$1,595.68 ",10/18/2016
BANK OF AMERICA,Management,"$1,542.16 ",10/18/2016
BANK OF AMERICA,Open Fare,$446.39 ,10/18/2016
BANK OF AMERICA,Travel & Seminar,"$6,239.82 ",10/18/2016
BANK OF AMERICA,Administrative Support,"$6,391.58 ",11/18/2016
BANK OF AMERICA,FARE CARD SOFTWARE CHG,"$1,561.92 ",11/18/2016
BANK OF AMERICA,Management,"$1,732.32 ",11/18/2016
BANK OF AMERICA,Travel & Seminar,$16 ,11/18/2016
BANK OF AMERICA,Administrative Support,$277.79 ,12/20/2016
BANK OF AMERICA,Administrative Support,"$1,077.56 ",12/20/2016
BANK OF AMERICA,Management,$248.30 ,12/20/2016
BANK OF AMERICA,Scheduling,$158.20 ,12/20/2016
BANK OF AMERICA,Travel & Seminar,"$1,112.40 ",12/20/2016
BARCODES INC,Maintain/Repair Communications  Equip,"$1,787.39 ",6/9/2016
"BASA PROJECTS, LLC",Consulting Services,"$2,418 ",3/28/2016
"BASSAM OSMAN, M.D",I&D Claims (Damage Reserve),$600 ,6/27/2016
BCR AUTOMOTIVE GROUP LLC DBA ROESCH FORD,Equipment Purchases,"$1,900 ",1/6/2016
BCR AUTOMOTIVE GROUP LLC DBA ROESCH FORD,Equipment Purchases,"$30,770 ",1/27/2016
BCR AUTOMOTIVE GROUP LLC DBA ROESCH FORD,Equipment Purchases,"$580,765 ",2/18/2016
BCR AUTOMOTIVE GROUP LLC DBA ROESCH FORD,Equipment Purchases,"$92,304 ",4/6/2016
BEBON OFFICE MACHINES CO.,Maintenance of Equipment,$95 ,4/9/2016
BEBON OFFICE MACHINES CO.,Maintenance of Equipment,$324 ,9/12/2016
BEBON OFFICE MACHINES CO.,Maintenance of Equipment,$74 ,9/28/2016
BENJAMIN GOLDBERG. M.D.,I&D Claims (Damage Reserve),"$1,000 ",7/1/2016
BENTLEY SYSTEMS INC,Management,$815.25 ,1/28/2016
BENTLEY SYSTEMS INC,Management,"$2,440 ",5/6/2016
BENTLEY SYSTEMS INC,Management,"$1,665.25 ",5/27/2016
BENTLEY SYSTEMS INC,Management,$828.75 ,8/19/2016
BENTLEY SYSTEMS INC,Management,"$10,464.87 ",12/30/2016
BERNARD SPENCER,I&D Claims (Damage Reserve),$75 ,4/22/2016
BERNARD SPENCER,I&D Claims (Damage Reserve),$75 ,4/22/2016
BERNARD WILLIAMS,Consulting Services,"$8,940 ",4/4/2016
BERNARD WILLIAMS,Consulting Services,"$11,175 ",9/2/2016
BERNARD WILLIAMS,Consulting Services,"$20,115 ",12/28/2016
BIAGIO'S CATERING BANQUETS & EVENTS,Maintenance of Track & Roadway,$943.05 ,4/9/2016
BIAS CORPORATION,Applications Support,"$1,140.11 ",1/28/2016
BIAS CORPORATION,Applications Support,"$1,140.11 ",5/2/2016
BIAS CORPORATION,Applications Support,"$1,140.11 ",7/21/2016
BIAS CORPORATION,Applications Support,"$1,140.09 ",10/25/2016
"BIDDLE CONSULTING GROUP, INC.",Recruiting / Hiring,"$1,859 ",6/20/2016
BILLINGS JACKSON LLC,Professional / Technical,"$150,000 ",10/27/2016
BIOMETRIC IMPRESSIONS CORP,Administrative Support,$935 ,5/12/2016
BLACKHAT USA 2016,Training - Students,"$3,400 ",7/8/2016
BLAIDA AND ASSOCIATES LLC,Administrative Support,"$36,000 ",6/20/2016
BLAIDA AND ASSOCIATES LLC,Administrative Support,"$6,000 ",8/5/2016
BLAIDA AND ASSOCIATES LLC,Administrative Support,"$12,000 ",8/30/2016
BLAIDA AND ASSOCIATES LLC,Administrative Support,"$12,000 ",11/8/2016
BLAIDA AND ASSOCIATES LLC,Administrative Support,"$6,000 ",12/9/2016
BLOOMBERG BNA,Administrative Support,"$1,186.11 ",12/20/2016
BLOOMBERG FINANCE L.P.,Administrative Support,"$6,720 ",3/10/2016
BLOOMBERG FINANCE L.P.,Administrative Support,"$6,720 ",6/8/2016
BLOOMBERG FINANCE L.P.,Administrative Support,"$6,720 ",9/14/2016
BLOOMBERG FINANCE L.P.,Administrative Support,"$6,720 ",11/9/2016
BLUE ISLAND POLICE DEPT.,I&D Claims (Damage Reserve),$5 ,9/28/2016
BLUE SODA PROMO,Administrative Support,$803.65 ,10/11/2016
BLUE SODA PROMO,Training - Students,$722.12 ,10/14/2016
BLUE TARP FINANCIAL,Equipment Purchases,$858 ,2/3/2016
BNSF RAILWAY COMPANY,"Facilities Operating Expenses (Rent,Utilities,etc)",$109.27 ,12/15/2016
"BOARD OF EDUCATION, CITY OF CHICAGO","Facilities Operating Expenses (Rent,Utilities,etc)",$125 ,2/2/2016
"BOARD OF EDUCATION, CITY OF CHICAGO","Facilities Operating Expenses (Rent,Utilities,etc)",$125 ,3/3/2016
"BOARD OF EDUCATION, CITY OF CHICAGO","Facilities Operating Expenses (Rent,Utilities,etc)",$125 ,4/4/2016
"BOARD OF EDUCATION, CITY OF CHICAGO","Facilities Operating Expenses (Rent,Utilities,etc)",$125 ,4/29/2016
"BOARD OF EDUCATION, CITY OF CHICAGO","Facilities Operating Expenses (Rent,Utilities,etc)",$125 ,5/26/2016
"BOARD OF EDUCATION, CITY OF CHICAGO","Facilities Operating Expenses (Rent,Utilities,etc)",$125 ,7/15/2016
"BOARD OF EDUCATION, CITY OF CHICAGO","Facilities Operating Expenses (Rent,Utilities,etc)",$125 ,8/4/2016
"BOARD OF EDUCATION, CITY OF CHICAGO","Facilities Operating Expenses (Rent,Utilities,etc)",$125 ,9/19/2016
"BOARD OF EDUCATION, CITY OF CHICAGO","Facilities Operating Expenses (Rent,Utilities,etc)",$125 ,10/4/2016
"BOARD OF EDUCATION, CITY OF CHICAGO","Facilities Operating Expenses (Rent,Utilities,etc)",$125 ,11/3/2016
"BOARD OF EDUCATION, CITY OF CHICAGO","Facilities Operating Expenses (Rent,Utilities,etc)",$125 ,12/14/2016
"BOARD OF EDUCATION, CITY OF CHICAGO","Facilities Operating Expenses (Rent,Utilities,etc)",$125 ,12/29/2016
"BOB WILSON & ASSOCIATES, INC.",Consulting Services,"$16,810 ",6/20/2016
BODY GEARS PHYSICAL THERAPHY,I&D Claims (Damage Reserve),$250 ,1/4/2016
BOLLINGER CONNOLLY KRAUSE LLC,Administrative Support,"$9,992.50 ",2/1/2016
BOLLINGER CONNOLLY KRAUSE LLC,Administrative Support,"$2,720 ",3/28/2016
BOLLINGER CONNOLLY KRAUSE LLC,Administrative Support,"$2,962.90 ",3/28/2016
BOLLINGER CONNOLLY KRAUSE LLC,Administrative Support,"$6,035 ",5/20/2016
BOLLINGER CONNOLLY KRAUSE LLC,Administrative Support,"$1,608.50 ",6/2/2016
BOLLINGER CONNOLLY KRAUSE LLC,Administrative Support,"$13,502 ",7/1/2016
BOLLINGER CONNOLLY KRAUSE LLC,Administrative Support,"$3,948 ",8/17/2016
BOLLINGER CONNOLLY KRAUSE LLC,Administrative Support,"$3,054.50 ",10/3/2016
BOLLINGER CONNOLLY KRAUSE LLC,Administrative Support,"$3,822 ",10/4/2016
BOLLINGER CONNOLLY KRAUSE LLC,Administrative Support,"$17,566.40 ",11/14/2016
BOLLINGER CONNOLLY KRAUSE LLC,Administrative Support,"$29,855.25 ",11/29/2016
BOLLINGER CONNOLLY KRAUSE LLC,Administrative Support,"$53,526.95 ",12/19/2016
BOMBARDIER TRANSPORTATION,Equipment Purchases,"$840,843.43 ",2/29/2016
BOMBARDIER TRANSPORTATION,Equipment Purchases,"$27,314.40 ",4/29/2016
BOMBARDIER TRANSPORTATION,Equipment Purchases,"$500,000 ",5/20/2016
BOMBARDIER TRANSPORTATION,Equipment Purchases,"$2,820,000 ",6/30/2016
BOMBARDIER TRANSPORTATION,Equipment Purchases,"$180,000 ",8/30/2016
BOMBARDIER TRANSPORTATION,Equipment Purchases,"$21,433.83 ",9/19/2016
BOMBARDIER TRANSPORTATION,Equipment Purchases,"$2,800,000 ",10/31/2016
BOMBARDIER TRANSPORTATION,Equipment Purchases,"$200,000 ",12/22/2016
"BONNAMY & ASSOCIATES, L.L.C.",I&D Claims (Damage Reserve),$300 ,3/4/2016
BOTTOMLINE TECHNOLOGIES,Applications Support,"$5,816.97 ",8/23/2016
BRAD FOX,Maintenance of Buildings,"$1,500 ",12/28/2016
BRADLEY MERK MD,I&D Claims (Damage Reserve),$750 ,1/22/2016
BRADLEY MERK MD,I&D Claims (Damage Reserve),$750 ,10/27/2016
"BRANCATO LANDSCAPING, INC.",Maintenance of Buildings,"$5,719 ",6/30/2016
"BRANCATO LANDSCAPING, INC.",Maintenance of Buildings,"$10,861 ",7/14/2016
"BRANCATO LANDSCAPING, INC.",Maintenance of Buildings,"$8,527 ",7/19/2016
"BRANCATO LANDSCAPING, INC.",Maintenance of Buildings,"$5,630 ",8/25/2016
"BRANCATO LANDSCAPING, INC.",Maintenance of Buildings,"$10,207.25 ",8/30/2016
"BRANCATO LANDSCAPING, INC.",Maintenance of Buildings,"$4,016 ",9/8/2016
"BRANCATO LANDSCAPING, INC.",Maintenance of Buildings,"$3,520 ",9/15/2016
"BRANCATO LANDSCAPING, INC.",Maintenance of Buildings,"$4,630 ",9/22/2016
"BRANCATO LANDSCAPING, INC.",Maintenance of Buildings,"$4,575 ",10/6/2016
"BRANDT & SONS MARKETING GROUP, INC.",Administrative Support,$599.40 ,7/15/2016
"BRANDT & SONS MARKETING GROUP, INC.",Administrative Support,$599.40 ,7/22/2016
BRE RIVER NORTH POINT OWNER,"Facilities Operating Expenses (Rent,Utilities,etc)","$50,122.04 ",1/11/2016
BRE RIVER NORTH POINT OWNER,"Facilities Operating Expenses (Rent,Utilities,etc)","$50,122.04 ",2/1/2016
BRE RIVER NORTH POINT OWNER,"Facilities Operating Expenses (Rent,Utilities,etc)","$50,122.04 ",3/4/2016
BRE RIVER NORTH POINT OWNER,"Facilities Operating Expenses (Rent,Utilities,etc)","$50,122.04 ",4/4/2016
BRE RIVER NORTH POINT OWNER,"Facilities Operating Expenses (Rent,Utilities,etc)","$50,122.04 ",5/3/2016
BRE RIVER NORTH POINT OWNER,"Facilities Operating Expenses (Rent,Utilities,etc)","$50,122.04 ",6/9/2016
BRE RIVER NORTH POINT OWNER,"Facilities Operating Expenses (Rent,Utilities,etc)","$50,122.04 ",7/22/2016
BRE RIVER NORTH POINT OWNER,"Facilities Operating Expenses (Rent,Utilities,etc)","$50,122.04 ",7/26/2016
BRE RIVER NORTH POINT OWNER,"Facilities Operating Expenses (Rent,Utilities,etc)","$50,852.04 ",8/19/2016
BRE RIVER NORTH POINT OWNER,"Facilities Operating Expenses (Rent,Utilities,etc)","$50,852.04 ",9/23/2016
BRE RIVER NORTH POINT OWNER,"Facilities Operating Expenses (Rent,Utilities,etc)","$50,852.04 ",11/4/2016
BRE RIVER NORTH POINT OWNER,"Facilities Operating Expenses (Rent,Utilities,etc)","$110,953.89 ",12/30/2016
BREHON REPORTING,Administrative Support,"$2,289.26 ",5/6/2016
BREHON REPORTING,Administrative Support,$87.50 ,6/14/2016
BREHON REPORTING,Administrative Support,$719.88 ,7/11/2016
BRIAN DENNIS,I&D Claims (Damage Reserve),$25 ,3/25/2016
BRIAN J GRABER LTD,Administrative Support,$75 ,6/10/2016
BRIAN J GRABER LTD,Legal Defense (Non-Damage Reserve),"$2,556.04 ",12/28/2016
BRIDGES COURT REPORTING,I&D Claims (Damage Reserve),$25 ,1/4/2016
BRIDGES COURT REPORTING,I&D Claims (Damage Reserve),$185 ,6/9/2016
BRIDGES COURT REPORTING,Administrative Support,$439.05 ,6/14/2016
BRIDGES COURT REPORTING,I&D Claims (Damage Reserve),$150 ,8/10/2016
"BROCK INDUSTRIAL SERVICES, LLC",Maintenance of Buildings,"$1,239.80 ",1/25/2016
"BROCK INDUSTRIAL SERVICES, LLC",Maintenance of Buildings,"$10,526.15 ",2/29/2016
"BROCK INDUSTRIAL SERVICES, LLC",Maintenance of Buildings,"$2,270 ",3/14/2016
"BROCK INDUSTRIAL SERVICES, LLC",Maintenance of Buildings,"$2,662 ",4/21/2016
BRUCE FIELDS,I&D Claims (Damage Reserve),$25 ,1/21/2016
"BUCHANAN REPORTING, INC",I&D Claims (Damage Reserve),$567.75 ,4/9/2016
"BUCHANAN REPORTING, INC",I&D Claims (Damage Reserve),$357 ,4/11/2016
"BUCHANAN REPORTING, INC",I&D Claims (Damage Reserve),$171 ,5/13/2016
"BUCHANAN REPORTING, INC",I&D Claims (Damage Reserve),$363.60 ,9/8/2016
"BUCHANAN REPORTING, INC",I&D Claims (Damage Reserve),$99 ,10/21/2016
BUILDERS CHICAGO CORPORATION,Maintenance of Equipment,"$16,969.28 ",10/11/2016
BUILDERS CHICAGO CORPORATION,Maintenance of Rail Stations,"$7,636.75 ",10/11/2016
BUILDERS CHICAGO CORPORATION,Maintenance of Buildings,$148 ,10/13/2016
BUILDERS CHICAGO CORPORATION,Maintenance of Equipment,$744 ,10/26/2016
BUILDERS CHICAGO CORPORATION,Maintenance of Buildings,$966.03 ,10/27/2016
BUILDERS CHICAGO CORPORATION,Maintenance of Buildings,"$2,899.57 ",10/28/2016
BUILDERS CHICAGO CORPORATION,Maintenance of Equipment,"$1,488.97 ",10/28/2016
BUILDERS CHICAGO CORPORATION,Maintenance of Rail Stations,"$1,826.60 ",10/28/2016
BUILDERS CHICAGO CORPORATION,Maintenance of Buildings,"$1,003.45 ",12/7/2016
BUILDERS CHICAGO CORPORATION,Maintenance of Buildings,"$1,418.04 ",12/16/2016
BUILDERS CHICAGO CORPORATION,Maintenance of Buildings,"$1,618.28 ",12/29/2016
"BUREAU OF NATIONAL AFFAIRS, INC., THE",Administrative Support,"$11,000 ",2/1/2016
"BURKE, WARREN, MACKAY &",Administrative Support,$150 ,6/30/2016
C&G SYSTEMS CORPORATION,Steel Fabrication,"$10,180 ",7/7/2016
C2LLC,Cash Management,"$4,140 ",1/15/2016
CAIRS,Administrative Support,$137.50 ,2/22/2016
CAIRS,Administrative Support,$307.50 ,5/27/2016
CAIRS,Administrative Support,$187.50 ,10/13/2016
CAIRS,Administrative Support,$307.50 ,12/1/2016
CALBEAH THOMPSON,Reimb for lost tools/badges,$20 ,8/5/2016
CALIBER PACKAGING LLC,Maintenance of Equipment,$694.22 ,3/24/2016
CALIBER PACKAGING LLC,Maintenance of Equipment,$981.92 ,4/19/2016
"CALIBRATION SOLUTION, THE",Management,$941.04 ,8/3/2016
"CALUMET ARMATURE AND ELECTRIC, LLC",Vehicle Rehab,"$174,675.72 ",1/5/2016
"CALUMET ARMATURE AND ELECTRIC, LLC",Vehicle Rehab,"$174,675.72 ",1/15/2016
"CALUMET ARMATURE AND ELECTRIC, LLC",Vehicle Rehab,"$174,675.72 ",2/12/2016
"CALUMET ARMATURE AND ELECTRIC, LLC",Vehicle Rehab,"$174,675.72 ",2/23/2016
"CALUMET ARMATURE AND ELECTRIC, LLC",Vehicle Rehab,"$174,675.72 ",3/17/2016
"CALUMET ARMATURE AND ELECTRIC, LLC",Vehicle Rehab,"$87,337.86 ",3/23/2016
"CALUMET ARMATURE AND ELECTRIC, LLC",Vehicle Rehab,"$174,675.72 ",3/28/2016
"CALUMET ARMATURE AND ELECTRIC, LLC",Vehicle Rehab,"$174,675.72 ",4/18/2016
"CALUMET ARMATURE AND ELECTRIC, LLC",Vehicle Rehab,"$174,675.72 ",5/4/2016
"CALUMET ARMATURE AND ELECTRIC, LLC",Vehicle Rehab,"$174,675.72 ",5/17/2016
"CALUMET ARMATURE AND ELECTRIC, LLC",Vehicle Rehab,"$174,675.72 ",5/25/2016
"CALUMET ARMATURE AND ELECTRIC, LLC",Vehicle Rehab,"$174,675.72 ",6/21/2016
"CALUMET ARMATURE AND ELECTRIC, LLC",Vehicle Rehab,"$174,675.72 ",7/13/2016
"CALUMET ARMATURE AND ELECTRIC, LLC",Vehicle Rehab,"$174,675.72 ",8/11/2016
"CALUMET ARMATURE AND ELECTRIC, LLC",Vehicle Rehab,"$174,675.72 ",8/17/2016
"CALUMET ARMATURE AND ELECTRIC, LLC",Vehicle Rehab,"$436,689.30 ",9/7/2016
"CALUMET ARMATURE AND ELECTRIC, LLC",Vehicle Rehab,"$174,675.72 ",9/21/2016
"CALUMET ARMATURE AND ELECTRIC, LLC",Vehicle Rehab,"$174,675.72 ",9/28/2016
"CALUMET ARMATURE AND ELECTRIC, LLC",Vehicle Rehab,"$174,675.72 ",11/14/2016
"CALUMET ARMATURE AND ELECTRIC, LLC",Vehicle Rehab,"$349,351.44 ",11/16/2016
"CALUMET ARMATURE AND ELECTRIC, LLC",Vehicle Rehab,"$174,675.72 ",11/28/2016
"CAMBRIDGE SYSTEMATICS, INC.",Surveys / Studies,"$82,910 ",12/23/2016
CANDICE DISHMON,Legal Defense (Non-Damage Reserve),"$10,000 ",1/27/2016
"CAPRICORN COMMUNICATIONS, LLC",Administrative Support,"$14,333.33 ",1/5/2016
"CAPRICORN COMMUNICATIONS, LLC",Administrative Support,"$6,000 ",2/1/2016
"CAPRICORN COMMUNICATIONS, LLC",Administrative Support,"$12,000 ",6/20/2016
"CAPRICORN COMMUNICATIONS, LLC",Administrative Support,"$12,000 ",6/21/2016
"CAPRICORN COMMUNICATIONS, LLC",Administrative Support,"$6,000 ",7/6/2016
"CAPRICORN COMMUNICATIONS, LLC",Administrative Support,"$6,000 ",8/5/2016
"CAPRICORN COMMUNICATIONS, LLC",Administrative Support,"$6,000 ",8/31/2016
"CAPRICORN COMMUNICATIONS, LLC",Administrative Support,"$12,000 ",11/3/2016
"CAPRICORN COMMUNICATIONS, LLC",Administrative Support,"$6,000 ",12/1/2016
"CAPUS AUTOMATION SERVICES, INC.",Maintenance of Equipment,$669.50 ,9/16/2016
"CARD IMAGING, INC.",Administrative Support,"$1,119 ",1/14/2016
"CARD IMAGING, INC.",Training - Students,$330 ,5/26/2016
"CARD IMAGING, INC.",Training - Students,$82 ,9/22/2016
"CARD IMAGING, INC.",Training - Students,$522 ,10/31/2016
CARDISS COLLINS POSTAL STORE,I&D Claims (Damage Reserve),$885 ,7/25/2016
"CAREERBUILDER GOVERNMENT SOLUTIONS, LLC",Professional / Technical,"$3,000 ",10/18/2016
"CAREERBUILDER GOVERNMENT SOLUTIONS, LLC",Professional / Technical,"$3,135 ",10/27/2016
CARLA JONES,Administrative Support,$46.90 ,2/9/2016
CARLOS Da FONSECA MD,I&D Claims (Damage Reserve),$500 ,10/31/2016
CAROLINE M STEELBERG PSY. D. LLC,Administrative Support,$80 ,2/26/2016
CARRIE BELLE WASHINGTON,Administrative Support,$550 ,2/1/2016
CARRIE BELLE WASHINGTON,Administrative Support,"$1,325 ",4/26/2016
CARY MORGEN,Administrative Support,"$1,800 ",1/22/2016
CARY MORGEN,Administrative Support,$600 ,4/26/2016
CARY MORGEN,Administrative Support,$600 ,5/23/2016
CARY MORGEN,Administrative Support,$600 ,7/27/2016
CDM SMITH INC.,Consulting Services,"$6,517.43 ",3/21/2016
CDM SMITH INC.,Consulting Services,"$33,204.40 ",4/22/2016
CDM SMITH INC.,Consulting Services,"$157,149.74 ",11/14/2016
CDM/WIGHT - A JOINT VENTURE,Consulting Services,"$4,393.49 ",2/12/2016
CDM/WIGHT - A JOINT VENTURE,Consulting Services,"$8,345.11 ",2/18/2016
CDM/WIGHT - A JOINT VENTURE,Consulting Services,"$30,755.98 ",4/22/2016
CDM/WIGHT - A JOINT VENTURE,Consulting Services,"$3,031.95 ",10/5/2016
CDM/WIGHT - A JOINT VENTURE,Consulting Services,"$9,035.38 ",10/17/2016
"CDW GOVERNMENT, INCORPORATED",Administrative Support,"$1,644.40 ",1/15/2016
"CDW GOVERNMENT, INCORPORATED",Administrative Support,$322.48 ,1/21/2016
"CDW GOVERNMENT, INCORPORATED",Maintain/Repair Communications  Equip,"$4,351.40 ",1/28/2016
"CDW GOVERNMENT, INCORPORATED",Administrative Support,$237.24 ,2/5/2016
"CDW GOVERNMENT, INCORPORATED",Management,$395.01 ,2/5/2016
"CDW GOVERNMENT, INCORPORATED",Professional / Technical,$729.33 ,2/5/2016
"CDW GOVERNMENT, INCORPORATED",Equipment Purchases,"$48,928.40 ",2/12/2016
"CDW GOVERNMENT, INCORPORATED",Administrative Support,"$4,750 ",3/2/2016
"CDW GOVERNMENT, INCORPORATED",Professional / Technical,$96.40 ,3/3/2016
"CDW GOVERNMENT, INCORPORATED",Applications Support,"$15,697.63 ",3/16/2016
"CDW GOVERNMENT, INCORPORATED",Maintain/Repair Communications  Equip,"$2,979.99 ",3/16/2016
"CDW GOVERNMENT, INCORPORATED",Network Support,"$9,048.23 ",3/16/2016
"CDW GOVERNMENT, INCORPORATED",Administrative Support,"$2,818.86 ",3/17/2016
"CDW GOVERNMENT, INCORPORATED",Management,"$79,744.42 ",4/1/2016
"CDW GOVERNMENT, INCORPORATED",Applications Support,"$119,368.70 ",4/20/2016
"CDW GOVERNMENT, INCORPORATED",Administrative Support,$263.90 ,4/21/2016
"CDW GOVERNMENT, INCORPORATED",Applications Support,"$48,795.92 ",4/21/2016
"CDW GOVERNMENT, INCORPORATED",Computer Systems Support (Non-IT Dept Areas),$281.81 ,4/21/2016
"CDW GOVERNMENT, INCORPORATED",Administrative Support,$968.25 ,5/2/2016
"CDW GOVERNMENT, INCORPORATED",Applications Support,"$644,806.84 ",5/24/2016
"CDW GOVERNMENT, INCORPORATED",Administrative Support,$700.32 ,6/28/2016
"CDW GOVERNMENT, INCORPORATED",Administrative Support,"$5,141.73 ",7/6/2016
"CDW GOVERNMENT, INCORPORATED",Applications Support,"$50,162 ",7/15/2016
"CDW GOVERNMENT, INCORPORATED",Administrative Support,"$2,932.58 ",7/18/2016
"CDW GOVERNMENT, INCORPORATED",Administrative Support,"$4,314.80 ",7/20/2016
"CDW GOVERNMENT, INCORPORATED",Applications Support,"$54,645.90 ",7/20/2016
"CDW GOVERNMENT, INCORPORATED",Computer Operations,$273.06 ,7/20/2016
"CDW GOVERNMENT, INCORPORATED",General Shop/Gar/Term Repairs & Svcs,$132.86 ,7/20/2016
"CDW GOVERNMENT, INCORPORATED",Maintainance of Signal & Control Equipment,"$1,667.55 ",7/20/2016
"CDW GOVERNMENT, INCORPORATED",Administrative Support,$684.17 ,8/3/2016
"CDW GOVERNMENT, INCORPORATED",Maintainance of Signal & Control Equipment,$536.97 ,8/3/2016
"CDW GOVERNMENT, INCORPORATED",Administrative Support,$178.76 ,8/11/2016
"CDW GOVERNMENT, INCORPORATED",Administrative Support,$437.97 ,8/23/2016
"CDW GOVERNMENT, INCORPORATED",Applications Support,$53.74 ,8/23/2016
"CDW GOVERNMENT, INCORPORATED",Computer Systems Support (Non-IT Dept Areas),"$1,561.15 ",8/23/2016
"CDW GOVERNMENT, INCORPORATED",Traffic Management,$110.88 ,8/23/2016
"CDW GOVERNMENT, INCORPORATED",Equipment Purchases,"$3,017.85 ",8/29/2016
"CDW GOVERNMENT, INCORPORATED",Applications Support,"$6,115.80 ",9/7/2016
"CDW GOVERNMENT, INCORPORATED",Administrative Support,$76.77 ,10/12/2016
"CDW GOVERNMENT, INCORPORATED",Applications Support,$46.16 ,10/12/2016
"CDW GOVERNMENT, INCORPORATED",Administrative Support,$763.76 ,10/14/2016
"CDW GOVERNMENT, INCORPORATED",Computer Systems Support (Non-IT Dept Areas),$360.16 ,10/14/2016
"CDW GOVERNMENT, INCORPORATED",General Shop/Gar/Term Repairs & Svcs,$262.88 ,10/14/2016
"CDW GOVERNMENT, INCORPORATED",Management,$442.42 ,10/14/2016
"CDW GOVERNMENT, INCORPORATED",Administrative Support,"$1,100.72 ",11/16/2016
"CDW GOVERNMENT, INCORPORATED",Applications Support,"$1,353.68 ",11/16/2016
"CDW GOVERNMENT, INCORPORATED",Administrative Support,$16.68 ,12/22/2016
"CDW GOVERNMENT, INCORPORATED",General Shop/Gar/Term Repairs & Svcs,$152.34 ,12/22/2016
"CEMBRE, INC",Maintenance of Track & Roadway-Electrical,$609.66 ,2/16/2016
"CEMBRE, INC",Maintenance of Track & Roadway-Electrical,$52.80 ,4/22/2016
CENTER FOR CONFLICT RESOLUTION,Training - Students,"$1,395 ",5/31/2016
CENTER OF BRAIN & SPINE SURGERY,I&D Claims (Damage Reserve),"$4,950 ",1/7/2016
CENTER OF BRAIN & SPINE SURGERY,I&D Claims (Damage Reserve),"$4,200 ",1/26/2016
CENTER OF BRAIN & SPINE SURGERY,I&D Claims (Damage Reserve),"$2,250 ",2/18/2016
CENTER OF BRAIN & SPINE SURGERY,I&D Claims (Damage Reserve),"$2,550 ",2/18/2016
CENTER OF BRAIN & SPINE SURGERY,I&D Claims (Damage Reserve),"$1,800 ",2/18/2016
CENTER OF BRAIN & SPINE SURGERY,I&D Claims (Damage Reserve),$300 ,4/11/2016
CENTER OF BRAIN & SPINE SURGERY,I&D Claims (Damage Reserve),"$1,800 ",4/25/2016
CENTER OF BRAIN & SPINE SURGERY,I&D Claims (Damage Reserve),"$1,800 ",4/26/2016
CENTER OF BRAIN & SPINE SURGERY,I&D Claims (Damage Reserve),"$1,200 ",5/20/2016
CENTER OF BRAIN & SPINE SURGERY,I&D Claims (Damage Reserve),"$5,250 ",7/11/2016
"CENTERPOINT ENERGY SERVICES, INC.","Facilities Operating Expenses (Rent,Utilities,etc)","$253,273.30 ",1/14/2016
"CENTERPOINT ENERGY SERVICES, INC.","Facilities Operating Expenses (Rent,Utilities,etc)","$354,894.51 ",2/18/2016
"CENTERPOINT ENERGY SERVICES, INC.","Facilities Operating Expenses (Rent,Utilities,etc)","$398,743.89 ",3/23/2016
"CENTERPOINT ENERGY SERVICES, INC.","Facilities Operating Expenses (Rent,Utilities,etc)","$337,446.59 ",4/19/2016
"CENTERPOINT ENERGY SERVICES, INC.","Facilities Operating Expenses (Rent,Utilities,etc)","$249,601.93 ",5/20/2016
"CENTERPOINT ENERGY SERVICES, INC.","Facilities Operating Expenses (Rent,Utilities,etc)","$162,057.10 ",6/22/2016
"CENTERPOINT ENERGY SERVICES, INC.","Facilities Operating Expenses (Rent,Utilities,etc)","$38,104.13 ",7/21/2016
"CENTERPOINT ENERGY SERVICES, INC.","Facilities Operating Expenses (Rent,Utilities,etc)","$6,395.48 ",8/23/2016
"CENTERPOINT ENERGY SERVICES, INC.","Facilities Operating Expenses (Rent,Utilities,etc)","$7,669.62 ",9/22/2016
"CENTERPOINT ENERGY SERVICES, INC.","Facilities Operating Expenses (Rent,Utilities,etc)","$7,345.66 ",10/27/2016
"CENTERPOINT ENERGY SERVICES, INC.","Facilities Operating Expenses (Rent,Utilities,etc)","$9,534.38 ",11/25/2016
"CENTERPOINT ENERGY SERVICES, INC.","Facilities Operating Expenses (Rent,Utilities,etc)","$49,960.42 ",12/27/2016
CENTRAL MEDICAL CENTER,I&D Claims (Damage Reserve),$400 ,2/19/2016
"CENTRAL REPORTERS ASSOC., LTD.",I&D Claims (Damage Reserve),$192.25 ,5/5/2016
"CENTRAL REPORTERS ASSOC., LTD.",I&D Claims (Damage Reserve),$145.75 ,6/9/2016
"CENTURY CONTRACTORS, INC.",Maintenance of Buildings,"$19,098 ",1/15/2016
"CENTURY CONTRACTORS, INC.",Maintenance of Buildings,"$2,160 ",4/15/2016
"CENTURY CONTRACTORS, INC.",Contract Construction,"$26,438 ",4/27/2016
"CENTURY CONTRACTORS, INC.",Maintenance of Buildings,"$12,498.75 ",7/22/2016
CERTIFIED REPORTING CO.,I&D Claims (Damage Reserve),$237.40 ,1/14/2016
CERTIFIED REPORTING CO.,I&D Claims (Damage Reserve),$164.80 ,5/13/2016
CERTUS DEPOSITION SERVICES LLC,I&D Claims (Damage Reserve),$523 ,5/10/2016
CF II 2700 ROOSEVELT LLC.,Leases & Rentals,"$18,492.75 ",1/15/2016
CF II 2700 ROOSEVELT LLC.,Leases & Rentals,$590.05 ,2/10/2016
CF II 2700 ROOSEVELT LLC.,Leases & Rentals,"$18,492.75 ",2/12/2016
CF II 2700 ROOSEVELT LLC.,Leases & Rentals,"$19,672.18 ",3/8/2016
CF II 2700 ROOSEVELT LLC.,Leases & Rentals,"$16,225 ",4/4/2016
CF II 2700 ROOSEVELT LLC.,Leases & Rentals,"$18,553.82 ",5/11/2016
CF II 2700 ROOSEVELT LLC.,Misc. Expenditures,"$20,369.89 ",6/13/2016
CF II 2700 ROOSEVELT LLC.,Leases & Rentals,"$19,582.88 ",7/25/2016
CF II 2700 ROOSEVELT LLC.,Misc. Expenditures,"$19,898.50 ",8/11/2016
CF II 2700 ROOSEVELT LLC.,Leases & Rentals,"$19,597.63 ",9/2/2016
CF II 2700 ROOSEVELT LLC.,Leases & Rentals,"$19,599.74 ",11/14/2016
CF II 2700 ROOSEVELT LLC.,Leases & Rentals,"$19,119.81 ",12/13/2016
CF II 2700 ROOSEVELT LLC.,Leases & Rentals,$849.93 ,12/21/2016
CG AUTOMATION SOLUTIONS USA INC,Applications Support,"$300,650 ",2/29/2016
CG AUTOMATION SOLUTIONS USA INC,Applications Support,"$14,620 ",6/24/2016
CHAMPION CONTAINER CORPORATION,Rebuild Chassis Units,"$1,167.50 ",6/16/2016
CHAREMANGNE GUERRERO M.D.,I&D Claims (Damage Reserve),$900 ,12/9/2016
"CHARITY & ASSOCIATES, P.C.",Consulting Services,"$65,000 ",4/12/2016
"CHARITY & ASSOCIATES, P.C.",Administrative Support,"$15,000 ",12/22/2016
CHARLES EQUIPMENT ENERGY SYSTEMS LLC,Maintenance of Buildings,"$2,500 ",3/14/2016
CHARLES EQUIPMENT ENERGY SYSTEMS LLC,Maintenance of Equipment,$730 ,3/22/2016
CHARLES EQUIPMENT ENERGY SYSTEMS LLC,Maintenance of Equipment,"$21,341 ",5/12/2016
CHARLES SHELTON,I&D Claims (Damage Reserve),$75 ,4/28/2016
CHARLES SHELTON,I&D Claims (Damage Reserve),$75 ,4/28/2016
CHEROKEE PORCELAIN ENAMEL CORP,Administrative Support,"$13,930 ",11/16/2016
CHICAGO COMPENSATION ASSOC.,Compensation,$190 ,10/13/2016
CHICAGO DEFENDER PUBLISHING CO.,Administrative Support,$369.60 ,2/2/2016
CHICAGO DEFENDER PUBLISHING CO.,Administrative Support,$369.60 ,11/30/2016
"CHICAGO JACK SERVICE, INC.",Maintenance of Equipment,$450 ,1/12/2016
"CHICAGO JACK SERVICE, INC.",Manufacture Parts for Stock,"$2,832.20 ",2/24/2016
"CHICAGO JACK SERVICE, INC.",Manufacture Parts for Stock,$525 ,2/29/2016
"CHICAGO JACK SERVICE, INC.",Maintenance of Equipment,"$1,814 ",3/9/2016
"CHICAGO JACK SERVICE, INC.",Maintenance of Equipment,$795 ,3/25/2016
"CHICAGO JACK SERVICE, INC.",Maintenance of Equipment,$340 ,5/2/2016
"CHICAGO JACK SERVICE, INC.",Maintenance of Equipment,$990 ,5/6/2016
"CHICAGO JACK SERVICE, INC.",General Shop/Gar/Term Repairs & Svcs,$792 ,5/19/2016
"CHICAGO JACK SERVICE, INC.",Maintenance of Equipment,$990 ,7/5/2016
"CHICAGO JACK SERVICE, INC.",Maintenance of Equipment,$910 ,8/11/2016
"CHICAGO JACK SERVICE, INC.",Maintenance of Equipment,"$1,165 ",12/16/2016
CHICAGO KENT COLLEGE OF LAW,Administrative Support,$250 ,11/23/2016
CHICAGO KENT COLLEGE OF LAW,Administrative Support,$250 ,11/25/2016
CHICAGO MAROON (U OF C),Administrative Support,$200 ,5/4/2016
CHICAGO METRO CONSTRUCTION D/B/A ARLINGTON GLASS & MIRROR CO.,Maintenance of Buildings,"$5,098.92 ",1/19/2016
CHICAGO METRO CONSTRUCTION D/B/A ARLINGTON GLASS & MIRROR CO.,Maintenance of Buildings,"$21,711.64 ",2/3/2016
CHICAGO METRO CONSTRUCTION D/B/A ARLINGTON GLASS & MIRROR CO.,Contract Construction,"$7,501.06 ",2/5/2016
CHICAGO METRO CONSTRUCTION D/B/A ARLINGTON GLASS & MIRROR CO.,Maintenance of Buildings,$919.11 ,2/8/2016
CHICAGO METRO CONSTRUCTION D/B/A ARLINGTON GLASS & MIRROR CO.,Maintenance of Buildings,"$1,339.14 ",2/9/2016
CHICAGO METRO CONSTRUCTION D/B/A ARLINGTON GLASS & MIRROR CO.,Maintenance of Buildings,"$2,828.43 ",2/10/2016
CHICAGO METRO CONSTRUCTION D/B/A ARLINGTON GLASS & MIRROR CO.,Maintenance of Buildings,"$4,761.61 ",2/15/2016
CHICAGO METRO CONSTRUCTION D/B/A ARLINGTON GLASS & MIRROR CO.,Maintenance of Buildings,"$12,415.05 ",3/15/2016
CHICAGO METRO CONSTRUCTION D/B/A ARLINGTON GLASS & MIRROR CO.,Maintenance of Buildings,"$10,050.41 ",3/17/2016
CHICAGO METRO CONSTRUCTION D/B/A ARLINGTON GLASS & MIRROR CO.,Maintenance of Buildings,"$1,043.63 ",3/23/2016
CHICAGO METRO CONSTRUCTION D/B/A ARLINGTON GLASS & MIRROR CO.,Maintenance of Buildings,"$12,926.96 ",3/30/2016
CHICAGO METRO CONSTRUCTION D/B/A ARLINGTON GLASS & MIRROR CO.,Maintenance of Buildings,"$2,618.01 ",4/21/2016
CHICAGO METRO CONSTRUCTION D/B/A ARLINGTON GLASS & MIRROR CO.,Maintenance of Buildings,"$5,031.89 ",4/22/2016
CHICAGO METRO CONSTRUCTION D/B/A ARLINGTON GLASS & MIRROR CO.,Maintenance of Buildings,"$1,320.06 ",4/27/2016
CHICAGO METRO CONSTRUCTION D/B/A ARLINGTON GLASS & MIRROR CO.,Maintenance of Buildings,"$3,632.01 ",5/2/2016
CHICAGO METRO CONSTRUCTION D/B/A ARLINGTON GLASS & MIRROR CO.,Maintenance of Buildings,"$4,557.45 ",5/11/2016
CHICAGO METRO CONSTRUCTION D/B/A ARLINGTON GLASS & MIRROR CO.,Maintenance of Buildings,"$2,126.95 ",5/13/2016
CHICAGO METRO CONSTRUCTION D/B/A ARLINGTON GLASS & MIRROR CO.,Maintenance of Buildings,"$3,188.42 ",5/20/2016
CHICAGO METRO CONSTRUCTION D/B/A ARLINGTON GLASS & MIRROR CO.,Maintenance of Buildings,"$15,776.49 ",5/27/2016
CHICAGO METRO CONSTRUCTION D/B/A ARLINGTON GLASS & MIRROR CO.,Contract Construction,"$12,642.20 ",6/3/2016
CHICAGO METRO CONSTRUCTION D/B/A ARLINGTON GLASS & MIRROR CO.,Maintenance of Buildings,"$25,509.72 ",6/30/2016
CHICAGO METRO CONSTRUCTION D/B/A ARLINGTON GLASS & MIRROR CO.,Maintenance of Buildings,"$1,887.78 ",7/7/2016
CHICAGO METRO CONSTRUCTION D/B/A ARLINGTON GLASS & MIRROR CO.,Maintenance of Buildings,"$1,858.56 ",7/15/2016
CHICAGO METRO CONSTRUCTION D/B/A ARLINGTON GLASS & MIRROR CO.,Maintenance of Buildings,"$46,511 ",7/21/2016
CHICAGO METRO CONSTRUCTION D/B/A ARLINGTON GLASS & MIRROR CO.,Maintenance of Buildings,$876.08 ,7/25/2016
CHICAGO METRO CONSTRUCTION D/B/A ARLINGTON GLASS & MIRROR CO.,Maintenance of Buildings,"$3,788.13 ",7/26/2016
CHICAGO METRO CONSTRUCTION D/B/A ARLINGTON GLASS & MIRROR CO.,Maintenance of Buildings,"$14,808.57 ",7/28/2016
CHICAGO METRO CONSTRUCTION D/B/A ARLINGTON GLASS & MIRROR CO.,Maintenance of Buildings,"$5,663.56 ",8/2/2016
CHICAGO METRO CONSTRUCTION D/B/A ARLINGTON GLASS & MIRROR CO.,Maintenance of Buildings,"$9,157.45 ",8/12/2016
CHICAGO METRO CONSTRUCTION D/B/A ARLINGTON GLASS & MIRROR CO.,Maintenance of Buildings,"$13,256.74 ",8/17/2016
CHICAGO METRO CONSTRUCTION D/B/A ARLINGTON GLASS & MIRROR CO.,Maintenance of Buildings,$880.44 ,8/23/2016
CHICAGO METRO CONSTRUCTION D/B/A ARLINGTON GLASS & MIRROR CO.,Maintenance of Buildings,"$4,420.07 ",8/25/2016
CHICAGO METRO CONSTRUCTION D/B/A ARLINGTON GLASS & MIRROR CO.,Maintenance of Buildings,"$1,165.44 ",9/12/2016
CHICAGO METRO CONSTRUCTION D/B/A ARLINGTON GLASS & MIRROR CO.,Maintenance of Buildings,"$12,118.30 ",9/15/2016
CHICAGO METRO CONSTRUCTION D/B/A ARLINGTON GLASS & MIRROR CO.,Maintenance of Buildings,"$7,720.79 ",9/16/2016
CHICAGO METRO CONSTRUCTION D/B/A ARLINGTON GLASS & MIRROR CO.,Maintenance of Buildings,"$8,937.12 ",9/21/2016
CHICAGO METRO CONSTRUCTION D/B/A ARLINGTON GLASS & MIRROR CO.,Maintenance of Buildings,"$3,882.88 ",9/22/2016
CHICAGO METRO CONSTRUCTION D/B/A ARLINGTON GLASS & MIRROR CO.,Maintenance of Buildings,"$1,378.08 ",9/23/2016
CHICAGO METRO CONSTRUCTION D/B/A ARLINGTON GLASS & MIRROR CO.,Maintenance of Buildings,"$2,439.82 ",10/11/2016
CHICAGO METRO CONSTRUCTION D/B/A ARLINGTON GLASS & MIRROR CO.,Maintenance of Buildings,$616.77 ,10/14/2016
CHICAGO METRO CONSTRUCTION D/B/A ARLINGTON GLASS & MIRROR CO.,Maintenance of Buildings,"$2,264.37 ",10/20/2016
CHICAGO METRO CONSTRUCTION D/B/A ARLINGTON GLASS & MIRROR CO.,Maintenance of Buildings,"$9,296.97 ",10/24/2016
CHICAGO METRO CONSTRUCTION D/B/A ARLINGTON GLASS & MIRROR CO.,Maintenance of Buildings,$918.10 ,10/26/2016
CHICAGO METRO CONSTRUCTION D/B/A ARLINGTON GLASS & MIRROR CO.,Maintenance of Buildings,"$2,278 ",11/4/2016
CHICAGO METRO CONSTRUCTION D/B/A ARLINGTON GLASS & MIRROR CO.,Maintenance of Buildings,"$2,910 ",11/8/2016
CHICAGO METRO CONSTRUCTION D/B/A ARLINGTON GLASS & MIRROR CO.,Maintenance of Buildings,"$4,374.46 ",11/11/2016
CHICAGO METRO CONSTRUCTION D/B/A ARLINGTON GLASS & MIRROR CO.,Maintenance of Buildings,"$15,696.26 ",11/23/2016
CHICAGO METRO CONSTRUCTION D/B/A ARLINGTON GLASS & MIRROR CO.,Maintenance of Buildings,$798.67 ,11/29/2016
CHICAGO METRO CONSTRUCTION D/B/A ARLINGTON GLASS & MIRROR CO.,Maintenance of Buildings,"$5,373.35 ",12/8/2016
CHICAGO METRO CONSTRUCTION D/B/A ARLINGTON GLASS & MIRROR CO.,Maintenance of Buildings,"$1,222.60 ",12/14/2016
CHICAGO METROPOLITAN AGENCY FOR PLANNING,Administrative Support,"$25,000 ",1/18/2016
"CHICAGO ORTHOPAEDICS & SPORTS MEDICINE, S.C.",I&D Claims (Damage Reserve),$800 ,1/22/2016
CHICAGO ORTHOPEDIC SPORTS MEDICINE,I&D Claims (Damage Reserve),$800 ,3/25/2016
CHICAGO ORTHOPEDIC SPORTS MEDICINE,I&D Claims (Damage Reserve),$800 ,7/20/2016
CHICAGO POLICE DEPARTMENT,Security Rail,"$806,955.78 ",1/14/2016
CHICAGO POLICE DEPARTMENT,Security Rail,"$780,417.53 ",2/17/2016
CHICAGO POLICE DEPARTMENT,Security Rail,"$830,249.37 ",3/28/2016
CHICAGO POLICE DEPARTMENT,Security Rail,"$769,273.79 ",4/5/2016
CHICAGO POLICE DEPARTMENT,Security Rail,"$876,873.99 ",5/5/2016
CHICAGO POLICE DEPARTMENT,Security Rail,"$873,255.26 ",5/31/2016
CHICAGO POLICE DEPARTMENT,Security Rail,"$758,454.60 ",8/12/2016
CHICAGO POLICE DEPARTMENT,Misc. Expenditures,"$3,023,263.53 ",9/19/2016
CHICAGO POLICE DEPARTMENT,Security Rail,"$691,783.03 ",11/10/2016
CHICAGO POLICE DEPARTMENT,Misc. Expenditures,"$658,245.05 ",11/14/2016
CHICAGO POLICE DEPARTMENT,Security Rail,"$703,265.08 ",12/15/2016
CHICAGO POLICE DEPARTMENT  (1),Security Rail,"$773,501.75 ",7/25/2016
CHICAGO POLICE DEPARTMENT  (1),Security Rail,"$737,661.27 ",9/16/2016
CHICAGO POLICE DEPARTMENT  (1),Security Rail,"$788,981.21 ",10/18/2016
"CHICAGO SUN-TIMES, INCORPORATED dba Sun-Times Media Productions, LLC",Administrative Support,$18.70 ,1/21/2016
"CHICAGO SUN-TIMES, INCORPORATED dba Sun-Times Media Productions, LLC",Administrative Support,$56.10 ,1/21/2016
"CHICAGO SUN-TIMES, INCORPORATED dba Sun-Times Media Productions, LLC",Administrative Support,"$1,182.35 ",1/28/2016
"CHICAGO SUN-TIMES, INCORPORATED dba Sun-Times Media Productions, LLC",Administrative Support,$791.35 ,2/26/2016
"CHICAGO SUN-TIMES, INCORPORATED dba Sun-Times Media Productions, LLC",Administrative Support,"$1,020 ",3/30/2016
"CHICAGO SUN-TIMES, INCORPORATED dba Sun-Times Media Productions, LLC",Administrative Support,"$1,294.55 ",4/28/2016
"CHICAGO SUN-TIMES, INCORPORATED dba Sun-Times Media Productions, LLC",Administrative Support,$198.90 ,4/29/2016
"CHICAGO SUN-TIMES, INCORPORATED dba Sun-Times Media Productions, LLC",Administrative Support,"$1,401.65 ",5/26/2016
"CHICAGO SUN-TIMES, INCORPORATED dba Sun-Times Media Productions, LLC",Administrative Support,$584.80 ,6/28/2016
"CHICAGO SUN-TIMES, INCORPORATED dba Sun-Times Media Productions, LLC",Administrative Support,$91.80 ,7/26/2016
"CHICAGO SUN-TIMES, INCORPORATED dba Sun-Times Media Productions, LLC",Administrative Support,"$1,096.50 ",7/28/2016
"CHICAGO SUN-TIMES, INCORPORATED dba Sun-Times Media Productions, LLC",Administrative Support,$493 ,8/26/2016
"CHICAGO SUN-TIMES, INCORPORATED dba Sun-Times Media Productions, LLC",Administrative Support,$416 ,9/7/2016
"CHICAGO SUN-TIMES, INCORPORATED dba Sun-Times Media Productions, LLC",Misc. Expenditures,$402.90 ,9/21/2016
"CHICAGO SUN-TIMES, INCORPORATED dba Sun-Times Media Productions, LLC",Administrative Support,$328.95 ,10/4/2016
"CHICAGO SUN-TIMES, INCORPORATED dba Sun-Times Media Productions, LLC",Administrative Support,"$1,666 ",10/27/2016
"CHICAGO SUN-TIMES, INCORPORATED dba Sun-Times Media Productions, LLC",Misc. Expenditures,"$6,201.60 ",11/22/2016
"CHICAGO SUN-TIMES, INCORPORATED dba Sun-Times Media Productions, LLC",Administrative Support,"$1,660.90 ",11/29/2016
"CHICAGO SUN-TIMES, INCORPORATED dba Sun-Times Media Productions, LLC",Administrative Support,$290.70 ,11/30/2016
"CHICAGO SUN-TIMES, INCORPORATED dba Sun-Times Media Productions, LLC",Administrative Support,"$1,213.80 ",12/30/2016
CHICAGO TITLE & TRUST CO.,Real Estate,"$1,905,900 ",4/5/2016
CHICAGO TITLE & TRUST CO.,Real Estate,"$618,873 ",5/9/2016
CHICAGO TITLE & TRUST CO.,Real Estate,"$364,000 ",6/10/2016
CHICAGO TITLE & TRUST CO.,Real Estate,"$519,105 ",10/25/2016
CHICAGO TITLE & TRUST CO.,Real Estate,"$6,863,228 ",12/14/2016
CHICAGO TITLE & TRUST CO.,Real Estate,"$1,754,290 ",12/14/2016
CHICAGO TRANSIT AUTHORITY,Open Fare Implementation 04/30/2012,"$3,600 ",1/4/2016
CHICAGO TRANSIT AUTHORITY,Open Fare Implementation 04/30/2012,"$5,715 ",3/18/2016
CHICAGO TRANSIT AUTHORITY,Open Fare Implementation 04/30/2012,"$1,310 ",6/29/2016
CHICAGO TRANSIT PARTNERS,Yellow Line Incident 18-MAY-2015,"$42,877.69 ",1/15/2016
CHICAGO TRANSIT PARTNERS,Consulting Services,"$387,686.81 ",1/25/2016
CHICAGO TRANSIT PARTNERS,Consulting Services,"$1,630,202.96 ",1/27/2016
CHICAGO TRANSIT PARTNERS,O'Hare train derailment 24-MAR-14,"$26,905.21 ",1/27/2016
CHICAGO TRANSIT PARTNERS,Consulting Services,"$346,651.96 ",2/11/2016
CHICAGO TRANSIT PARTNERS,Consulting Services,"$53,432.57 ",2/12/2016
CHICAGO TRANSIT PARTNERS,Consulting Services,"$1,465,351.32 ",3/3/2016
CHICAGO TRANSIT PARTNERS,O'Hare train derailment 24-MAR-14,"$17,196.09 ",3/3/2016
CHICAGO TRANSIT PARTNERS,Consulting Services,"$115,192.48 ",3/14/2016
CHICAGO TRANSIT PARTNERS,Consulting Services,"$72,722.10 ",3/16/2016
CHICAGO TRANSIT PARTNERS,Consulting Services,"$229,200.42 ",3/17/2016
CHICAGO TRANSIT PARTNERS,Consulting Services,"$21,589.11 ",4/4/2016
CHICAGO TRANSIT PARTNERS,Consulting Services,"$818,402.40 ",4/13/2016
CHICAGO TRANSIT PARTNERS,Consulting Services,"$831,746.25 ",4/14/2016
CHICAGO TRANSIT PARTNERS,Consulting Services,"$1,054,802.76 ",5/10/2016
CHICAGO TRANSIT PARTNERS,Consulting Services,"$581,622.82 ",5/11/2016
CHICAGO TRANSIT PARTNERS,Consulting Services,"$368,012.91 ",5/24/2016
CHICAGO TRANSIT PARTNERS,Consulting Services,"$196,768.01 ",6/1/2016
CHICAGO TRANSIT PARTNERS,Consulting Services,"$1,791,471.22 ",6/16/2016
CHICAGO TRANSIT PARTNERS,Consulting Services,"$31,262.85 ",7/1/2016
CHICAGO TRANSIT PARTNERS,Consulting Services,"$291,998.51 ",7/13/2016
CHICAGO TRANSIT PARTNERS,Consulting Services,"$6,843.66 ",7/20/2016
CHICAGO TRANSIT PARTNERS,Consulting Services,"$64,025.12 ",8/1/2016
CHICAGO TRANSIT PARTNERS,Consulting Services,"$1,152,758.78 ",8/15/2016
CHICAGO TRANSIT PARTNERS,Consulting Services,"$103,595.33 ",9/19/2016
CHICAGO TRANSIT PARTNERS,Consulting Services,"$989,282.95 ",10/4/2016
CHICAGO TRANSIT PARTNERS,Consulting Services,"$8,569.28 ",10/12/2016
CHICAGO TRANSIT PARTNERS,Consulting Services,"$93,188.08 ",10/17/2016
CHICAGO TRANSIT PARTNERS,Consulting Services,"$16,509.38 ",10/24/2016
CHICAGO TRANSIT PARTNERS,Consulting Services,"$977,803.56 ",12/13/2016
CHICAGO TRANSIT PARTNERS,Consulting Services,"$2,778,934.92 ",12/16/2016
CHICAGO TRANSIT PARTNERS,Consulting Services,"$306,073.06 ",12/19/2016
CHICAGO TRAUMA & CRITICAL CARE SURGEONS,I&D Claims (Damage Reserve),$750 ,2/1/2016
CHICAGO TRAUMA & CRITICAL CARE SURGEONS,I&D Claims (Damage Reserve),$750 ,3/15/2016
CHICAGO TRAUMA & CRITICAL CARE SURGEONS,I&D Claims (Damage Reserve),$750 ,11/2/2016
CHICAGO TRIBUNE,Administrative Support,$571.39 ,9/16/2016
"CHICAGO UNITED INDUSTRIES, INC.",Maintenance of Buildings,$938.96 ,3/25/2016
"CHICAGO UNITED INDUSTRIES, INC.",Steel Fabrication,$243.80 ,4/9/2016
"CHICAGO UNITED INDUSTRIES, INC.",Steel Fabrication,$799.78 ,6/21/2016
CHICAGO URBAN LEAGUE,Administrative Support,"$5,833 ",2/1/2016
CHICAGO URBAN LEAGUE,Administrative Support,"$5,833 ",6/21/2016
CHICAGO URBAN LEAGUE,Administrative Support,"$5,833 ",6/21/2016
CHICAGO URBAN LEAGUE,Administrative Support,"$5,833 ",7/1/2016
CHICAGO URBAN LEAGUE,Administrative Support,"$5,833 ",8/5/2016
CHICAGO URBAN LEAGUE,Professional / Technical,$250 ,9/6/2016
CHICAGO URBAN LEAGUE,Administrative Support,"$5,833 ",9/7/2016
CHICAGO URBAN LEAGUE,Administrative Support,"$5,833 ",10/26/2016
CHICAGO URBAN LEAGUE,Administrative Support,"$5,833 ",12/15/2016
"CHICAGO-KENT COLLEGE OF LAW, IIT",Administrative Support,$275 ,10/20/2016
CHICAGOLAND INVESTIGATIVE SERVICES,I&D Claims (Damage Reserve),$317.55 ,3/4/2016
CHICAGOLAND INVESTIGATIVE SERVICES,I&D Claims (Damage Reserve),$291.05 ,3/10/2016
CHICAGOLAND INVESTIGATIVE SERVICES,I&D Claims (Damage Reserve),$985 ,3/30/2016
CHICAGOLAND INVESTIGATIVE SERVICES,I&D Claims (Damage Reserve),$265 ,3/31/2016
CHICAGOLAND INVESTIGATIVE SERVICES,I&D Claims (Damage Reserve),$734.70 ,4/20/2016
CHICAGOLAND INVESTIGATIVE SERVICES,I&D Claims (Damage Reserve),$240 ,5/13/2016
CHICAGOLAND INVESTIGATIVE SERVICES,I&D Claims (Damage Reserve),$360 ,5/16/2016
CHICAGOLAND INVESTIGATIVE SERVICES,I&D Claims (Damage Reserve),$280 ,7/13/2016
CHICAGOLAND INVESTIGATIVE SERVICES,I&D Claims (Damage Reserve),"$11,082.80 ",8/24/2016
CHICAGOLAND INVESTIGATIVE SERVICES,I&D Claims (Damage Reserve),"$1,750 ",10/4/2016
CHINESE AMERICAN NEWS,Administrative Support,$210 ,11/30/2016
CHIRO MEDICA,I&D Claims (Damage Reserve),$500 ,11/25/2016
CHIRO ONE WELLNESS CENTERS,I&D Claims (Damage Reserve),$250 ,3/15/2016
CHRISTI MULLINS,Reimb for lost tools/badges,$20 ,7/7/2016
CHRISTOPHER WILLIAMS,I&D Claims (Damage Reserve),$75 ,1/4/2016
CHRISTOS GIANNOULIAS MD,I&D Claims (Damage Reserve),$600 ,7/11/2016
CIANCI & DAIMION,Maintenance of Buildings,"$25,730 ",9/2/2016
CIANCI & DAIMION,Maintenance of Buildings,"$5,590 ",10/5/2016
CISCO WEBEX LLC,Training - Students,$315 ,10/11/2016
CISION US INC,Marketing,"$26,010 ",4/20/2016
CITATION BOX & PAPER CO.,Repair CTA Mini Bus/Train,"$1,215.90 ",10/14/2016
CITY CLUB OF CHICAGO,Administrative Support,$45 ,10/27/2016
CITY COLLEGES OF CHICAGO,Consulting Services,"$14,125 ",6/10/2016
CITY COLLEGES OF CHICAGO,Training - Students,"$25,475 ",9/1/2016
CITY COLLEGES OF CHICAGO,Consulting Services,"$6,518 ",9/15/2016
CITY COLLEGES OF CHICAGO,Training - Students,"$76,425 ",9/16/2016
CITY COLLEGES OF CHICAGO,Consulting Services,"$6,518 ",10/26/2016
CITY COLLEGES OF CHICAGO,Training - Students,"$25,475 ",11/30/2016
CITY OF CHGO.-ENTERPRISE FUNDS,"Facilities Operating Expenses (Rent,Utilities,etc)","$2,219.36 ",2/24/2016
CITY OF CHGO.-ENTERPRISE FUNDS,"Facilities Operating Expenses (Rent,Utilities,etc)","$21,427.12 ",7/27/2016
CITY OF CHGO.-ENTERPRISE FUNDS,"Facilities Operating Expenses (Rent,Utilities,etc)","$42,127.80 ",9/12/2016
CITY OF CHGO.-ENTERPRISE FUNDS,"Facilities Operating Expenses (Rent,Utilities,etc)","$5,885.88 ",12/15/2016
CITY OF CHICAGO -DEPT OF CULTURAL AFFAIRS,Administrative Support,"$2,330 ",10/28/2016
CITY OF CHICAGO DEPT OF REVENUE,Maintenance of Buildings,"$2,650 ",12/30/2016
CITY OF CHICAGO DEPT. OF REVENUE,Maintenance of Buildings,$475 ,2/5/2016
CITY OF CHICAGO DEPT. OF REVENUE,Maintenance of Buildings,"$3,040 ",2/10/2016
CITY OF CHICAGO DEPT. OF REVENUE,Maintenance of Buildings,$355 ,2/25/2016
CITY OF CHICAGO DEPT. OF REVENUE,Maintenance of Buildings,$625 ,2/26/2016
CITY OF CHICAGO DEPT. OF REVENUE,Maintenance of Buildings,"$1,440 ",3/4/2016
CITY OF CHICAGO DEPT. OF REVENUE,Maintenance of Buildings,"$4,305 ",5/12/2016
CITY OF CHICAGO DEPT. OF REVENUE,Maintenance of Buildings,"$8,255 ",11/10/2016
CITY OF CHICAGO DEPT.OF REVENUE-RED LIGHT,Other General Expense,"$2,310 ",1/4/2016
CITY OF CHICAGO DEPT.OF REVENUE-RED LIGHT,Other General Expense,"$1,165 ",1/14/2016
CITY OF CHICAGO DEPT.OF REVENUE-RED LIGHT,Other General Expense,$535 ,1/25/2016
CITY OF CHICAGO DEPT.OF REVENUE-RED LIGHT,Other General Expense,$760 ,2/4/2016
CITY OF CHICAGO DEPT.OF REVENUE-RED LIGHT,Other General Expense,"$1,335 ",2/17/2016
CITY OF CHICAGO DEPT.OF REVENUE-RED LIGHT,Other General Expense,$800 ,2/26/2016
CITY OF CHICAGO DEPT.OF REVENUE-RED LIGHT,Other General Expense,$400 ,3/10/2016
CITY OF CHICAGO DEPT.OF REVENUE-RED LIGHT,Other General Expense,"$1,450 ",3/14/2016
CITY OF CHICAGO DEPT.OF REVENUE-RED LIGHT,Other General Expense,$700 ,3/21/2016
CITY OF CHICAGO DEPT.OF REVENUE-RED LIGHT,Other General Expense,$500 ,3/31/2016
CITY OF CHICAGO DEPT.OF REVENUE-RED LIGHT,Other General Expense,$800 ,4/4/2016
CITY OF CHICAGO DEPT.OF REVENUE-RED LIGHT,Other General Expense,$200 ,4/6/2016
CITY OF CHICAGO DEPT.OF REVENUE-RED LIGHT,Other General Expense,$735 ,4/14/2016
CITY OF CHICAGO DEPT.OF REVENUE-RED LIGHT,Other General Expense,$500 ,4/19/2016
CITY OF CHICAGO DEPT.OF REVENUE-RED LIGHT,Other General Expense,"$1,135 ",4/29/2016
CITY OF CHICAGO DEPT.OF REVENUE-RED LIGHT,Other General Expense,$800 ,5/9/2016
CITY OF CHICAGO DEPT.OF REVENUE-RED LIGHT,Other General Expense,"$1,230 ",5/16/2016
CITY OF CHICAGO DEPT.OF REVENUE-RED LIGHT,Other General Expense,$335 ,5/25/2016
CITY OF CHICAGO DEPT.OF REVENUE-RED LIGHT,Other General Expense,$300 ,6/6/2016
CITY OF CHICAGO DEPT.OF REVENUE-RED LIGHT,Other General Expense,$500 ,6/9/2016
CITY OF CHICAGO DEPT.OF REVENUE-RED LIGHT,Other General Expense,$885 ,6/13/2016
CITY OF CHICAGO DEPT.OF REVENUE-RED LIGHT,Other General Expense,$800 ,6/21/2016
CITY OF CHICAGO DEPT.OF REVENUE-RED LIGHT,Other General Expense,"$1,450 ",6/30/2016
CITY OF CHICAGO DEPT.OF REVENUE-RED LIGHT,Other General Expense,$635 ,7/12/2016
CITY OF CHICAGO DEPT.OF REVENUE-RED LIGHT,Other General Expense,$535 ,7/14/2016
CITY OF CHICAGO DEPT.OF REVENUE-RED LIGHT,Other General Expense,$700 ,7/25/2016
CITY OF CHICAGO DEPT.OF REVENUE-RED LIGHT,Other General Expense,$600 ,8/3/2016
CITY OF CHICAGO DEPT.OF REVENUE-RED LIGHT,Other General Expense,$800 ,8/9/2016
CITY OF CHICAGO DEPT.OF REVENUE-RED LIGHT,Other General Expense,$100 ,8/12/2016
CITY OF CHICAGO DEPT.OF REVENUE-RED LIGHT,Other General Expense,"$1,400 ",8/17/2016
CITY OF CHICAGO DEPT.OF REVENUE-RED LIGHT,Other General Expense,"$1,500 ",8/25/2016
CITY OF CHICAGO DEPT.OF REVENUE-RED LIGHT,Other General Expense,$600 ,8/30/2016
CITY OF CHICAGO DEPT.OF REVENUE-RED LIGHT,Other General Expense,"$1,335 ",9/7/2016
CITY OF CHICAGO DEPT.OF REVENUE-RED LIGHT,Other General Expense,$900 ,9/15/2016
CITY OF CHICAGO DEPT.OF REVENUE-RED LIGHT,Other General Expense,$335 ,9/20/2016
CITY OF CHICAGO DEPT.OF REVENUE-RED LIGHT,Other General Expense,"$1,100 ",10/5/2016
CITY OF CHICAGO DEPT.OF REVENUE-RED LIGHT,Other General Expense,"$1,000 ",10/11/2016
CITY OF CHICAGO DEPT.OF REVENUE-RED LIGHT,Other General Expense,$600 ,10/20/2016
CITY OF CHICAGO DEPT.OF REVENUE-RED LIGHT,Other General Expense,$235 ,10/28/2016
CITY OF CHICAGO DEPT.OF REVENUE-RED LIGHT,Other General Expense,$700 ,11/3/2016
CITY OF CHICAGO DEPT.OF REVENUE-RED LIGHT,Other General Expense,"$2,600 ",11/10/2016
CITY OF CHICAGO DEPT.OF REVENUE-RED LIGHT,Other General Expense,$600 ,11/18/2016
CITY OF CHICAGO DEPT.OF REVENUE-RED LIGHT,Other General Expense,$400 ,12/1/2016
CITY OF CHICAGO DEPT.OF REVENUE-RED LIGHT,Other General Expense,$600 ,12/8/2016
CITY OF CHICAGO DEPT.OF REVENUE-RED LIGHT,Other General Expense,$605 ,12/16/2016
CITY OF CHICAGO DEPT.OF REVENUE-RED LIGHT,Other General Expense,$400 ,12/20/2016
CITY OF CHICAGO DEPT.OF REVENUE-RED LIGHT,Other General Expense,$200 ,12/27/2016
CITY OF CHICAGO-DEPT OF FLEET AND FACILITY  MGMT,Service Vehicle and Equipment Repair,"$15,242.91 ",1/11/2016
CITY OF CHICAGO-DEPT OF FLEET AND FACILITY  MGMT,Maintenance & Repair of Company Automobiles,"$184,109.36 ",1/14/2016
CITY OF CHICAGO-DEPT OF FLEET AND FACILITY  MGMT,Maintenance & Repair of Company Automobiles,"$159,460.37 ",2/1/2016
CITY OF CHICAGO-DEPT OF FLEET AND FACILITY  MGMT,Service Vehicle and Equipment Repair,"$14,087.86 ",2/1/2016
CITY OF CHICAGO-DEPT OF FLEET AND FACILITY  MGMT,Maintenance & Repair of Company Automobiles,"$127,307.75 ",2/17/2016
CITY OF CHICAGO-DEPT OF FLEET AND FACILITY  MGMT,Service Vehicle and Equipment Repair,"$15,139.81 ",2/17/2016
CITY OF CHICAGO-DEPT OF FLEET AND FACILITY  MGMT,Maintenance & Repair of Company Automobiles,"$166,520.86 ",3/16/2016
CITY OF CHICAGO-DEPT OF FLEET AND FACILITY  MGMT,Service Vehicle and Equipment Repair,"$15,663.73 ",3/16/2016
CITY OF CHICAGO-DEPT OF FLEET AND FACILITY  MGMT,Maintenance & Repair of Company Automobiles,"$150,060.77 ",4/8/2016
CITY OF CHICAGO-DEPT OF FLEET AND FACILITY  MGMT,Service Vehicle and Equipment Repair,"$15,384.54 ",4/8/2016
CITY OF CHICAGO-DEPT OF FLEET AND FACILITY  MGMT,Maintenance & Repair of Company Automobiles,"$133,129.21 ",5/10/2016
CITY OF CHICAGO-DEPT OF FLEET AND FACILITY  MGMT,Service Vehicle and Equipment Repair,"$14,832.96 ",5/10/2016
CITY OF CHICAGO-DEPT OF FLEET AND FACILITY  MGMT,Maintenance & Repair of Company Automobiles,"$238,772.39 ",6/17/2016
CITY OF CHICAGO-DEPT OF FLEET AND FACILITY  MGMT,Service Vehicle and Equipment Repair,"$13,176.89 ",6/17/2016
CITY OF CHICAGO-DEPT OF FLEET AND FACILITY  MGMT,Maintenance & Repair of Company Automobiles,"$315,980.32 ",8/23/2016
CITY OF CHICAGO-DEPT OF FLEET AND FACILITY  MGMT,Service Vehicle and Equipment Repair,"$18,836.42 ",8/23/2016
CITY OF CHICAGO-DEPT OF FLEET AND FACILITY  MGMT,Service Vehicle and Equipment Repair,$201.26 ,8/24/2016
CITY OF CHICAGO-DEPT OF FLEET AND FACILITY  MGMT,Service Vehicle and Equipment Repair,"$9,462.04 ",8/25/2016
CITY OF CHICAGO-DEPT OF FLEET AND FACILITY  MGMT,Maintenance & Repair of Company Automobiles,"$119,436.73 ",9/26/2016
CITY OF CHICAGO-DEPT OF FLEET AND FACILITY  MGMT,Service Vehicle and Equipment Repair,"$15,181.80 ",9/26/2016
CITY OF CHICAGO-DEPT OF FLEET AND FACILITY  MGMT,Maintenance & Repair of Company Automobiles,"$168,452.60 ",10/31/2016
CITY OF CHICAGO-DEPT OF FLEET AND FACILITY  MGMT,Service Vehicle and Equipment Repair,"$16,818.96 ",10/31/2016
CITY OF CHICAGO-DEPT OF FLEET AND FACILITY  MGMT,Engineering,"$24,631.71 ",11/3/2016
CITY OF CHICAGO-DEPT OF FLEET AND FACILITY  MGMT,Maintenance & Repair of Company Automobiles,"$172,415.23 ",12/9/2016
CITY OF CHICAGO-DEPT OF FLEET AND FACILITY  MGMT,Service Vehicle and Equipment Repair,"$15,384.63 ",12/12/2016
CITY OF CHICAGO-DEPT OF FLEET AND FACILITY  MGMT,Maintenance & Repair of Company Automobiles,"$259,472.06 ",12/30/2016
CITY OF CHICAGO-DEPT OF FLEET AND FACILITY  MGMT,Service Vehicle and Equipment Repair,"$15,021.04 ",12/30/2016
CITY OF CHICAGO-DEPT OF WATER,"Facilities Operating Expenses (Rent,Utilities,etc)","$23,825.69 ",1/19/2016
CITY OF CHICAGO-DEPT OF WATER,"Facilities Operating Expenses (Rent,Utilities,etc)","$60,405.26 ",1/27/2016
CITY OF CHICAGO-DEPT OF WATER,"Facilities Operating Expenses (Rent,Utilities,etc)","$41,714.48 ",2/22/2016
CITY OF CHICAGO-DEPT OF WATER,"Facilities Operating Expenses (Rent,Utilities,etc)","$42,649.84 ",3/7/2016
CITY OF CHICAGO-DEPT OF WATER,"Facilities Operating Expenses (Rent,Utilities,etc)","$18,884.22 ",3/15/2016
CITY OF CHICAGO-DEPT OF WATER,"Facilities Operating Expenses (Rent,Utilities,etc)","$107,839.24 ",3/31/2016
CITY OF CHICAGO-DEPT OF WATER,"Facilities Operating Expenses (Rent,Utilities,etc)","$27,440.68 ",4/18/2016
CITY OF CHICAGO-DEPT OF WATER,"Facilities Operating Expenses (Rent,Utilities,etc)","$41,323.20 ",5/6/2016
CITY OF CHICAGO-DEPT OF WATER,"Facilities Operating Expenses (Rent,Utilities,etc)","$48,672.44 ",5/19/2016
CITY OF CHICAGO-DEPT OF WATER,"Facilities Operating Expenses (Rent,Utilities,etc)","$110,592.94 ",5/26/2016
CITY OF CHICAGO-DEPT OF WATER,"Facilities Operating Expenses (Rent,Utilities,etc)","$7,933.88 ",6/7/2016
CITY OF CHICAGO-DEPT OF WATER,"Facilities Operating Expenses (Rent,Utilities,etc)","$30,281.75 ",6/16/2016
CITY OF CHICAGO-DEPT OF WATER,"Facilities Operating Expenses (Rent,Utilities,etc)","$24,192.56 ",7/7/2016
CITY OF CHICAGO-DEPT OF WATER,"Facilities Operating Expenses (Rent,Utilities,etc)","$72,770.16 ",7/21/2016
CITY OF CHICAGO-DEPT OF WATER,"Facilities Operating Expenses (Rent,Utilities,etc)","$58,730.06 ",8/5/2016
CITY OF CHICAGO-DEPT OF WATER,"Facilities Operating Expenses (Rent,Utilities,etc)","$61,370.05 ",9/1/2016
CITY OF CHICAGO-DEPT OF WATER,"Facilities Operating Expenses (Rent,Utilities,etc)","$97,901.66 ",10/5/2016
CITY OF CHICAGO-DEPT OF WATER,"Facilities Operating Expenses (Rent,Utilities,etc)","$63,763.88 ",10/14/2016
CITY OF CHICAGO-DEPT OF WATER,"Facilities Operating Expenses (Rent,Utilities,etc)","$43,641.16 ",11/8/2016
CITY OF CHICAGO-DEPT OF WATER,"Facilities Operating Expenses (Rent,Utilities,etc)","$111,294.35 ",11/23/2016
CITY OF CHICAGO-DEPT OF WATER,"Facilities Operating Expenses (Rent,Utilities,etc)","$46,696.94 ",12/13/2016
CITY OF CHICAGO-DEPT OF WATER,"Facilities Operating Expenses (Rent,Utilities,etc)","$20,016.76 ",12/15/2016
CITY OF CHICAGO/DEPT OF FINANCE,Misc. Expenditures,$213 ,10/5/2016
CITY OF EVANSTON,"Facilities Operating Expenses (Rent,Utilities,etc)",$496.77 ,2/2/2016
CITY OF EVANSTON,"Facilities Operating Expenses (Rent,Utilities,etc)",$484.21 ,3/31/2016
CITY OF EVANSTON,"Facilities Operating Expenses (Rent,Utilities,etc)",$419.52 ,6/2/2016
CITY OF EVANSTON,"Facilities Operating Expenses (Rent,Utilities,etc)",$484.76 ,8/30/2016
CITY OF EVANSTON,"Facilities Operating Expenses (Rent,Utilities,etc)",$594.69 ,10/14/2016
CITY OF EVANSTON,"Facilities Operating Expenses (Rent,Utilities,etc)",$473.01 ,12/15/2016
CK REPORTING,I&D Claims (Damage Reserve),$114.15 ,6/20/2016
CLARK BAIRD SMITH LLP,Administrative Support,"$30,000 ",7/1/2016
"CLARK CONSTRUCTION GROUP - CHICAGO, LLC",Contract Construction,"$3,433,456 ",2/12/2016
"CLARK CONSTRUCTION GROUP - CHICAGO, LLC",Contract Construction,"$314,189 ",3/9/2016
"CLARK CONSTRUCTION GROUP - CHICAGO, LLC",Contract Construction,"$548,357 ",5/17/2016
"CLARK CONSTRUCTION GROUP - CHICAGO, LLC",Contract Construction,"$2,800,469 ",10/19/2016
"CLARK DEVON HARDWARE CO., INC.",Maintenance of Buildings,$559.51 ,1/5/2016
"CLARK DEVON HARDWARE CO., INC.",Equipment Purchases,"$9,230.70 ",1/27/2016
CLEAN! CLEAN! DRY CLEANERS,BUS/RAIL ROADEO,$293.85 ,11/16/2016
"CLEAVER-BROOKS, INC.",Contract Construction,"$31,600 ",2/10/2016
CLERK OF THE APPELLATE COURT,Administrative Support,$30 ,1/14/2016
CLERK OF THE APPELLATE COURT,Administrative Support,$30 ,3/4/2016
CLERK OF THE APPELLATE COURT,Administrative Support,$30 ,5/5/2016
CLERK OF THE APPELLATE COURT,Administrative Support,$30 ,5/16/2016
CLERK OF THE APPELLATE COURT,Administrative Support,$30 ,7/21/2016
CLERK OF THE APPELLATE COURT,Administrative Support,$50 ,8/4/2016
CLERK OF THE APPELLATE COURT,Administrative Support,$30 ,8/30/2016
CLERK OF THE APPELLATE COURT,Administrative Support,$30 ,9/6/2016
CLERK OF THE CIRCUIT COURT  1,I&D Claims (Damage Reserve),$146.47 ,2/12/2016
CLERK OF THE CIRCUIT COURT  1,I&D Claims (Damage Reserve),$48 ,2/12/2016
CLERK OF THE CIRCUIT COURT  1,I&D Claims (Damage Reserve),"$3,129 ",2/15/2016
CLERK OF THE CIRCUIT COURT  1,I&D Claims (Damage Reserve),"$5,314 ",2/15/2016
CLERK OF THE CIRCUIT COURT  1,I&D Claims (Damage Reserve),"$4,605.50 ",2/15/2016
CLERK OF THE CIRCUIT COURT  1,I&D Claims (Damage Reserve),"$3,571.50 ",2/15/2016
CLERK OF THE CIRCUIT COURT  1,I&D Claims (Damage Reserve),"$6,325 ",2/15/2016
CLERK OF THE CIRCUIT COURT  1,I&D Claims (Damage Reserve),"$1,512 ",2/15/2016
CLERK OF THE CIRCUIT COURT  1,I&D Claims (Damage Reserve),"$4,367 ",2/15/2016
CLERK OF THE CIRCUIT COURT  1,I&D Claims (Damage Reserve),"$2,222.50 ",2/15/2016
CLERK OF THE CIRCUIT COURT  1,I&D Claims (Damage Reserve),$21.50 ,3/31/2016
CLERK OF THE CIRCUIT COURT  1,I&D Claims (Damage Reserve),"$5,194.50 ",3/31/2016
CLERK OF THE CIRCUIT COURT  1,I&D Claims (Damage Reserve),"$4,043.50 ",3/31/2016
CLERK OF THE CIRCUIT COURT  1,I&D Claims (Damage Reserve),$6.50 ,3/31/2016
CLERK OF THE CIRCUIT COURT  1,I&D Claims (Damage Reserve),"$5,629.25 ",3/31/2016
CLERK OF THE CIRCUIT COURT  1,I&D Claims (Damage Reserve),"$7,372.50 ",3/31/2016
CLERK OF THE CIRCUIT COURT  1,I&D Claims (Damage Reserve),"$6,433.87 ",7/11/2016
CLERK OF THE CIRCUIT COURT  1,I&D Claims (Damage Reserve),"$2,597 ",7/11/2016
CLERK OF THE CIRCUIT COURT  1,I&D Claims (Damage Reserve),$4 ,7/11/2016
CLERK OF THE CIRCUIT COURT  1,I&D Claims (Damage Reserve),"$7,917.50 ",7/11/2016
CLERK OF THE CIRCUIT COURT  1,I&D Claims (Damage Reserve),"$7,417 ",7/11/2016
CLERK OF THE CIRCUIT COURT  1,I&D Claims (Damage Reserve),$168 ,7/12/2016
CLERK OF THE CIRCUIT COURT  1,I&D Claims (Damage Reserve),$8 ,8/2/2016
CLERK OF THE CIRCUIT COURT  1,I&D Claims (Damage Reserve),$504 ,8/4/2016
CLERK OF THE CIRCUIT COURT  1,I&D Claims (Damage Reserve),"$3,825 ",8/4/2016
CLERK OF THE CIRCUIT COURT  1,I&D Claims (Damage Reserve),"$5,487 ",8/4/2016
CLERK OF THE CIRCUIT COURT  1,I&D Claims (Damage Reserve),$402.50 ,10/18/2016
CLERK OF THE CIRCUIT COURT  1,I&D Claims (Damage Reserve),$398 ,10/18/2016
CLERK OF THE CIRCUIT COURT  1,I&D Claims (Damage Reserve),"$6,149 ",10/18/2016
CLERK OF THE CIRCUIT COURT  1,I&D Claims (Damage Reserve),"$6,149 ",10/18/2016
CLERK OF THE CIRCUIT COURT  1,I&D Claims (Damage Reserve),"$2,728 ",10/18/2016
CLERK OF THE CIRCUIT COURT  1,I&D Claims (Damage Reserve),$128 ,10/18/2016
CLERK OF THE CIRCUIT COURT  1,I&D Claims (Damage Reserve),$4 ,10/18/2016
CLERK OF THE CIRCUIT COURT  1,I&D Claims (Damage Reserve),"$7,824.75 ",10/18/2016
CLERK OF THE CIRCUIT COURT  1,I&D Claims (Damage Reserve),"$4,401.50 ",10/18/2016
CLERK OF THE CIRCUIT COURT  1,I&D Claims (Damage Reserve),"$5,228 ",10/18/2016
CLERK OF THE CIRCUIT COURT  1,I&D Claims (Damage Reserve),$11.50 ,10/18/2016
"CLEVER DEVICES, LTD",Applications Support,"$342,853.57 ",1/13/2016
"CLEVER DEVICES, LTD",Applications Support,"$4,604.50 ",2/4/2016
"CLEVER DEVICES, LTD",Applications Support,"$342,853.57 ",2/22/2016
"CLEVER DEVICES, LTD",Applications Support,"$26,967 ",2/25/2016
"CLEVER DEVICES, LTD",Equipment Purchases,"$177,436.80 ",3/8/2016
"CLEVER DEVICES, LTD",Applications Support,"$342,853.57 ",3/16/2016
"CLEVER DEVICES, LTD",Professional / Technical,"$49,800 ",3/22/2016
"CLEVER DEVICES, LTD",Applications Support,"$342,853.57 ",4/12/2016
"CLEVER DEVICES, LTD",Applications Support,"$342,853.57 ",5/12/2016
"CLEVER DEVICES, LTD",Applications Support,"$342,853.57 ",6/14/2016
"CLEVER DEVICES, LTD",Applications Support,"$4,444 ",6/29/2016
"CLEVER DEVICES, LTD",Applications Support,"$342,853.57 ",7/20/2016
"CLEVER DEVICES, LTD",Applications Support,"$361,302.14 ",8/11/2016
"CLEVER DEVICES, LTD",Applications Support,"$357,714.14 ",10/4/2016
"CLEVER DEVICES, LTD",Applications Support,"$357,714.14 ",10/18/2016
"CLEVER DEVICES, LTD",Equipment Purchases,"$133,077.60 ",11/7/2016
"CLEVER DEVICES, LTD",Applications Support,"$357,714.14 ",11/16/2016
"COMCAST OF CHICAGO, IL",Maintain/Repair Communications  Equip,$51.26 ,1/11/2016
"COMCAST OF CHICAGO, IL",Maintain/Repair Communications  Equip,$187.19 ,1/11/2016
"COMCAST OF CHICAGO, IL",Maintain/Repair Communications  Equip,$51.25 ,2/1/2016
"COMCAST OF CHICAGO, IL",Maintain/Repair Communications  Equip,$182.63 ,2/1/2016
"COMCAST OF CHICAGO, IL",Maintain/Repair Communications  Equip,$41.75 ,2/29/2016
"COMCAST OF CHICAGO, IL",Maintain/Repair Communications  Equip,$182.63 ,2/29/2016
"COMCAST OF CHICAGO, IL",Maintain/Repair Communications  Equip,$41.75 ,3/28/2016
"COMCAST OF CHICAGO, IL",Maintain/Repair Communications  Equip,$182.63 ,3/28/2016
"COMCAST OF CHICAGO, IL",Maintain/Repair Communications  Equip,$41.75 ,4/28/2016
"COMCAST OF CHICAGO, IL",Maintain/Repair Communications  Equip,$182.63 ,4/28/2016
"COMCAST OF CHICAGO, IL",Maintain/Repair Communications  Equip,$41.75 ,6/2/2016
"COMCAST OF CHICAGO, IL",Maintain/Repair Communications  Equip,$182.63 ,6/2/2016
"COMCAST OF CHICAGO, IL",Maintain/Repair Communications  Equip,$41.75 ,6/29/2016
"COMCAST OF CHICAGO, IL",Maintain/Repair Communications  Equip,$182.63 ,6/29/2016
"COMCAST OF CHICAGO, IL",Maintain/Repair Communications  Equip,$41.75 ,8/4/2016
"COMCAST OF CHICAGO, IL",Maintain/Repair Communications  Equip,$182.63 ,8/4/2016
"COMCAST OF CHICAGO, IL",Maintain/Repair Communications  Equip,$41.75 ,9/6/2016
"COMCAST OF CHICAGO, IL",Maintain/Repair Communications  Equip,$195.15 ,9/6/2016
"COMCAST OF CHICAGO, IL",Maintain/Repair Communications  Equip,$51.25 ,10/7/2016
"COMCAST OF CHICAGO, IL",Maintain/Repair Communications  Equip,$194.28 ,10/11/2016
"COMCAST OF CHICAGO, IL",Maintain/Repair Communications  Equip,$51.25 ,11/11/2016
"COMCAST OF CHICAGO, IL",Maintain/Repair Communications  Equip,$203.78 ,11/11/2016
"COMCAST OF CHICAGO, IL",Maintain/Repair Communications  Equip,$51.25 ,12/9/2016
"COMCAST OF CHICAGO, IL",Maintain/Repair Communications  Equip,$194.28 ,12/9/2016
COMED                       1,Misc. Expenditures,"$390,000 ",2/18/2016
COMFORT INN & SUITES,Travel & Seminar,$964.59 ,3/18/2016
COMFORT INN & SUITES,Travel & Seminar,$964.59 ,3/18/2016
COMFORT INN & SUITES,Travel & Seminar,$964.59 ,3/18/2016
COMFORT INN & SUITES,Travel & Seminar,$964.59 ,3/18/2016
COMFORT INN & SUITES,Travel & Seminar,$964.59 ,3/18/2016
COMFORT INN & SUITES,Travel & Seminar,$964.59 ,3/18/2016
COMFORT INN & SUITES,Travel & Seminar,$964.59 ,3/18/2016
COMFORT INN & SUITES,Travel & Seminar,"$1,578.42 ",4/22/2016
COMFORT INN & SUITES,Travel & Seminar,$964.59 ,5/25/2016
COMFORT INN & SUITES,Travel & Seminar,$964.59 ,5/25/2016
COMFORT INN & SUITES,Travel & Seminar,$964.59 ,6/3/2016
COMFORT INN & SUITES,Travel & Seminar,$964.59 ,6/3/2016
COMFORT INN & SUITES,Travel & Seminar,$263.07 ,6/15/2016
COMFORT INN & SUITES,Travel & Seminar,$263.07 ,6/15/2016
COMFORT INN & SUITES,Travel & Seminar,$964.59 ,6/15/2016
COMFORT INN & SUITES,Travel & Seminar,$964.59 ,6/15/2016
COMFORT INN & SUITES,Travel & Seminar,$964.59 ,7/6/2016
COMFORT INN & SUITES,Travel & Seminar,$964.59 ,7/6/2016
COMFORT INN & SUITES,Travel & Seminar,$964.59 ,9/28/2016
COMFORT INN & SUITES,Travel & Seminar,$964.59 ,9/28/2016
COMFORT INN & SUITES,Travel & Seminar,$964.59 ,9/28/2016
COMFORT INN & SUITES,Travel & Seminar,$964.59 ,9/28/2016
COMFORT INN & SUITES,Travel & Seminar,$964.59 ,9/29/2016
COMFORT INN & SUITES,Travel & Seminar,$964.59 ,9/29/2016
COMFORT INN & SUITES,Travel & Seminar,$964.59 ,9/29/2016
COMFORT INN & SUITES,Travel & Seminar,$350.76 ,9/29/2016
COMFORT INN & SUITES,Travel & Seminar,$350.76 ,9/29/2016
COMFORT INN & SUITES,Travel & Seminar,$876.90 ,9/29/2016
COMFORT INN & SUITES,Travel & Seminar,$876.90 ,9/29/2016
COMFORT INN & SUITES,Travel & Seminar,$964.59 ,9/29/2016
COMMONWEALTH EDISON.,"Facilities Operating Expenses (Rent,Utilities,etc)","$248,972.94 ",1/7/2016
COMMONWEALTH EDISON.,"Facilities Operating Expenses (Rent,Utilities,etc)","$237,195.61 ",1/29/2016
COMMONWEALTH EDISON.,Misc. Expenditures,$28.35 ,1/29/2016
COMMONWEALTH EDISON.,"Facilities Operating Expenses (Rent,Utilities,etc)","$304,303.63 ",2/5/2016
COMMONWEALTH EDISON.,Misc. Expenditures,$31.25 ,2/17/2016
COMMONWEALTH EDISON.,"Facilities Operating Expenses (Rent,Utilities,etc)","$306,216.32 ",3/11/2016
COMMONWEALTH EDISON.,Misc. Expenditures,$28.06 ,3/25/2016
COMMONWEALTH EDISON.,Misc. Expenditures,$23.51 ,4/15/2016
COMMONWEALTH EDISON.,"Facilities Operating Expenses (Rent,Utilities,etc)","$359,364.57 ",5/12/2016
COMMONWEALTH EDISON.,"Facilities Operating Expenses (Rent,Utilities,etc)","$355,218.17 ",5/31/2016
COMMONWEALTH EDISON.,"Facilities Operating Expenses (Rent,Utilities,etc)","$289,253.79 ",6/10/2016
COMMONWEALTH EDISON.,Misc. Expenditures,$23.43 ,6/10/2016
COMMONWEALTH EDISON.,Misc. Expenditures,$21.04 ,6/22/2016
COMMONWEALTH EDISON.,"Facilities Operating Expenses (Rent,Utilities,etc)","$230,662.02 ",7/8/2016
COMMONWEALTH EDISON.,Misc. Expenditures,$22.46 ,7/29/2016
COMMONWEALTH EDISON.,"Facilities Operating Expenses (Rent,Utilities,etc)","$238,533.49 ",8/17/2016
COMMONWEALTH EDISON.,Misc. Expenditures,$22.88 ,8/26/2016
COMMONWEALTH EDISON.,Misc. Expenditures,$22.97 ,10/5/2016
COMMONWEALTH EDISON.,"Facilities Operating Expenses (Rent,Utilities,etc)","$259,412.08 ",10/6/2016
COMMONWEALTH EDISON.,"Facilities Operating Expenses (Rent,Utilities,etc)","$232,445.09 ",10/20/2016
COMMONWEALTH EDISON.,Misc. Expenditures,$147.79 ,10/28/2016
COMMONWEALTH EDISON.,"Facilities Operating Expenses (Rent,Utilities,etc)","$211,683.07 ",11/8/2016
COMMONWEALTH EDISON.,"Facilities Operating Expenses (Rent,Utilities,etc)","$246,111.89 ",12/8/2016
COMMONWEALTH EDISON.,Misc. Expenditures,$63.53 ,12/8/2016
COMMONWEALTH EDISON.,Misc. Expenditures,$19.62 ,12/28/2016
COMPASS MINERALS AMERICA INC,"Facilities Operating Expenses (Rent,Utilities,etc)","$19,987.04 ",1/12/2016
COMPASS MINERALS AMERICA INC,"Facilities Operating Expenses (Rent,Utilities,etc)","$10,542.81 ",6/13/2016
COMPASS MINERALS AMERICA INC,"Facilities Operating Expenses (Rent,Utilities,etc)","$21,942.20 ",8/10/2016
COMPASS MINERALS AMERICA INC,"Facilities Operating Expenses (Rent,Utilities,etc)","$9,708.27 ",11/30/2016
COMPASS MINERALS AMERICA INC,"Facilities Operating Expenses (Rent,Utilities,etc)","$1,040.90 ",12/7/2016
COMPASS MINERALS AMERICA INC,"Facilities Operating Expenses (Rent,Utilities,etc)","$2,394.33 ",12/14/2016
COMPASS MINERALS AMERICA INC,"Facilities Operating Expenses (Rent,Utilities,etc)","$5,543.13 ",12/19/2016
"COMPUTER AID, INC.",Applications Support,"$230,784 ",1/15/2016
"COMPUTER AID, INC.",Applications Support,"$232,458.24 ",2/5/2016
"COMPUTER AID, INC.",Consulting Services,"$137,728 ",2/12/2016
"COMPUTER AID, INC.",Consulting Services,"$135,776 ",2/29/2016
"COMPUTER AID, INC.",Applications Support,"$214,041.60 ",3/3/2016
"COMPUTER AID, INC.",Consulting Services,"$137,728 ",3/9/2016
"COMPUTER AID, INC.",Applications Support,"$15,068.16 ",3/10/2016
"COMPUTER AID, INC.",Applications Support,"$16,951.68 ",4/7/2016
"COMPUTER AID, INC.",Consulting Services,"$137,728 ",4/11/2016
"COMPUTER AID, INC.",Applications Support,"$210,010.30 ",4/27/2016
"COMPUTER AID, INC.",Applications Support,"$18,556.16 ",5/5/2016
"COMPUTER AID, INC.",Consulting Services,"$137,728 ",5/25/2016
"COMPUTER AID, INC.",Applications Support,"$217,372.68 ",5/26/2016
"COMPUTER AID, INC.",Applications Support,"$17,772.72 ",6/1/2016
"COMPUTER AID, INC.",Consulting Services,"$139,242.98 ",6/8/2016
"COMPUTER AID, INC.",Consulting Services,"$12,512.50 ",6/9/2016
"COMPUTER AID, INC.",Applications Support,"$203,869.60 ",6/17/2016
"COMPUTER AID, INC.",Consulting Services,"$30,537.50 ",7/1/2016
"COMPUTER AID, INC.",Administrative Support,"$11,646.24 ",7/7/2016
"COMPUTER AID, INC.",Applications Support,"$81,457.46 ",7/20/2016
"COMPUTER AID, INC.",Consulting Services,"$139,242.98 ",7/25/2016
"COMPUTER AID, INC.",Consulting Services,"$47,208.56 ",8/1/2016
"COMPUTER AID, INC.",Administrative Support,"$42,702.88 ",8/3/2016
"COMPUTER AID, INC.",Applications Support,"$217,372.68 ",8/4/2016
"COMPUTER AID, INC.",Consulting Services,"$28,000 ",8/31/2016
"COMPUTER AID, INC.",Applications Support,"$464,440.46 ",9/1/2016
"COMPUTER AID, INC.",Consulting Services,"$278,485.96 ",9/7/2016
"COMPUTER AID, INC.",Administrative Support,"$38,820.80 ",9/8/2016
"COMPUTER AID, INC.",Applications Support,"$69,694.73 ",9/8/2016
"COMPUTER AID, INC.",Applications Support,"$43,127.63 ",9/15/2016
"COMPUTER AID, INC.",Administrative Support,"$44,643.92 ",9/29/2016
"COMPUTER AID, INC.",Consulting Services,"$79,132.42 ",9/29/2016
"COMPUTER AID, INC.",Applications Support,"$211,635.01 ",10/3/2016
"COMPUTER AID, INC.",Applications Support,"$60,966.60 ",10/6/2016
"COMPUTER AID, INC.",Consulting Services,"$139,242.98 ",10/7/2016
"COMPUTER AID, INC.",Consulting Services,"$18,943.76 ",10/19/2016
"COMPUTER AID, INC.",Consulting Services,"$139,242.98 ",10/26/2016
"COMPUTER AID, INC.",Consulting Services,"$33,037.52 ",10/31/2016
"COMPUTER AID, INC.",Applications Support,"$219,440.19 ",11/1/2016
"COMPUTER AID, INC.",Applications Support,"$50,778 ",11/3/2016
"COMPUTER AID, INC.",Consulting Services,"$7,976.32 ",11/7/2016
"COMPUTER AID, INC.",Consulting Services,"$34,212.50 ",11/22/2016
"COMPUTER AID, INC.",Applications Support,"$217,383.39 ",11/23/2016
"COMPUTER AID, INC.",Consulting Services,"$45,002 ",12/19/2016
"COMPUTER AID, INC.",Consulting Services,"$20,076 ",12/30/2016
"COMPUTER PRODUCTS & SUPPLIES, INC.",Administrative Support,"$4,747 ",2/25/2016
"COMPUTER PRODUCTS & SUPPLIES, INC.",Training - Students,$562 ,5/27/2016
COMTO NATIONAL HEADQUARTERS,Administrative Support,"$5,100 ",1/12/2016
COMTO NATIONAL HEADQUARTERS,Training - Students,"$3,000 ",5/13/2016
CONCERNED PEST CONTROL,Maintenance of Equipment,$833.80 ,1/14/2016
CONCERNED PEST CONTROL,Maintenance of Equipment,$236.50 ,1/22/2016
CONCERNED PEST CONTROL,Maintenance of Equipment,$660 ,2/22/2016
CONCERNED PEST CONTROL,Maintenance of Equipment,$110 ,4/5/2016
CONCERNED PEST CONTROL,Maintenance of Equipment,"$1,185.14 ",4/21/2016
CONCERNED PEST CONTROL,Maintenance of Equipment,$412.43 ,5/16/2016
CONCERNED PEST CONTROL,Maintenance of Equipment,$91.65 ,5/17/2016
CONSTELLATION ( AN EXELON CO.),"Facilities Operating Expenses (Rent,Utilities,etc)","$317,424.54 ",1/15/2016
CONSTELLATION ( AN EXELON CO.),"Facilities Operating Expenses (Rent,Utilities,etc)","$129,668.75 ",2/2/2016
CONSTELLATION ( AN EXELON CO.),"Facilities Operating Expenses (Rent,Utilities,etc)","$395,458.16 ",2/12/2016
CONSTELLATION ( AN EXELON CO.),"Facilities Operating Expenses (Rent,Utilities,etc)","$167,805.76 ",2/24/2016
CONSTELLATION ( AN EXELON CO.),"Facilities Operating Expenses (Rent,Utilities,etc)","$77,439.97 ",2/25/2016
CONSTELLATION ( AN EXELON CO.),"Facilities Operating Expenses (Rent,Utilities,etc)","$101,727.74 ",3/10/2016
CONSTELLATION ( AN EXELON CO.),"Facilities Operating Expenses (Rent,Utilities,etc)","$338,688.45 ",3/11/2016
CONSTELLATION ( AN EXELON CO.),"Facilities Operating Expenses (Rent,Utilities,etc)","$108,543.62 ",3/23/2016
CONSTELLATION ( AN EXELON CO.),"Facilities Operating Expenses (Rent,Utilities,etc)","$82,518.24 ",3/24/2016
CONSTELLATION ( AN EXELON CO.),"Facilities Operating Expenses (Rent,Utilities,etc)","$380,877.07 ",4/8/2016
CONSTELLATION ( AN EXELON CO.),"Facilities Operating Expenses (Rent,Utilities,etc)","$216,341.23 ",4/20/2016
CONSTELLATION ( AN EXELON CO.),"Facilities Operating Expenses (Rent,Utilities,etc)","$71,270.47 ",4/21/2016
CONSTELLATION ( AN EXELON CO.),"Facilities Operating Expenses (Rent,Utilities,etc)","$382,098.79 ",5/13/2016
CONSTELLATION ( AN EXELON CO.),"Facilities Operating Expenses (Rent,Utilities,etc)","$66,095.82 ",5/23/2016
CONSTELLATION ( AN EXELON CO.),"Facilities Operating Expenses (Rent,Utilities,etc)","$110,920.94 ",5/25/2016
CONSTELLATION ( AN EXELON CO.),"Facilities Operating Expenses (Rent,Utilities,etc)","$290,973.25 ",6/16/2016
CONSTELLATION ( AN EXELON CO.),"Facilities Operating Expenses (Rent,Utilities,etc)","$152,609.15 ",6/23/2016
CONSTELLATION ( AN EXELON CO.),"Facilities Operating Expenses (Rent,Utilities,etc)","$1,865,041.47 ",7/21/2016
CONSTELLATION ( AN EXELON CO.),"Facilities Operating Expenses (Rent,Utilities,etc)","$73,094.12 ",7/22/2016
CONSTELLATION ( AN EXELON CO.),"Facilities Operating Expenses (Rent,Utilities,etc)","$40,541.23 ",8/5/2016
CONSTELLATION ( AN EXELON CO.),"Facilities Operating Expenses (Rent,Utilities,etc)","$112,663.40 ",8/9/2016
CONSTELLATION ( AN EXELON CO.),"Facilities Operating Expenses (Rent,Utilities,etc)","$527,680.63 ",9/9/2016
CONSTELLATION ( AN EXELON CO.),"Facilities Operating Expenses (Rent,Utilities,etc)","$150,377.51 ",10/5/2016
CONSTELLATION ( AN EXELON CO.),"Facilities Operating Expenses (Rent,Utilities,etc)","$193,447.01 ",11/3/2016
CONSTELLATION ( AN EXELON CO.),"Facilities Operating Expenses (Rent,Utilities,etc)","$317,596.35 ",11/10/2016
CONSTELLATION ( AN EXELON CO.),"Facilities Operating Expenses (Rent,Utilities,etc)","$191,920.47 ",11/16/2016
CONSTELLATION ( AN EXELON CO.),"Facilities Operating Expenses (Rent,Utilities,etc)","$67,444.63 ",11/17/2016
CONSTELLATION ( AN EXELON CO.),"Facilities Operating Expenses (Rent,Utilities,etc)","$254,309.69 ",11/23/2016
CONSTELLATION ( AN EXELON CO.),"Facilities Operating Expenses (Rent,Utilities,etc)","$91,850.68 ",12/7/2016
CONSTELLATION ( AN EXELON CO.),"Facilities Operating Expenses (Rent,Utilities,etc)","$54,929.58 ",12/8/2016
CONSTELLATION ( AN EXELON CO.),"Facilities Operating Expenses (Rent,Utilities,etc)","$333,860.49 ",12/23/2016
CONSTRUCTION SAFETY COUNCIL,Training - Instructors,$225 ,11/2/2016
CONSTRUCTION SPECIFICATIONS INSTITUTE,Professional / Technical,$395 ,7/21/2016
CONTINENTAL LANGUAGES LLC,Accident Reporting,$360 ,1/26/2016
CONTINENTAL LANGUAGES LLC,I&D Claims (Damage Reserve),$240 ,1/28/2016
